Workbook

Sheet 0. Intro
B2: If you are seeing this page, it means Excel Macro's have not been enabled.
B4: Excel Macros provide improved functionality for this file, and it will not work properly unless they are enabled.
B8: This may be caused by one of the following warnings:
C9: Follow the steps below each warning to enable Macros.
C15: Simply click 'Enable Content'
C22: Find out more here: | E22: https://docs.microsoft.com/en-us/deployoffice/security/internet-macros-blocked#remove-mark-of-the-web-from-a-file
C24: 1. Close workbook
C25: 2. Right click on the Excel file and click 'Properties'
C26: 3. Tick 'Unblock' and click 'OK'
C27: 4. Re-open file

Sheet Inputs
A1: 1 | B1: 1 | C1: 1 | D1: 1 | E1: 1 | F1: 1 | G1: 1 | H1: 1 | I1: 1 | J1: 1 | K1: 1 | L1: 1 | M1: 1 | N1: 1 | O1: 1 | P1: 1
A2: macro disabled | B2: FALSE
A3: Row # of First Flag | C3: =ROW(INDEX(A7:OFFSET(A7,options_count-1,0),MATCH(FALSE,ISBLANK(A7:OFFSET(A7,options_count-1,0)),0))) -> 9
A4: Number of Options | C4: =COUNTA(R7:R40) -> 33 | I4: is open but not extreme | V4: Release
A5: =SUM(A7:OFFSET(A7,options_count-1,0)) -> 17 | B5: =COUNTIF(B7:OFFSET(B7,options_count-1,0),1) -> 0 | C5: =SUM(C7:OFFSET(C7,options_count-1,0)) -> 6 | O5: ="Col: " &COLUMN(O6) -> Col: 15 | W5: Last Updated: 16-Jan-2025
A6: Must Fill Flag | B6: Check error Flag | C6: Check Fill Flag | D6: Condition_1 | F6: Condition_2 | H6: Optional? | I6: Enter Precedent 1 | K6: Check For_1 | L6: Enter Precedent 2 | M6: Check For_2 | N6: Row Outcome* | O6: WarningCol | R6: OPTIONS | S6: INPUT | U6: INSTRUCTIONS | W6: COMMENTS
D7: i_SystemType | F7: i_InstallationType | R7: Customer's Name | U7: ← Enter Name (Optional)
R8: Customer's Job Number | U8: ← Enter Job Number (Optional)
A9: 1 | C9: =IF(AND(LEN(S9)>0,N9<>"HIDE"),1,0) -> 0 | R9: Region | T9: =HYPERLINK("#"&ADDRESS(ROW(),COLUMN()-1),CHAR(128)) -> € | U9: ← Select Region (AU/US) | W9: =IF(i_Location="","Please select a Region.","") -> Please select a Region.
A10: 1 | C10: =IF(AND(LEN(S10)>0,N10<>"HIDE"),1,0) -> 0 | R10: Units | T10: =HYPERLINK("#"&ADDRESS(ROW(),COLUMN()-1),CHAR(128)) -> € | U10: ← Select Units (Metric/Imperial)
N11: HIDE | R11: Fabric | T11: =HYPERLINK("#"&ADDRESS(ROW(),COLUMN()-1),CHAR(128)) -> € | U11: ← Select Fabric
A12: 1 | C12: =IF(AND(S12>0,N12<>"HIDE"),1,0) -> 0 | O12: =IFERROR(IF(SEARCH("Warning",W12)>0,1,0),0) -> 0 | R12: Blind Width | U12: =_xlfn.IFNA("← Enter Total Blind Width ("&INDEX(T_UnitSelection[Units],MATCH(i_Units,T_UnitSelection[UnitSelection],0))&")","← Enter Blind Width") -> ← Enter Blind Width | W12: =IFERROR(IF(SUM(Ctrl_Recommendations!$T$13:$T$14)>0,INDEX(Ctrl_Recommendations!$W$13:$W$14,MATCH(1,Ctrl_Recommendations!$T$13:$T$14)),""),"") -> 
A13: =IF(N13="HIDE",0,1) -> 1 | C13: =IF(AND(S13>0,N13<>"HIDE"),1,0) -> 0 | N13: =IF(ISNUMBER(SEARCH(K13,INDIRECT(I13))),"HIDE","SHOW") -> SHOW | O13: =IFERROR(IF(SEARCH("Warning",W13)>0,1,0),0) -> 0 | R13: Blind Drop | U13: =_xlfn.IFNA("← Enter Total Blind Drop ("&INDEX(T_UnitSelection[Units],MATCH(i_Units,T_UnitSelection[UnitSelection],0))&")","← Enter Blind Drop") -> ← Enter Blind Drop | W13: =IFERROR(IF(w_BlindDrop>0,INDEX(Ctrl_Recommendations!$W$6:$W$8,MATCH("on",Ctrl_Recommendations!$V$6:$V$8,0)),""),"") -> 
A14: =IF(N14="HIDE",0,1) -> 0 | C14: =IF(AND(LEN(S14)>0,N14<>"HIDE"),1,0) -> 0 | N14: HIDE | O14: =IFERROR(IF(SEARCH("Warning",W14)>0,1,0),0) -> 0 | R14: System Type | T14: =HYPERLINK("#"&ADDRESS(ROW(),COLUMN()-1),CHAR(128)) -> € | U14: ="← Select "&R14 -> ← Select System Type | W14: =IFERROR(IF(AND(i_Tube<>"",i_SystemType<>"",w_MaxArea="On"),OFFSET(w_MaxArea,0,1,),""),"") -> 
A15: =IF(N15="HIDE",0,1) -> 1 | C15: 0 | O15: =IFERROR(IF(SEARCH("Warning",W15)>0,1,0),0) -> 0 | R15: Installation Type | T15: =HYPERLINK("#"&ADDRESS(ROW(),COLUMN()-1),CHAR(128)) -> € | U15: ← Select Installation Type
A16: =IF(N16="HIDE",0,1) -> 0 | C16: =IF(AND(LEN(S16)>0,N16<>"HIDE"),1,0) -> 0 | N16: HIDE | R16: Bracket Fix Orientation | T16: € | U16: ="← Select "&R16 -> ← Select Bracket Fix Orientation
A17: =IF(N17="HIDE",0,1) -> 1 | C17: =IF(AND(LEN(S17)>0,N17<>"HIDE"),1,0) -> 0 | D17: =IFERROR(IF(FIND("EXTREME",i_SystemType)>0,"",i_SystemType),i_SystemType) -> 0 | N17: SHOW | R17: Open Bracket Style | T17: € | U17: ← Select Open Bracket Style
A18: =IF(N18="HIDE",0,1) -> 1 | C18: 0 | D18: =IFERROR(IF(FIND("EXTREME",i_SystemType)>0,"",i_SystemType),i_SystemType) -> 0 | N18: =IF(ISNUMBER(SEARCH("Opulence",i_OpenBktStyle))=TRUE,"HIDE","SHOW") -> SHOW | R18: Open Bracket Covers | T18: € | U18: ← Select Open Bracket Covers
A19: =IF(N19="HIDE",0,1) -> 0 | C19: =IF(AND(LEN(S19)>0,N19<>"HIDE"),1,0) -> 0 | N19: =IF(ISNUMBER(SEARCH(K19,INDIRECT(I19))),"SHOW","HIDE") -> HIDE | R19: Wire Guide Top Terminal | T19: € | U19: ← Select Wire Guide Top Terminal
A20: 1 | C20: 0 | O20: =IFERROR(IF(SEARCH("Warning",W20)>0,1,0),0) -> 0 | R20: Spring Size | T20: =HYPERLINK("#"&ADDRESS(ROW(),COLUMN()-1),CHAR(128)) -> € | U20: ← Select Spring Size | W20: Refer to support material & calculators for spring selection guidance.
A21: =IF(N21="HIDE",0,1) -> 1 | C21: =IF(AND(LEN(S21)>0,N21<>"HIDE"),1,0) -> 0 | O21: =IFERROR(IF(SEARCH("Warning",W21)>0,1,0),0) -> 0 | R21: Tube | T21: € | U21: ="← Select "&R21 -> ← Select Tube
A22: =IF(N22="HIDE",0,1) -> 1 | C22: =IF(AND(LEN(S22)>0,N22<>"HIDE"),1,0) -> 0 | N22: =IF(ISNUMBER(SEARCH(K22,INDIRECT(I22))),"HIDE","SHOW") -> SHOW | R22: Idler Type | T22: =HYPERLINK("#"&ADDRESS(ROW(),COLUMN()-1),CHAR(128)) -> € | U22: ="← Select "&R22 -> ← Select Idler Type
A23: =IF(N23="HIDE",0,1) -> 0 | C23: =IF(AND(H23=1,N23="SHOW"),1,IF(AND(LEN(S23)>0,N23<>"HIDE"),1,0)) -> 0 | H23: 1 | I23: i_motor | K23: AUTOMATE | N23: =IF(ISNUMBER(SEARCH(K23,INDIRECT(I23))),"SHOW","HIDE") -> HIDE | R23: Remote | T23: =HYPERLINK("#"&ADDRESS(ROW(),COLUMN()-1),CHAR(128)) -> € | U23: ="← Select "&R23 -> ← Select Remote
A24: 0 | C24: =IF(AND(H24=1,N24="SHOW"),1,IF(AND(LEN(S24)>0,N24<>"HIDE"),1,0)) -> 0 | H24: 1 | I24: i_motor | K24: AUTOMATE | N24: =IF(ISNUMBER(SEARCH(K24,INDIRECT(I24))),"SHOW","HIDE") -> HIDE | R24: Sensor | T24: =HYPERLINK("#"&ADDRESS(ROW(),COLUMN()-1),CHAR(128)) -> € | U24: ="← Select "&R24 -> ← Select Sensor
A25: =IF(N25="HIDE",0,1) -> 0 | C25: 0 | I25: i_location | K25: AU | N25: =IF(ISNUMBER(SEARCH(K25,INDIRECT(I25))),"SHOW","HIDE") -> HIDE | R25: Tube Extras | T25: € | U25: ="← Select "&R25 -> ← Select Tube Extras
A26: =IF(N26="HIDE",0,1) -> 1 | C26: =IF(AND(LEN(S26)>0,N26<>"HIDE"),1,0) -> 0 | N26: =IF(ISNUMBER(SEARCH(K26,INDIRECT(I26))),"HIDE","SHOW") -> SHOW | R26: =IF(i_Location="AU","Bottom Rail","Hem Bar") -> Hem Bar | T26: € | U26: ← Select Hem Bar | W26: =IF(i_Units="Imperial","Recommended target weight: 0.34 lb/ft, add ballast as required.","Recommended target weight: 500 g/m, add ballast as required.") -> Recommended target weight: 500 g/m, add ballast as required.
A27: =IF(N27="HIDE",0,1) -> 0 | C27: =IF(AND(H27=1,N27="SHOW"),1,IF(AND(LEN(S27)>0,N27<>"HIDE"),1,0)) -> 0 | H27: 1 | I27: i_SystemType | J27: != | K27: Pivot | N27: HIDE | R27: =IF(i_Location="US","Hem Bar Lock","Weight Bar Lock") -> Weight Bar Lock | T27: € | U27: ="← Select "&R27 -> ← Select Weight Bar Lock
A28: =IF(N28="HIDE",0,1) -> 0 | C28: =IF(AND(LEN(S28)>0,N28<>"HIDE"),1,0) -> 0 | N28: =IF(ISERROR(INDEX(L_wbStrap,1)),"HIDE","SHOW") -> HIDE | R28: =IF(i_Location="US","Hem Bar Spline","Weight Bar Strap") -> Weight Bar Strap | T28: € | U28: ="← Select "&R28 -> ← Select Weight Bar Strap
A29: =IF(N29="HIDE",0,1) -> 1 | C29: =IF(AND(H29=1,N29="SHOW"),1,IF(AND(LEN(#REF!)>0,N29<>"HIDE"),1,0)) -> 1 | H29: 1 | N29: =IF(ISNUMBER(SEARCH(K29,INDIRECT(I29))),"HIDE","SHOW") -> SHOW | R29: =IF(i_Location="AU","Bottom Rail Spline Type","Hem Bar Spline Type") -> Hem Bar Spline Type | T29: € | U29: ← Select Hem Bar Spline Type
A30: =IF(N30="HIDE",0,1) -> 1 | C30: =IF(AND(H30=1,N30="SHOW"),1,IF(AND(LEN(S30)>0,N30<>"HIDE"),1,0)) -> 1 | H30: 1 | N30: =IF(ISNUMBER(SEARCH(K30,INDIRECT(I30))),"HIDE","SHOW") -> SHOW | R30: =IF(i_Location="US","Bottom Rail Accessories","Weight Bar Accessories") -> Weight Bar Accessories | T30: € | U30: ← Select Weight Bar Accessories
A31: 0 | C31: =IF(AND(LEN(S30)>0,N31<>"HIDE"),1,0) -> 0 | N31: HIDE | R31: Weight Bar Spline | T31: € | U31: ← Select Weight Bar Spline
A32: =IF(N32="HIDE",0,1) -> 1 | C32: =IF(AND(H32=1,N32="SHOW"),1,IF(AND(LEN(S32)>0,N32<>"HIDE"),1,0)) -> 1 | H32: 1 | N32: SHOW | R32: Tension Lock | T32: € | U32: ← Select Tension Lock
A33: =IF(N33="HIDE",0,1) -> 1 | C33: =IF(AND(H33=1,N33="SHOW"),1,IF(AND(LEN(S33)>0,N33<>"HIDE"),1,0)) -> 1 | H33: 1 | N33: SHOW | R33: PreTension Tool | T33: € | U33: ="← Select "&R33 -> ← Select PreTension Tool
A34: =IF(N34="HIDE",0,1) -> 1 | C34: =IF(AND(H34=1,N34="SHOW"),1,IF(AND(LEN(S34)>0,N34<>"HIDE"),1,0)) -> 1 | H34: 1 | N34: SHOW | R34: Spanner Tool | T34: € | U34: ="← Select "&R34 -> ← Select Spanner Tool
A35: 0 | C35: =IF(AND(H35=1,N35="SHOW"),1,IF(AND(LEN(S35)>0,N35<>"HIDE"),1,0)) -> 0 | H35: 1 | I35: i_location | K35: US | N35: =IF(ISNUMBER(SEARCH(K35,INDIRECT(I35))),"SHOW","HIDE") -> HIDE | R35: Control Cap | T35: € | U35: ← Select Control Cap
A36: 0 | C36: 0 | N36: HIDE | R36: Finish | T36: € | U36: ="← Select "&R36 -> ← Select Finish
A37: =IF(N37="HIDE",0,1) -> 0 | C37: =IF(AND(H37=1,N37="SHOW"),1,IF(AND(LEN(S37)>0,N37<>"HIDE"),1,0)) -> 0 | H37: 1 | I37: i_Finish | K37: Powdercoat | N37: =IF(ISNUMBER(SEARCH(K37,INDIRECT(I37))),"SHOW","HIDE") -> HIDE | R37: Colour | T37: € | U37: ="← Select "&R37 -> ← Select Colour
A38: 1 | C38: 1 | S38: 0
A39: =IF(N39="HIDE",0,1) -> 0 | C39: =IF(AND(LEN(S39)>0,N39<>"HIDE"),1,0) -> 0 | I39: i_Location | K39: AU | N39: =IF(SUMPRODUCT(--ISNUMBER(SEARCH(K39,INDIRECT(I39)))),"SHOW","HIDE") -> HIDE | R39: HARDWARE DISCOUNT | S39: 0 | U39: ← Enter Discount %
A40: =IF(N40="HIDE",0,1) -> 0 | C40: =IF(AND(LEN(S40)>0,N40<>"HIDE"),1,0) -> 0 | N40: HIDE | R40: AUTOMATE DISCOUNT | S40: 0 | U40: ← Enter Discount %
I41: i_Location | K41: AU | N41: =IF(SUMPRODUCT(--ISNUMBER(SEARCH(K41,INDIRECT(I41)))),"SHOW","HIDE") -> HIDE | R41: SHOW PRICING | S41: Yes | U41: ← Select if pricing is to be shown on BOM
A42: 0 | C42: 0 | N42: HIDE | R42: SYSTEM QTY | S42: 1 | U42: ← Enter QTY Required
N44: HIDE | R44: CALCULATOR
N45: HIDE | R45: Booster Pre-turns | S45: =IF(i_ControlType="Spring",Calc_Reference_excl!BA38,"") ->  | U45: Turns
N46: HIDE | R46: Motor cycle time (1-way) | U46: sec
N47: HIDE | R47: Tube Deflection | S47: =(5/384)*((g*(Fabric_Density*o_BlindDropm+Tube_UnitMass+wb_UnitMass)*o_BlindWidthm^4)/Tube_IE)*1000 ->  | U47: mm
N48: HIDE | R48: Roll Diameter | U48: mm | W48: including zip (if applicable) - data bar needs to be box/open bracket limit
N49: SHOW
R50: LEGEND | S50: INSTRUCTIONS
R51: OPTIONAL FIELD | S51: STEP 1: In order to obtain cutting lists, ensure all required fields are filled in
A52: Row # of First Option | C52: =ROW(R7) -> 7 | R52: REQUIRED FIELD | S52: STEP 2: Once Inputs are completed, click SUBMIT button to generate Bill of Materials & Cutting List | W52: For other fabrics, refer to Pre-tension Charts for Booster and Pre-turn recommendations.
A53: Row # of Last Option | C53: =ROW(i_Finish) -> 36
R54: NOTE: Microsoft Excel 2016 or later required for complete functionality. MACROS MUST BE ENABLED.
M55: =IF(SUM(O9:O39)>=1,"Warnings","No Warnings") -> No Warnings | R55: DISCLAIMER: Rollease Acmeda has used reasonable care in preparing the information included in this workbook, but makes no representations or warranties as to the completeness or accuracy of the information. Information is supplied upon the condition that the persons receiving the information will make their own determination as to is suitability for their purposes prior to use. Rollease Acmeda assumes no liability whatsoever for any damages incurred by you resulting from errors in or omissions from the information included herein. The pricing tool is an indicative estimation only based on selections and does not account for indicidental wastage. Rollease Acmeda reserves the right to make changes without further notice to any products to improve the reliability, function or design.
C57: ={IF(SUMPRODUCT(--ISNUMBER(SEARCH(E42,INDIRECT(D42)))),"HIDE","SHOW")}
C58: =IF(AND(ISNUMBER(SEARCH(K20,@INDIRECT(I20))),(D20=@INDIRECT($D$7))),"SHOW","HIDE")

Sheet BOM (hidden)
A1: HIDE | B1: HIDE | C1: HIDE | D1: HIDE | E1: HIDE | F1: HIDE | G1: HIDE | H1: HIDE | I1: HIDE | J1: HIDE | K1: HIDE | L1: HIDE | M1: HIDE | N1: HIDE | O1: HIDE | P1: HIDE | Q1: HIDE | R1: HIDE | S1: HIDE | T1: HIDE | U1: HIDE | V1: HIDE | W1: HIDE | X1: HIDE | Y1: HIDE | Z1: HIDE | AA1: HIDE | AB1: HIDE | AC1: HIDE | AD1: HIDE | AE1: HIDE | AF1: HIDE | AG1: HIDE | AH1: HIDE | AI1: HIDE | AJ1: HIDE | AK1: HIDE | AL1: HIDE | AM1: HIDE | AN1: HIDE | AO1: HIDE | AP1: HIDE | AQ1: HIDE | AR1: HIDE | AS1: HIDE | AT1: HIDE | AU1: HIDE | AV1: HIDE | AW1: HIDE | AX1: HIDE | AY1: HIDE | AZ1: HIDE | BA1: HIDE | BB1: HIDE | BC1: HIDE | BG1: HIDE | BH1: HIDE | BI1: HIDE | BJ1: HIDE | BK1: HIDE | BL1: HIDE | BM1: =IF(i_Units="Metric","SHOW","HIDE") -> HIDE | BN1: =IF(i_Units="Imperial","SHOW","HIDE") -> HIDE | BP1: HIDE | BQ1: HIDE | BR1: HIDE | BS1: HIDE | BT1: HIDE | BU1: HIDE | BW1: HIDE | BX1: HIDE | BY1: HIDE | BZ1: =IF(AND(i_Pricing="Yes",i_Location="AU"),"SHOW","HIDE") -> HIDE | CB1: HIDE | CC1: HIDE | CD1: HIDE | CE1: HIDE | CF1: HIDE | CG1: HIDE | CH1: HIDE
AY2: SHOW
C3: CONDITIONS | Z3: QTY | AH3: COLOURS | AY3: SHOW | BF3: Customers Name: | BM3: =IF(i_CustName=0,"",i_CustName) ->  | BN3: =IF(i_CustName=0,"",i_CustName) -> 
AY4: SHOW | BF4: Job Number: | BM4: =IF(i_JobNumber=0,"",i_JobNumber) ->  | BN4: =IF(i_JobNumber=0,"",i_JobNumber) -> 
AY5: SHOW | BF5: Blind Width: | BM5: =o_Widthmm -> 0 | BN5: =TEXT(o_Widthin,"0"&IF(ABS(o_Widthin-ROUND(o_Widthin,0))>1/32,"-0/"&CHOOSE(ROUND(MOD(o_Widthin,1)*16,0),16,8,16,4,16,8,16,2,16,8,16,4,16,8,16),"")) -> 0 | BO5: =INDEX(T_UnitSelection[Units],MATCH(i_Units,T_UnitSelection[UnitSelection],0)) -> 
AY6: SHOW | BF6: Blind Drop: | BM6: =o_Dropmm -> 0 | BN6: =TEXT(o_Dropin,"0"&IF(ABS(o_Dropin-ROUND(o_Dropin,0))>1/32,"-0/"&CHOOSE(ROUND(MOD(o_Dropin,1)*16,0),16,8,16,4,16,8,16,2,16,8,16,4,16,8,16),"")) -> 0 | BO6: =INDEX(T_UnitSelection[Units],MATCH(i_Units,T_UnitSelection[UnitSelection],0)) -> 
AY7: SHOW | BE7: =i_OpenBktStyle&", "&MID(i_ControlType,19,30)&", "&i_Tube&" Tube, "&i_IdlerType&", "&i_WeightBar -> , , Tube, ,
AY8: SHOW
D9: ROW HIDE/SHOW CONDITIONS | AA9: QTY Modifiers | AI9: Colour Selection | AY9: SHOW | BC9: PART NUMBER for NAV costs | BE9: PART NUMBER | BF9: DESCRIPTION | BG9: Std Lengths (meters) | BH9: CutList? | BI9: Deduction Type | BJ9: Deduction Lookup | BK9: Deduc Type | BL9: Cut length (mm) | BM9: CUT LENGTH (mm) | BN9: CUT LENGTH (in) | BO9: U.O.M | BP9: Supplied UOM | BQ9: secondary UoM | BR9: UoM SWAP? | BS9: Discount | BT9: QTY (Base) | BU9: QTY / SYSTEM | BV9: Total QTY | BW9: unit/metre lookup cost | BX9: ="LINE COST ("&i_Currency&")" ->  | BY9: ="$ Discount ("&i_Currency&")" ->  | BZ9: ="LINE COST ("&i_Currency&")" -> 
C10: RowCtrl | D10: Condition_1 | F10: Condition_2 | H10: Condition_3 | J10: Condition_4 | L10: Condition_5 | N10: Condition_6 | P10: Condition_7 | R10: Condition_8 | T10: Condition_9 | V10: Condition_10 | AA10: Links | AB10: Distance | AC10: Other Rules_1 | AD10: Other Rules_x | AE10: QTY Factor. | AF10: Comments | AS10: System Default | AY10: SHOW | BW10: COST $$$
AI11: Fallback | AS11: Black | AY11: =IF(AND(ISBLANK(BC11),ISBLANK(C11)),"HIDE",_xlfn.SWITCH(PRODUCT(C11:Z11,B11),2,"HEADING",1,"SHOW",0,"HIDE")) -> HIDE
B12: 2=heading | AB12: i_Width | AC12: i_Drop | AI12: Colour | AY12: =IF(AND(ISBLANK(BC12),ISBLANK(C12)),"HIDE",_xlfn.SWITCH(PRODUCT(C12:Z12,B12),2,"HEADING",1,"SHOW",0,"HIDE")) -> HIDE | BM12: &" (x"&BT17&")"
AB13: =IF(i_Units="Metric",i_Width,CONVERT(i_Width,"in","mm")) -> 0 | AC13: =IF(i_Units="Metric",i_Drop,CONVERT(i_Drop,"in","mm")) -> 0 | AI13: 1 | AJ13: 2 | AK13: 3 | AL13: 4 | AM13: 5 | AN13: 6 | AO13: 7 | AP13: 8 | AQ13: 9 | AY13: =IF(AND(ISBLANK(BC13),ISBLANK(C13)),"HIDE",_xlfn.SWITCH(PRODUCT(C13:Z13,B13),2,"HEADING",1,"SHOW",0,"HIDE")) -> HIDE | BM13: mm | BN13: in
AI14: COLOUR OPTIONS | AR14: LOC. | AS14: DEFAULT | AT14: Col_IN Selec | AV14: Col_OUT Desc | AW14: Col_OUT Code | AY14: =IF(AND(ISBLANK(BC14),ISBLANK(C14)),"HIDE",_xlfn.SWITCH(PRODUCT(C14:Z14,B14),2,"HEADING",1,"SHOW",0,"HIDE")) -> HIDE | BM14: potential QTY column
B15: 2 | C15: =C16 -> 0 | AE15: =IFERROR(IF(AND(AA15="Y",PRODUCT(AB15:AD15)=0),o_nScreens,IF(PRODUCT(AB15:AD15)=0,"",PRODUCT(AB15:AD15))),"") ->  | AS15: =IF(ISNUMBER(FIND("x",BE15)),IFERROR(INDEX(AI15:AQ15,0,MATCH(AT15,AI15:AQ15,0)),IF(AI15<>"",AI15,i_DefaultColour)),"") ->  | AV15: =IF(ISNUMBER(FIND("x",BE15)),IFERROR(INDEX(AI15:AQ15,0,MATCH(AT15,AI15:AQ15,0)),AS15),"") ->  | AW15: =IF(ISNUMBER(FIND("x",BE15)),IFERROR(INDEX(INDIRECT("T_FinishColour[ColourCode-"&IF(ISNUMBER(FIND("xxx",BE15)),"xxx",IF(ISNUMBER(FIND("xx",BE15)),"xx","error"))&AR15&"]"),MATCH(AV15,T_FinishColour[Finish / Colour],0)),""),"") ->  | AY15: =IF(AND(ISBLANK(BC15),ISBLANK(C15)),"HIDE",_xlfn.SWITCH(PRODUCT(C15:Z15,B15),2,"HEADING",1,"SHOW",0,"HIDE")) -> HIDE | BC15: =_xlfn.IFNA(SUBSTITUTE(IF(AR15="AU",SUBSTITUTE(BE15,"xxx",AW15),SUBSTITUTE(SUBSTITUTE(BE15,"xx",AW15),"x","")),"LLL","580"),BE15) ->  | BH15: =IF(ISBLANK(BO15),"",IF(OR(BO15=L_Units),"Y","N")) ->  | BJ15: =IFERROR(_xlfn.SINGLE(IF(BH15="Y",((INDEX(#REF!,MATCH(BI15,#REF!,0),0))),"")),"") ->  | BL15: =IFERROR(IF(BH15="Y",INDIRECT(BK15)-BJ15,""),"") ->  | BM15: =IFERROR(IF(BH15="Y",BL15,""),"") ->  | BN15: =IFERROR(IF(BH15="Y",TEXT(BL15/25.4,"0"&IF(ABS(BL15/25.4-ROUND(BL15/25.4,0))>1/32,"-0/"&CHOOSE(ROUND(MOD(BL15/25.4,1)*16,0),16,8,16,4,16,8,16,2,16,8,16,4,16,8,16),"")),""),"") ->  | BP15: =IFERROR(IF(ISBLANK(BC15),"",INDEX(T_NAV_AU[Base Unit of Measure],MATCH(BC15,T_NAV_AU[No.],0))),"") ->  | BU15: =IF(ISBLANK(BT15),"",PRODUCT(AE15,BT15)) ->  | BV15: =IF(ISBLANK(BT15),"",PRODUCT(AE15,BT15,i_systemQTY)) ->  | BW15: =IFERROR(INDEX(INDIRECT("T_NAV_"&i_Location&"["&i_Location&"]"),MATCH(1,--(BC15=INDIRECT("T_NAV_"&i_Location&"[No.]"))*--((INDIRECT("T_NAV_"&i_Location&"["&i_Location&"]"))<>""),0))/IF(AND(BQ15="METRE",BG15<>"",BR15=""),BG15,1),"") ->  | BX15: =IFERROR(IF(AND(AY15="SHOW",BW15<>""),BW15*BV15*IF(AND(BM15<>"",OR(BP15="LENGTH",BP15="METRE",BP15="ROLL")),(BL15/1000),1),""),"") ->  | BY15: =IF(BX15<>"",(INDIRECT("i_"&BS15&"discount"))*BX15,"") ->  | BZ15: =IFERROR(IF(BX15<>"",BX15-BY15,""),"") -> 
B16: 2 | C16: =IF(COUNTIF(AY17:AY22,"SHOW")>0,1,0) -> 0 | D16: i_InstallationType | F16: i_OpenBktCovers | H16: i_OpenBktStyle | AS16: =IF(ISNUMBER(FIND("x",BE16)),IFERROR(INDEX(AI16:AQ16,0,MATCH(AT16,AI16:AQ16,0)),IF(AI16<>"",AI16,i_DefaultColour)),"") ->  | AV16: =IF(ISNUMBER(FIND("x",BE16)),IFERROR(INDEX(AI16:AQ16,0,MATCH(AT16,AI16:AQ16,0)),AS16),"") ->  | AW16: =IF(ISNUMBER(FIND("x",BE16)),IFERROR(INDEX(INDIRECT("T_FinishColour[ColourCode-"&IF(ISNUMBER(FIND("xxx",BE16)),"xxx",IF(ISNUMBER(FIND("xx",BE16)),"xx","error"))&AR16&"]"),MATCH(AV16,T_FinishColour[Finish / Colour],0)),""),"") ->  | AY16: =IF(AND(ISBLANK(BC16),ISBLANK(C16)),"HIDE",_xlfn.SWITCH(PRODUCT(C16:Z16,B16),2,"HEADING",1,"SHOW",0,"HIDE")) -> HIDE | BC16: =_xlfn.IFNA(SUBSTITUTE(IF(AR16="AU",SUBSTITUTE(BE16,"xxx",AW16),SUBSTITUTE(SUBSTITUTE(BE16,"xx",AW16),"x","")),"LLL","580"),BE16) -> BRACKETS | BE16: BRACKETS | BJ16: =IFERROR(_xlfn.SINGLE(IF(BH16="Y",((INDEX(#REF!,MATCH(BI16,#REF!,0),0))),"")),"") ->  | BP16: =IFERROR(IF(ISBLANK(BC16),"",INDEX(T_NAV_AU[Base Unit of Measure],MATCH(BC16,T_NAV_AU[No.],0))),"") ->  | BW16: =IFERROR(INDEX(INDIRECT("T_NAV_"&i_Location&"["&i_Location&"]"),MATCH(1,--(BC16=INDIRECT("T_NAV_"&i_Location&"[No.]"))*--((INDIRECT("T_NAV_"&i_Location&"["&i_Location&"]"))<>""),0))/IF(AND(BQ16="METRE",BG16<>"",BR16=""),BG16,1),"") -> 
D17: Open | E17: =IFERROR(IF(ISBLANK(D17),"",IF(FIND(D17,INDIRECT($D$16))>0,1,0)),0) -> 0 | G17: =IFERROR(IF(ISBLANK(F17),"",IF(FIND(F17,INDIRECT($F$16))>0,1,0)),0) ->  | H17: 1.5" | I17: =IFERROR(IF(ISBLANK(H17),"",IF(FIND(H17,INDIRECT($H$16))>0,1,0)),0) -> 0 | AI17: White | AR17: AU | AS17: White | AT17: =i_Finish -> 0 | AV17: White | AW17: =IF(ISNUMBER(FIND("x",BE17)),IFERROR(INDEX(INDIRECT("T_FinishColour[ColourCode-"&IF(ISNUMBER(FIND("xxx",BE17)),"xxx",IF(ISNUMBER(FIND("xx",BE17)),"xx","error"))&AR17&"]"),MATCH(AV17,T_FinishColour[Finish / Colour],0)),""),"") ->  | AY17: =IF(AND(ISBLANK(BC17),ISBLANK(C17)),"HIDE",_xlfn.SWITCH(PRODUCT(C17:Z17,B17),2,"HEADING",1,"SHOW",0,"HIDE")) -> HIDE | BC17: =_xlfn.IFNA(SUBSTITUTE(IF(AR17="AU",SUBSTITUTE(BE17,"xxx",AW17),SUBSTITUTE(SUBSTITUTE(BE17,"xx",AW17),"x","")),"LLL",BG17*100),BE17) -> SLB660xx | BE17: SLB660xx | BF17: Skyline 1.5" Brackets | BH17: =IF(ISBLANK(BO17),"",IF(OR(BO17=L_Units),"Y","N")) -> N | BJ17: =IFERROR(_xlfn.SINGLE(IF(BH17="Y",((INDEX(#REF!,MATCH(BI17,#REF!,0),0))),"")),"") ->  | BO17: Piece | BP17: =IFERROR(IF(ISBLANK(BC17),"",INDEX(T_NAV_AU[Base Unit of Measure],MATCH(BC17,T_NAV_AU[No.],0))),"") ->  | BS17: HW | BT17: 2 | BU17: 2 | BV17: 2 | BW17: =IFERROR(INDEX(INDIRECT("T_NAV_"&i_Location&"["&i_Location&"]"),MATCH(1,--(BC17=INDIRECT("T_NAV_"&i_Location&"[No.]"))*--((INDIRECT("T_NAV_"&i_Location&"["&i_Location&"]"))<>""),0))/IF(AND(BQ17="METRE",BG17<>"",BR17=""),BG17,1),"") -> 
D18: Open | E18: 0 | F18: Yes | G18: =IFERROR(IF(ISBLANK(F18),"",IF(FIND(F18,INDIRECT($F$16))>0,1,0)),0) -> 0 | H18: 1.5" | I18: 0 | AI18: White | AR18: AU | AS18: =IF(ISNUMBER(FIND("x",BE18)),IFERROR(INDEX(AI18:AQ18,0,MATCH(AT18,AI18:AQ18,0)),IF(AI18<>"",AI18,i_DefaultColour)),"") -> White | AT18: 0 | AV18: =IF(ISNUMBER(FIND("x",BE18)),IFERROR(INDEX(AI18:AQ18,0,MATCH(AT18,AI18:AQ18,0)),AS18),"") -> White | AW18: =IF(ISNUMBER(FIND("x",BE18)),IFERROR(INDEX(INDIRECT("T_FinishColour[ColourCode-"&IF(ISNUMBER(FIND("xxx",BE18)),"xxx",IF(ISNUMBER(FIND("xx",BE18)),"xx","error"))&AR18&"]"),MATCH(AV18,T_FinishColour[Finish / Colour],0)),""),"") ->  | AY18: =IF(AND(ISBLANK(BC18),ISBLANK(C18)),"HIDE",_xlfn.SWITCH(PRODUCT(C18:Z18,B18),2,"HEADING",1,"SHOW",0,"HIDE")) -> HIDE | BC18: =_xlfn.IFNA(SUBSTITUTE(IF(AR18="AU",SUBSTITUTE(BE18,"xxx",AW18),SUBSTITUTE(SUBSTITUTE(BE18,"xx",AW18),"x","")),"LLL",BG18*100),BE18) -> SLBCxx | BE18: SLBCxx | BF18: Skyline 1.5" Bracket Covers | BH18: =IF(ISBLANK(BO18),"",IF(OR(BO18=L_Units),"Y","N")) -> N | BJ18: =IFERROR(_xlfn.SINGLE(IF(BH18="Y",((INDEX(#REF!,MATCH(BI18,#REF!,0),0))),"")),"") ->  | BL18: =IFERROR(IF(BH18="Y",INDIRECT(BK18)-BJ18,""),"") ->  | BM18: =IFERROR(IF(BH18="Y",BL18,""),"") ->  | BN18: =IFERROR(IF(BH18="Y",TEXT(BL18/25.4,"0"&IF(ABS(BL18/25.4-ROUND(BL18/25.4,0))>1/32,"-0/"&CHOOSE(ROUND(MOD(BL18/25.4,1)*16,0),16,8,16,4,16,8,16,2,16,8,16,4,16,8,16),"")),""),"") ->  | BO18: Piece | BP18: =IFERROR(IF(ISBLANK(BC18),"",INDEX(T_NAV_AU[Base Unit of Measure],MATCH(BC18,T_NAV_AU[No.],0))),"") ->  | BS18: HW | BT18: 2 | BU18: =IF(ISBLANK(BT18),"",PRODUCT(AE18,BT18)) -> 2 | BV18: =IF(ISBLANK(BT18),"",PRODUCT(AE18,BT18,i_systemQTY)) -> 2 | BW18: =IFERROR(INDEX(INDIRECT("T_NAV_"&i_Location&"["&i_Location&"]"),MATCH(1,--(BC18=INDIRECT("T_NAV_"&i_Location&"[No.]"))*--((INDIRECT("T_NAV_"&i_Location&"["&i_Location&"]"))<>""),0))/IF(AND(BQ18="METRE",BG18<>"",BR18=""),BG18,1),"") ->  | BX18: =IFERROR(IF(AND(AY18="SHOW",BW18<>""),BW18*BV18*IF(AND(BM18<>"",OR(BP18="LENGTH",BP18="METRE",BP18="ROLL")),(BL18/1000),1),""),"") ->  | BY18: =IF(BX18<>"",(INDIRECT("i_"&BS18&"discount"))*BX18,"") ->  | BZ18: =IFERROR(IF(BX18<>"",BX18-BY18,""),"") -> 
D19: Open | E19: 0 | G19: =IFERROR(IF(ISBLANK(F19),"",IF(FIND(F19,INDIRECT($F$16))>0,1,0)),0) ->  | H19: LX | I19: =IFERROR(IF(ISBLANK(H19),"",IF(FIND(H19,INDIRECT($H$16))>0,1,0)),0) -> 0 | AI19: White | AR19: AU | AS19: White | AT19: 0 | AV19: White | AW19: =IF(ISNUMBER(FIND("x",BE19)),IFERROR(INDEX(INDIRECT("T_FinishColour[ColourCode-"&IF(ISNUMBER(FIND("xxx",BE19)),"xxx",IF(ISNUMBER(FIND("xx",BE19)),"xx","error"))&AR19&"]"),MATCH(AV19,T_FinishColour[Finish / Colour],0)),""),"") -> 069 | AY19: =IF(AND(ISBLANK(BC19),ISBLANK(C19)),"HIDE",_xlfn.SWITCH(PRODUCT(C19:Z19,B19),2,"HEADING",1,"SHOW",0,"HIDE")) -> HIDE | BC19: =_xlfn.IFNA(SUBSTITUTE(IF(AR19="AU",SUBSTITUTE(BE19,"xxx",AW19),SUBSTITUTE(SUBSTITUTE(BE19,"xx",AW19),"x","")),"LLL",BG19*100),BE19) -> SL01-0306-069040 | BE19: SL01-0306-xxx040 | BF19: LX Skyline Brackets | BH19: =IF(ISBLANK(BO19),"",IF(OR(BO19=L_Units),"Y","N")) -> N | BJ19: =IFERROR(_xlfn.SINGLE(IF(BH19="Y",((INDEX(#REF!,MATCH(BI19,#REF!,0),0))),"")),"") ->  | BO19: Piece | BP19: =IFERROR(IF(ISBLANK(BC19),"",INDEX(T_NAV_AU[Base Unit of Measure],MATCH(BC19,T_NAV_AU[No.],0))),"") -> PIECE | BS19: HW | BT19: 2 | BU19: 2 | BV19: 2 | BW19: =IFERROR(INDEX(INDIRECT("T_NAV_"&i_Location&"["&i_Location&"]"),MATCH(1,--(BC19=INDIRECT("T_NAV_"&i_Location&"[No.]"))*--((INDIRECT("T_NAV_"&i_Location&"["&i_Location&"]"))<>""),0))/IF(AND(BQ19="METRE",BG19<>"",BR19=""),BG19,1),"") -> 
D20: Open | E20: 0 | H20: Opulence Round Skyline | I20: =IFERROR(IF(ISBLANK(H20),"",IF(FIND(H20,INDIRECT($H$16))>0,1,0)),0) -> 0 | AI20: White | AR20: AU | AS20: =IF(ISNUMBER(FIND("x",BE20)),IFERROR(INDEX(AI20:AQ20,0,MATCH(AT20,AI20:AQ20,0)),IF(AI20<>"",AI20,i_DefaultColour)),"") -> White | AT20: 0 | AV20: =IF(ISNUMBER(FIND("x",BE20)),IFERROR(INDEX(AI20:AQ20,0,MATCH(AT20,AI20:AQ20,0)),AS20),"") -> White | AW20: =IF(ISNUMBER(FIND("x",BE20)),IFERROR(INDEX(INDIRECT("T_FinishColour[ColourCode-"&IF(ISNUMBER(FIND("xxx",BE20)),"xxx",IF(ISNUMBER(FIND("xx",BE20)),"xx","error"))&AR20&"]"),MATCH(AV20,T_FinishColour[Finish / Colour],0)),""),"") -> 069 | AY20: =IF(AND(ISBLANK(BC20),ISBLANK(C20)),"HIDE",_xlfn.SWITCH(PRODUCT(C20:Z20,B20),2,"HEADING",1,"SHOW",0,"HIDE")) -> HIDE | BC20: =_xlfn.IFNA(SUBSTITUTE(IF(AR20="AU",SUBSTITUTE(BE20,"xxx",AW20),SUBSTITUTE(SUBSTITUTE(BE20,"xx",AW20),"x","")),"LLL",BG20*100),BE20) -> SL01-9013-069045 | BE20: SL01-9013-xxx045 | BF20: Skyline Opulence Round Bracket with Cover | BH20: =IF(ISBLANK(BO20),"",IF(OR(BO20=L_Units),"Y","N")) -> N | BO20: Piece | BS20: HW | BT20: 2 | BU20: =IF(ISBLANK(BT20),"",PRODUCT(AE20,BT20)) -> 2 | BV20: =IF(ISBLANK(BT20),"",PRODUCT(AE20,BT20,i_systemQTY)) -> 2
D21: Open | E21: 0 | H21: Opulence Square Skyline | I21: 0 | AI21: White | AR21: AU | AS21: White | AT21: 0 | AV21: White | AW21: =IF(ISNUMBER(FIND("x",BE21)),IFERROR(INDEX(INDIRECT("T_FinishColour[ColourCode-"&IF(ISNUMBER(FIND("xxx",BE21)),"xxx",IF(ISNUMBER(FIND("xx",BE21)),"xx","error"))&AR21&"]"),MATCH(AV21,T_FinishColour[Finish / Colour],0)),""),"") -> 069 | AY21: =IF(AND(ISBLANK(BC21),ISBLANK(C21)),"HIDE",_xlfn.SWITCH(PRODUCT(C21:Z21,B21),2,"HEADING",1,"SHOW",0,"HIDE")) -> HIDE | BC21: SL01-9023-069045 | BE21: SL01-9023-xxx045 | BF21: Skyline Opulence Square Bracket with Cover | BH21: =IF(ISBLANK(BO21),"",IF(OR(BO21=L_Units),"Y","N")) -> N | BO21: Piece | BS21: HW | BT21: 2 | BU21: 2 | BV21: 2
D22: Open | E22: 0 | F22: Yes | G22: =IFERROR(IF(ISBLANK(F22),"",IF(FIND(F22,INDIRECT($F$16))>0,1,0)),0) -> 0 | H22: LX | I22: 0 | AI22: White | AR22: AU | AS22: =IF(ISNUMBER(FIND("x",BE22)),IFERROR(INDEX(AI22:AQ22,0,MATCH(AT22,AI22:AQ22,0)),IF(AI22<>"",AI22,i_DefaultColour)),"") -> White | AT22: 0 | AV22: =IF(ISNUMBER(FIND("x",BE22)),IFERROR(INDEX(AI22:AQ22,0,MATCH(AT22,AI22:AQ22,0)),AS22),"") -> White | AW22: =IF(ISNUMBER(FIND("x",BE22)),IFERROR(INDEX(INDIRECT("T_FinishColour[ColourCode-"&IF(ISNUMBER(FIND("xxx",BE22)),"xxx",IF(ISNUMBER(FIND("xx",BE22)),"xx","error"))&AR22&"]"),MATCH(AV22,T_FinishColour[Finish / Colour],0)),""),"") -> 069 | AY22: =IF(AND(ISBLANK(BC22),ISBLANK(C22)),"HIDE",_xlfn.SWITCH(PRODUCT(C22:Z22,B22),2,"HEADING",1,"SHOW",0,"HIDE")) -> HIDE | BC22: =_xlfn.IFNA(SUBSTITUTE(IF(AR22="AU",SUBSTITUTE(BE22,"xxx",AW22),SUBSTITUTE(SUBSTITUTE(BE22,"xx",AW22),"x","")),"LLL",BG22*100),BE22) -> RB08-4151-069040 | BE22: RB08-4151-xxx040 | BF22: LX Bracket Covers | BH22: =IF(ISBLANK(BO22),"",IF(OR(BO22=L_Units),"Y","N")) -> N | BJ22: =IFERROR(_xlfn.SINGLE(IF(BH22="Y",((INDEX(#REF!,MATCH(BI22,#REF!,0),0))),"")),"") ->  | BL22: =IFERROR(IF(BH22="Y",INDIRECT(BK22)-BJ22,""),"") ->  | BM22: =IFERROR(IF(BH22="Y",BL22,""),"") ->  | BN22: =IFERROR(IF(BH22="Y",TEXT(BL22/25.4,"0"&IF(ABS(BL22/25.4-ROUND(BL22/25.4,0))>1/32,"-0/"&CHOOSE(ROUND(MOD(BL22/25.4,1)*16,0),16,8,16,4,16,8,16,2,16,8,16,4,16,8,16),"")),""),"") ->  | BO22: Pair | BP22: =IFERROR(IF(ISBLANK(BC22),"",INDEX(T_NAV_AU[Base Unit of Measure],MATCH(BC22,T_NAV_AU[No.],0))),"") -> PAIR | BS22: HW | BT22: 1 | BU22: =IF(ISBLANK(BT22),"",PRODUCT(AE22,BT22)) -> 1 | BV22: =IF(ISBLANK(BT22),"",PRODUCT(AE22,BT22,i_systemQTY)) -> 1 | BW22: =IFERROR(INDEX(INDIRECT("T_NAV_"&i_Location&"["&i_Location&"]"),MATCH(1,--(BC22=INDIRECT("T_NAV_"&i_Location&"[No.]"))*--((INDIRECT("T_NAV_"&i_Location&"["&i_Location&"]"))<>""),0))/IF(AND(BQ22="METRE",BG22<>"",BR22=""),BG22,1),"") ->  | BX22: =IFERROR(IF(AND(AY22="SHOW",BW22<>""),BW22*BV22*IF(AND(BM22<>"",OR(BP22="LENGTH",BP22="METRE",BP22="ROLL")),(BL22/1000),1),""),"") ->  | BY22: =IF(BX22<>"",(INDIRECT("i_"&BS22&"discount"))*BX22,"") ->  | BZ22: =IFERROR(IF(BX22<>"",BX22-BY22,""),"") -> 
B23: 2 | C23: =C24 -> 0 | AW23: =IF(ISNUMBER(FIND("x",BE23)),IFERROR(INDEX(INDIRECT("T_FinishColour[ColourCode-"&IF(ISNUMBER(FIND("xxx",BE23)),"xxx",IF(ISNUMBER(FIND("xx",BE23)),"xx","error"))&AR23&"]"),MATCH(AV23,T_FinishColour[Finish / Colour],0)),""),"") ->  | AY23: =IF(AND(ISBLANK(BC23),ISBLANK(C23)),"HIDE",_xlfn.SWITCH(PRODUCT(C23:Z23,B23),2,"HEADING",1,"SHOW",0,"HIDE")) -> HIDE | BC23: =_xlfn.IFNA(SUBSTITUTE(IF(AR23="AU",SUBSTITUTE(BE23,"xxx",AW23),SUBSTITUTE(SUBSTITUTE(BE23,"xx",AW23),"x","")),"LLL","580"),BE23) ->  | BH23: =IF(ISBLANK(BO23),"",IF(OR(BO23=L_Units),"Y","N")) ->  | BJ23: =IFERROR(_xlfn.SINGLE(IF(BH23="Y",((INDEX(#REF!,MATCH(BI23,#REF!,0),0))),"")),"") ->  | BL23: =IFERROR(IF(BH23="Y",INDIRECT(BK23)-BJ23,""),"") ->  | BP23: =IFERROR(IF(ISBLANK(BC23),"",INDEX(T_NAV_AU[Base Unit of Measure],MATCH(BC23,T_NAV_AU[No.],0))),"") ->  | BW23: =IFERROR(INDEX(INDIRECT("T_NAV_"&i_Location&"["&i_Location&"]"),MATCH(1,--(BC23=INDIRECT("T_NAV_"&i_Location&"[No.]"))*--((INDIRECT("T_NAV_"&i_Location&"["&i_Location&"]"))<>""),0))/IF(AND(BQ23="METRE",BG23<>"",BR23=""),BG23,1),"") ->  | BX23: =IFERROR(IF(AND(AY23="SHOW",BW23<>""),BW23*BV23*IF(AND(BM23<>"",OR(BP23="LENGTH",BP23="METRE",BP23="ROLL")),(BL23/1000),1),""),"") ->  | BY23: =IF(BX23<>"",(INDIRECT("i_"&BS23&"discount"))*BX23,"") ->  | BZ23: =IFERROR(IF(BX23<>"",BX23-BY23,""),"") -> 
B24: 2 | C24: =IF(COUNTIF(AY25:AY40,"SHOW")>0,1,0) -> 0 | D24: i_ControlType | F24: i_Tube | AW24: =IF(ISNUMBER(FIND("x",BE24)),IFERROR(INDEX(INDIRECT("T_FinishColour[ColourCode-"&IF(ISNUMBER(FIND("xxx",BE24)),"xxx",IF(ISNUMBER(FIND("xx",BE24)),"xx","error"))&AR24&"]"),MATCH(AV24,T_FinishColour[Finish / Colour],0)),""),"") ->  | AY24: =IF(AND(ISBLANK(BC24),ISBLANK(C24)),"HIDE",_xlfn.SWITCH(PRODUCT(C24:Z24,B24),2,"HEADING",1,"SHOW",0,"HIDE")) -> HIDE | BC24: EASY SPRING AIR | BE24: EASY SPRING AIR | BJ24: =IFERROR(_xlfn.SINGLE(IF(BH24="Y",((INDEX(#REF!,MATCH(BI24,#REF!,0),0))),"")),"") ->  | BP24: =IFERROR(IF(ISBLANK(BC24),"",INDEX(T_NAV_AU[Base Unit of Measure],MATCH(BC24,T_NAV_AU[No.],0))),"") ->  | BV24: =IF(ISBLANK(BT24),"",PRODUCT(AE24,BT24,i_systemQTY)) ->  | BW24: =IFERROR(INDEX(INDIRECT("T_NAV_"&i_Location&"["&i_Location&"]"),MATCH(1,--(BC24=INDIRECT("T_NAV_"&i_Location&"[No.]"))*--((INDIRECT("T_NAV_"&i_Location&"["&i_Location&"]"))<>""),0))/IF(AND(BQ24="METRE",BG24<>"",BR24=""),BG24,1),"") -> 
D25: MICRO | E25: =IFERROR(IF(ISBLANK(D25),"",IF(FIND(D25,INDIRECT($D$24))>0,1,0)),0) -> 0 | F25: " | G25: =IFERROR(IF(ISBLANK(F25),"",IF(FIND(F25,INDIRECT($F$24))>0,1,0)),0) -> 0 | I25: =IFERROR(IF(ISBLANK(H25),"",IF(FIND(H25,INDIRECT($H$24))>0,1,0)),0) ->  | K25: =IFERROR(IF(ISBLANK(J25),"",IF(FIND(J25,INDIRECT($J$24))>0,1,0)),0) ->  | M25: =IFERROR(IF(ISBLANK(L25),"",IF(FIND(L25,INDIRECT($L$24))>0,1,0)),0) ->  | AI25: White | AR25: AU | AS25: =IF(ISNUMBER(FIND("x",BE25)),IFERROR(INDEX(AI25:AQ25,0,MATCH(AT25,AI25:AQ25,0)),IF(AI25<>"",AI25,i_DefaultColour)),"") -> White | AT25: =i_Finish -> 0 | AV25: =IF(ISNUMBER(FIND("x",BE25)),IFERROR(INDEX(AI25:AQ25,0,MATCH(AT25,AI25:AQ25,0)),AS25),"") -> White | AW25: =IF(ISNUMBER(FIND("x",BE25)),IFERROR(INDEX(INDIRECT("T_FinishColour[ColourCode-"&IF(ISNUMBER(FIND("xxx",BE25)),"xxx",IF(ISNUMBER(FIND("xx",BE25)),"xx","error"))&AR25&"]"),MATCH(AV25,T_FinishColour[Finish / Colour],0)),""),"") -> 069 | AY25: =IF(AND(ISBLANK(BC25),ISBLANK(C25)),"HIDE",_xlfn.SWITCH(PRODUCT(C25:Z25,B25),2,"HEADING",1,"SHOW",0,"HIDE")) -> HIDE | BC25: RB12-3828-069038 | BE25: RB12-3828-xxx038 | BF25: Easy Spring Air MICRO w. Adjust - 1.5" LH | BH25: =IF(ISBLANK(BO25),"",IF(OR(BO25=L_Units),"Y","N")) -> N | BJ25: =IFERROR(_xlfn.SINGLE(IF(BH25="Y",((INDEX(#REF!,MATCH(BI25,#REF!,0),0))),"")),"") ->  | BM25: =IFERROR(IF(BH25="Y",BL25,""),"") ->  | BN25: =IFERROR(IF(BH25="Y",TEXT(BL25/25.4,"0"&IF(ABS(BL25/25.4-ROUND(BL25/25.4,0))>1/32,"-0/"&CHOOSE(ROUND(MOD(BL25/25.4,1)*16,0),16,8,16,4,16,8,16,2,16,8,16,4,16,8,16),"")),""),"") ->  | BO25: Piece | BP25: =IFERROR(IF(ISBLANK(BC25),"",INDEX(T_NAV_AU[Base Unit of Measure],MATCH(BC25,T_NAV_AU[No.],0))),"") ->  | BS25: HW | BT25: 1 | BU25: 1 | BV25: 1 | BW25: =IFERROR(INDEX(INDIRECT("T_NAV_"&i_Location&"["&i_Location&"]"),MATCH(1,--(BC25=INDIRECT("T_NAV_"&i_Location&"[No.]"))*--((INDIRECT("T_NAV_"&i_Location&"["&i_Location&"]"))<>""),0))/IF(AND(BQ25="METRE",BG25<>"",BR25=""),BG25,1),"") -> 
D26: SMALL | E26: =IFERROR(IF(ISBLANK(D26),"",IF(FIND(D26,INDIRECT($D$24))>0,1,0)),0) -> 0 | F26: " | G26: =IFERROR(IF(ISBLANK(F26),"",IF(FIND(F26,INDIRECT($F$24))>0,1,0)),0) -> 0 | AI26: White | AR26: AU | AS26: =IF(ISNUMBER(FIND("x",BE26)),IFERROR(INDEX(AI26:AQ26,0,MATCH(AT26,AI26:AQ26,0)),IF(AI26<>"",AI26,i_DefaultColour)),"") -> White | AT26: 0 | AV26: =IF(ISNUMBER(FIND("x",BE26)),IFERROR(INDEX(AI26:AQ26,0,MATCH(AT26,AI26:AQ26,0)),AS26),"") -> White | AW26: =IF(ISNUMBER(FIND("x",BE26)),IFERROR(INDEX(INDIRECT("T_FinishColour[ColourCode-"&IF(ISNUMBER(FIND("xxx",BE26)),"xxx",IF(ISNUMBER(FIND("xx",BE26)),"xx","error"))&AR26&"]"),MATCH(AV26,T_FinishColour[Finish / Colour],0)),""),"") -> 069 | AY26: =IF(AND(ISBLANK(BC26),ISBLANK(C26)),"HIDE",_xlfn.SWITCH(PRODUCT(C26:Z26,B26),2,"HEADING",1,"SHOW",0,"HIDE")) -> HIDE | BC26: =_xlfn.IFNA(SUBSTITUTE(IF(AR26="AU",SUBSTITUTE(BE26,"xxx",AW26),SUBSTITUTE(SUBSTITUTE(BE26,"xx",AW26),"x","")),"LLL","580"),BE26) -> RB12-3829-069038 | BE26: RB12-3829-xxx038 | BF26: Easy Spring Air SMALL w. Adjust - 1.5" LH | BH26: =IF(ISBLANK(BO26),"",IF(OR(BO26=L_Units),"Y","N")) -> N | BJ26: =IFERROR(_xlfn.SINGLE(IF(BH26="Y",((INDEX(#REF!,MATCH(BI26,#REF!,0),0))),"")),"") ->  | BL26: =IFERROR(IF(BH26="Y",INDIRECT(BK26)-BJ26,""),"") ->  | BM26: =IFERROR(IF(BH26="Y",BL26,""),"") ->  | BN26: =IFERROR(IF(BH26="Y",TEXT(BL26/25.4,"0"&IF(ABS(BL26/25.4-ROUND(BL26/25.4,0))>1/32,"-0/"&CHOOSE(ROUND(MOD(BL26/25.4,1)*16,0),16,8,16,4,16,8,16,2,16,8,16,4,16,8,16),"")),""),"") ->  | BO26: Piece | BP26: =IFERROR(IF(ISBLANK(BC26),"",INDEX(T_NAV_AU[Base Unit of Measure],MATCH(BC26,T_NAV_AU[No.],0))),"") ->  | BS26: HW | BT26: 1 | BU26: =IF(ISBLANK(BT26),"",PRODUCT(AE26,BT26)) -> 1 | BV26: =IF(ISBLANK(BT26),"",PRODUCT(AE26,BT26,i_systemQTY)) -> 1 | BW26: =IFERROR(INDEX(INDIRECT("T_NAV_"&i_Location&"["&i_Location&"]"),MATCH(1,--(BC26=INDIRECT("T_NAV_"&i_Location&"[No.]"))*--((INDIRECT("T_NAV_"&i_Location&"["&i_Location&"]"))<>""),0))/IF(AND(BQ26="METRE",BG26<>"",BR26=""),BG26,1),"") ->  | BX26: =IFERROR(IF(AND(AY26="SHOW",BW26<>""),BW26*BV26*IF(AND(BM26<>"",OR(BP26="LENGTH",BP26="METRE",BP26="ROLL")),(BL26/1000),1),""),"") ->  | BY26: =IF(BX26<>"",(INDIRECT("i_"&BS26&"discount"))*BX26,"") ->  | BZ26: =IFERROR(IF(BX26<>"",BX26-BY26,""),"") -> 
D27: MINI | E27: 0 | F27: " | G27: =IFERROR(IF(ISBLANK(F27),"",IF(FIND(F27,INDIRECT($F$24))>0,1,0)),0) -> 0 | AI27: White | AR27: AU | AS27: White | AT27: 0 | AV27: White | AW27: =IF(ISNUMBER(FIND("x",BE27)),IFERROR(INDEX(INDIRECT("T_FinishColour[ColourCode-"&IF(ISNUMBER(FIND("xxx",BE27)),"xxx",IF(ISNUMBER(FIND("xx",BE27)),"xx","error"))&AR27&"]"),MATCH(AV27,T_FinishColour[Finish / Colour],0)),""),"") -> 069 | AY27: =IF(AND(ISBLANK(BC27),ISBLANK(C27)),"HIDE",_xlfn.SWITCH(PRODUCT(C27:Z27,B27),2,"HEADING",1,"SHOW",0,"HIDE")) -> HIDE | BC27: RB12-3831-069038 | BE27: RB12-3831-xxx038 | BF27: Easy Spring Air MINI w. Adjust - 1.5" LH | BH27: =IF(ISBLANK(BO27),"",IF(OR(BO27=L_Units),"Y","N")) -> N | BJ27: =IFERROR(_xlfn.SINGLE(IF(BH27="Y",((INDEX(#REF!,MATCH(BI27,#REF!,0),0))),"")),"") ->  | BO27: Piece | BP27: =IFERROR(IF(ISBLANK(BC27),"",INDEX(T_NAV_AU[Base Unit of Measure],MATCH(BC27,T_NAV_AU[No.],0))),"") ->  | BS27: HW | BT27: 1 | BU27: 1 | BV27: 1 | BW27: =IFERROR(INDEX(INDIRECT("T_NAV_"&i_Location&"["&i_Location&"]"),MATCH(1,--(BC27=INDIRECT("T_NAV_"&i_Location&"[No.]"))*--((INDIRECT("T_NAV_"&i_Location&"["&i_Location&"]"))<>""),0))/IF(AND(BQ27="METRE",BG27<>"",BR27=""),BG27,1),"") -> 
D28: LIGHT | E28: =IFERROR(IF(ISBLANK(D28),"",IF(FIND(D28,INDIRECT($D$24))>0,1,0)),0) -> 0 | F28: " | G28: 0 | AI28: White | AR28: AU | AS28: White | AT28: 0 | AV28: White | AW28: =IF(ISNUMBER(FIND("x",BE28)),IFERROR(INDEX(INDIRECT("T_FinishColour[ColourCode-"&IF(ISNUMBER(FIND("xxx",BE28)),"xxx",IF(ISNUMBER(FIND("xx",BE28)),"xx","error"))&AR28&"]"),MATCH(AV28,T_FinishColour[Finish / Colour],0)),""),"") -> 069 | AY28: =IF(AND(ISBLANK(BC28),ISBLANK(C28)),"HIDE",_xlfn.SWITCH(PRODUCT(C28:Z28,B28),2,"HEADING",1,"SHOW",0,"HIDE")) -> HIDE | BC28: RB12-3832-069038 | BE28: RB12-3832-xxx038 | BF28: Easy Spring Air LIGHT w. Adjust - 1.5" LH | BH28: =IF(ISBLANK(BO28),"",IF(OR(BO28=L_Units),"Y","N")) -> N | BJ28: =IFERROR(_xlfn.SINGLE(IF(BH28="Y",((INDEX(#REF!,MATCH(BI28,#REF!,0),0))),"")),"") ->  | BO28: Piece | BP28: =IFERROR(IF(ISBLANK(BC28),"",INDEX(T_NAV_AU[Base Unit of Measure],MATCH(BC28,T_NAV_AU[No.],0))),"") ->  | BS28: HW | BT28: 1 | BU28: 1 | BV28: 1 | BW28: =IFERROR(INDEX(INDIRECT("T_NAV_"&i_Location&"["&i_Location&"]"),MATCH(1,--(BC28=INDIRECT("T_NAV_"&i_Location&"[No.]"))*--((INDIRECT("T_NAV_"&i_Location&"["&i_Location&"]"))<>""),0))/IF(AND(BQ28="METRE",BG28<>"",BR28=""),BG28,1),"") -> 
D29: MED | E29: 0 | F29: " | G29: 0 | AI29: White | AR29: AU | AS29: White | AT29: 0 | AV29: White | AW29: =IF(ISNUMBER(FIND("x",BE29)),IFERROR(INDEX(INDIRECT("T_FinishColour[ColourCode-"&IF(ISNUMBER(FIND("xxx",BE29)),"xxx",IF(ISNUMBER(FIND("xx",BE29)),"xx","error"))&AR29&"]"),MATCH(AV29,T_FinishColour[Finish / Colour],0)),""),"") -> 069 | AY29: =IF(AND(ISBLANK(BC29),ISBLANK(C29)),"HIDE",_xlfn.SWITCH(PRODUCT(C29:Z29,B29),2,"HEADING",1,"SHOW",0,"HIDE")) -> HIDE | BC29: RB12-3833-069038 | BE29: RB12-3833-xxx038 | BF29: Easy Spring Air MEDIUM w. Adjust - 1.5" LH | BH29: =IF(ISBLANK(BO29),"",IF(OR(BO29=L_Units),"Y","N")) -> N | BJ29: =IFERROR(_xlfn.SINGLE(IF(BH29="Y",((INDEX(#REF!,MATCH(BI29,#REF!,0),0))),"")),"") ->  | BO29: Piece | BP29: =IFERROR(IF(ISBLANK(BC29),"",INDEX(T_NAV_AU[Base Unit of Measure],MATCH(BC29,T_NAV_AU[No.],0))),"") ->  | BS29: HW | BT29: 1 | BU29: =IF(ISBLANK(BT29),"",PRODUCT(AE29,BT29)) -> 1 | BV29: 1 | BW29: =IFERROR(INDEX(INDIRECT("T_NAV_"&i_Location&"["&i_Location&"]"),MATCH(1,--(BC29=INDIRECT("T_NAV_"&i_Location&"[No.]"))*--((INDIRECT("T_NAV_"&i_Location&"["&i_Location&"]"))<>""),0))/IF(AND(BQ29="METRE",BG29<>"",BR29=""),BG29,1),"") -> 
D30: HEAVY | E30: =IFERROR(IF(ISBLANK(D30),"",IF(FIND(D30,INDIRECT($D$24))>0,1,0)),0) -> 0 | F30: " | G30: 0 | AI30: White | AR30: AU | AS30: White | AT30: 0 | AV30: White | AW30: =IF(ISNUMBER(FIND("x",BE30)),IFERROR(INDEX(INDIRECT("T_FinishColour[ColourCode-"&IF(ISNUMBER(FIND("xxx",BE30)),"xxx",IF(ISNUMBER(FIND("xx",BE30)),"xx","error"))&AR30&"]"),MATCH(AV30,T_FinishColour[Finish / Colour],0)),""),"") -> 069 | AY30: =IF(AND(ISBLANK(BC30),ISBLANK(C30)),"HIDE",_xlfn.SWITCH(PRODUCT(C30:Z30,B30),2,"HEADING",1,"SHOW",0,"HIDE")) -> HIDE | BC30: RB12-3834-069038 | BE30: RB12-3834-xxx038 | BF30: Easy Spring Air HEAVY w. Adjust - 1.5" LH | BH30: =IF(ISBLANK(BO30),"",IF(OR(BO30=L_Units),"Y","N")) -> N | BJ30: =IFERROR(_xlfn.SINGLE(IF(BH30="Y",((INDEX(#REF!,MATCH(BI30,#REF!,0),0))),"")),"") ->  | BO30: Piece | BP30: =IFERROR(IF(ISBLANK(BC30),"",INDEX(T_NAV_AU[Base Unit of Measure],MATCH(BC30,T_NAV_AU[No.],0))),"") ->  | BS30: HW | BT30: 1 | BU30: 1 | BV30: 1 | BW30: =IFERROR(INDEX(INDIRECT("T_NAV_"&i_Location&"["&i_Location&"]"),MATCH(1,--(BC30=INDIRECT("T_NAV_"&i_Location&"[No.]"))*--((INDIRECT("T_NAV_"&i_Location&"["&i_Location&"]"))<>""),0))/IF(AND(BQ30="METRE",BG30<>"",BR30=""),BG30,1),"") -> 
E31: =IFERROR(IF(ISBLANK(D31),"",IF(FIND(D31,INDIRECT($D$24))>0,1,0)),0) ->  | F31: 2" | G31: =IFERROR(IF(ISBLANK(F31),"",IF(FIND(F31,INDIRECT($F$24))>0,1,0)),0) -> 0 | AE31: =IFERROR(IF(AND(AA31="Y",PRODUCT(AB31:AD31)=0),o_nScreens,IF(PRODUCT(AB31:AD31)=0,"",PRODUCT(AB31:AD31))),"") ->  | AI31: White | AJ31: Black | AR31: AU | AS31: White | AV31: White | AW31: =IF(ISNUMBER(FIND("x",BE31)),IFERROR(INDEX(INDIRECT("T_FinishColour[ColourCode-"&IF(ISNUMBER(FIND("xxx",BE31)),"xxx",IF(ISNUMBER(FIND("xx",BE31)),"xx","error"))&AR31&"]"),MATCH(AV31,T_FinishColour[Finish / Colour],0)),""),"") -> 069 | AY31: =IF(AND(ISBLANK(BC31),ISBLANK(C31)),"HIDE",_xlfn.SWITCH(PRODUCT(C31:Z31,B31),2,"HEADING",1,"SHOW",0,"HIDE")) -> HIDE | BC31: RS01-0107-069050 | BE31: RS01-0107-xxx050 | BF31: Easy Spring Air Adapter kit, 2" | BH31: N | BO31: Piece | BP31: =IFERROR(IF(ISBLANK(BC31),"",INDEX(T_NAV_AU[Base Unit of Measure],MATCH(BC31,T_NAV_AU[No.],0))),"") ->  | BS31: HW | BT31: 1 | BU31: 1 | BV31: 1 | BW31: =IFERROR(INDEX(INDIRECT("T_NAV_"&i_Location&"["&i_Location&"]"),MATCH(1,--(BC31=INDIRECT("T_NAV_"&i_Location&"[No.]"))*--((INDIRECT("T_NAV_"&i_Location&"["&i_Location&"]"))<>""),0))/IF(AND(BQ31="METRE",BG31<>"",BR31=""),BG31,1),"") ->  | BX31: =IFERROR(IF(AND(AY31="SHOW",BW31<>""),BW31*BV31*IF(AND(BM31<>"",OR(BP31="LENGTH",BP31="METRE",BP31="ROLL")),(BL31/1000),1),""),"") ->  | BY31: =IF(BX31<>"",(INDIRECT("i_"&BS31&"discount"))*BX31,"") ->  | BZ31: =IFERROR(IF(BX31<>"",BX31-BY31,""),"") -> 
D32: MICRO | E32: 0 | F32: S45 | G32: 0 | AE32: =IFERROR(IF(AND(AA32="Y",PRODUCT(AB32:AD32)=0),o_nScreens,IF(PRODUCT(AB32:AD32)=0,"",PRODUCT(AB32:AD32))),"") ->  | AI32: White | AR32: AU | AS32: White | AV32: White | AW32: =IF(ISNUMBER(FIND("x",BE32)),IFERROR(INDEX(INDIRECT("T_FinishColour[ColourCode-"&IF(ISNUMBER(FIND("xxx",BE32)),"xxx",IF(ISNUMBER(FIND("xx",BE32)),"xx","error"))&AR32&"]"),MATCH(AV32,T_FinishColour[Finish / Colour],0)),""),"") -> 069 | AY32: =IF(AND(ISBLANK(BC32),ISBLANK(C32)),"HIDE",_xlfn.SWITCH(PRODUCT(C32:Z32,B32),2,"HEADING",1,"SHOW",0,"HIDE")) -> HIDE | BC32: =_xlfn.IFNA(SUBSTITUTE(IF(AR32="AU",SUBSTITUTE(BE32,"xxx",AW32),SUBSTITUTE(SUBSTITUTE(BE32,"xx",AW32),"x","")),"LLL","580"),BE32) -> RB12-4528-069045 | BE32: RB12-4528-xxx045 | BF32: Easy Spring Air MICRO w. Adjust - S45 LH | BH32: N | BL32: =IFERROR(IF(BH32="Y",INDIRECT(BK32)-BJ32,""),"") ->  | BM32: =IFERROR(IF(BH32="Y",BL32,""),"") ->  | BN32: =IFERROR(IF(BH32="Y",TEXT(BL32/25.4,"0"&IF(ABS(BL32/25.4-ROUND(BL32/25.4,0))>1/32,"-0/"&CHOOSE(ROUND(MOD(BL32/25.4,1)*16,0),16,8,16,4,16,8,16,2,16,8,16,4,16,8,16),"")),""),"") ->  | BO32: Piece | BP32: =IFERROR(IF(ISBLANK(BC32),"",INDEX(T_NAV_AU[Base Unit of Measure],MATCH(BC32,T_NAV_AU[No.],0))),"") -> PIECE | BS32: HW | BT32: 1 | BU32: =IF(ISBLANK(BT32),"",PRODUCT(AE32,BT32)) -> 1 | BV32: =IF(ISBLANK(BT32),"",PRODUCT(AE32,BT32,i_systemQTY)) -> 1 | BW32: =IFERROR(INDEX(INDIRECT("T_NAV_"&i_Location&"["&i_Location&"]"),MATCH(1,--(BC32=INDIRECT("T_NAV_"&i_Location&"[No.]"))*--((INDIRECT("T_NAV_"&i_Location&"["&i_Location&"]"))<>""),0))/IF(AND(BQ32="METRE",BG32<>"",BR32=""),BG32,1),"") ->  | BX32: =IFERROR(IF(AND(AY32="SHOW",BW32<>""),BW32*BV32*IF(AND(BM32<>"",OR(BP32="LENGTH",BP32="METRE",BP32="ROLL")),(BL32/1000),1),""),"") ->  | BY32: =IF(BX32<>"",(INDIRECT("i_"&BS32&"discount"))*BX32,"") ->  | BZ32: =IFERROR(IF(BX32<>"",BX32-BY32,""),"") -> 
D33: SMALL | E33: 0 | F33: S45 | G33: 0 | AE33: =IFERROR(IF(AND(AA33="Y",PRODUCT(AB33:AD33)=0),o_nScreens,IF(PRODUCT(AB33:AD33)=0,"",PRODUCT(AB33:AD33))),"") ->  | AI33: White | AR33: AU | AS33: White | AV33: White | AW33: =IF(ISNUMBER(FIND("x",BE33)),IFERROR(INDEX(INDIRECT("T_FinishColour[ColourCode-"&IF(ISNUMBER(FIND("xxx",BE33)),"xxx",IF(ISNUMBER(FIND("xx",BE33)),"xx","error"))&AR33&"]"),MATCH(AV33,T_FinishColour[Finish / Colour],0)),""),"") -> 069 | AY33: =IF(AND(ISBLANK(BC33),ISBLANK(C33)),"HIDE",_xlfn.SWITCH(PRODUCT(C33:Z33,B33),2,"HEADING",1,"SHOW",0,"HIDE")) -> HIDE | BC33: RB12-4529-069045 | BE33: RB12-4529-xxx045 | BF33: Easy Spring Air SMALL w. Adjust - S45 LH | BH33: N | BL33: =IFERROR(IF(BH33="Y",INDIRECT(BK33)-BJ33,""),"") ->  | BM33: =IFERROR(IF(BH33="Y",BL33,""),"") ->  | BN33: =IFERROR(IF(BH33="Y",TEXT(BL33/25.4,"0"&IF(ABS(BL33/25.4-ROUND(BL33/25.4,0))>1/32,"-0/"&CHOOSE(ROUND(MOD(BL33/25.4,1)*16,0),16,8,16,4,16,8,16,2,16,8,16,4,16,8,16),"")),""),"") ->  | BO33: Piece | BP33: =IFERROR(IF(ISBLANK(BC33),"",INDEX(T_NAV_AU[Base Unit of Measure],MATCH(BC33,T_NAV_AU[No.],0))),"") -> PIECE | BS33: HW | BT33: 1 | BU33: 1 | BV33: =IF(ISBLANK(BT33),"",PRODUCT(AE33,BT33,i_systemQTY)) -> 1 | BW33: =IFERROR(INDEX(INDIRECT("T_NAV_"&i_Location&"["&i_Location&"]"),MATCH(1,--(BC33=INDIRECT("T_NAV_"&i_Location&"[No.]"))*--((INDIRECT("T_NAV_"&i_Location&"["&i_Location&"]"))<>""),0))/IF(AND(BQ33="METRE",BG33<>"",BR33=""),BG33,1),"") ->  | BX33: =IFERROR(IF(AND(AY33="SHOW",BW33<>""),BW33*BV33*IF(AND(BM33<>"",OR(BP33="LENGTH",BP33="METRE",BP33="ROLL")),(BL33/1000),1),""),"") ->  | BY33: =IF(BX33<>"",(INDIRECT("i_"&BS33&"discount"))*BX33,"") ->  | BZ33: =IFERROR(IF(BX33<>"",BX33-BY33,""),"") -> 
D34: MINI | E34: 0 | F34: S45 | G34: 0 | AI34: White | AR34: AU | AS34: White | AV34: White | AW34: =IF(ISNUMBER(FIND("x",BE34)),IFERROR(INDEX(INDIRECT("T_FinishColour[ColourCode-"&IF(ISNUMBER(FIND("xxx",BE34)),"xxx",IF(ISNUMBER(FIND("xx",BE34)),"xx","error"))&AR34&"]"),MATCH(AV34,T_FinishColour[Finish / Colour],0)),""),"") -> 069 | AY34: =IF(AND(ISBLANK(BC34),ISBLANK(C34)),"HIDE",_xlfn.SWITCH(PRODUCT(C34:Z34,B34),2,"HEADING",1,"SHOW",0,"HIDE")) -> HIDE | BC34: RB12-4531-069045 | BE34: RB12-4531-xxx045 | BF34: Easy Spring Air MINI w. Adjust - S45 LH | BH34: N | BO34: Piece | BP34: =IFERROR(IF(ISBLANK(BC34),"",INDEX(T_NAV_AU[Base Unit of Measure],MATCH(BC34,T_NAV_AU[No.],0))),"") -> PIECE | BS34: HW | BT34: 1 | BU34: =IF(ISBLANK(BT34),"",PRODUCT(AE34,BT34)) -> 1 | BV34: 1 | BW34: =IFERROR(INDEX(INDIRECT("T_NAV_"&i_Location&"["&i_Location&"]"),MATCH(1,--(BC34=INDIRECT("T_NAV_"&i_Location&"[No.]"))*--((INDIRECT("T_NAV_"&i_Location&"["&i_Location&"]"))<>""),0))/IF(AND(BQ34="METRE",BG34<>"",BR34=""),BG34,1),"") -> 
D35: LIGHT | E35: 0 | F35: S45 | G35: 0 | AI35: White | AR35: AU | AS35: White | AV35: White | AW35: =IF(ISNUMBER(FIND("x",BE35)),IFERROR(INDEX(INDIRECT("T_FinishColour[ColourCode-"&IF(ISNUMBER(FIND("xxx",BE35)),"xxx",IF(ISNUMBER(FIND("xx",BE35)),"xx","error"))&AR35&"]"),MATCH(AV35,T_FinishColour[Finish / Colour],0)),""),"") -> 069 | AY35: =IF(AND(ISBLANK(BC35),ISBLANK(C35)),"HIDE",_xlfn.SWITCH(PRODUCT(C35:Z35,B35),2,"HEADING",1,"SHOW",0,"HIDE")) -> HIDE | BC35: RB12-4532-069045 | BE35: RB12-4532-xxx045 | BF35: Easy Spring Air LIGHT w. Adjust - S45 LH | BH35: N | BO35: Piece | BP35: =IFERROR(IF(ISBLANK(BC35),"",INDEX(T_NAV_AU[Base Unit of Measure],MATCH(BC35,T_NAV_AU[No.],0))),"") -> PIECE | BS35: HW | BT35: 1 | BU35: 1 | BV35: 1 | BW35: =IFERROR(INDEX(INDIRECT("T_NAV_"&i_Location&"["&i_Location&"]"),MATCH(1,--(BC35=INDIRECT("T_NAV_"&i_Location&"[No.]"))*--((INDIRECT("T_NAV_"&i_Location&"["&i_Location&"]"))<>""),0))/IF(AND(BQ35="METRE",BG35<>"",BR35=""),BG35,1),"") -> 
D36: MED | E36: 0 | F36: S45 | G36: 0 | AI36: White | AR36: AU | AS36: White | AV36: White | AW36: =IF(ISNUMBER(FIND("x",BE36)),IFERROR(INDEX(INDIRECT("T_FinishColour[ColourCode-"&IF(ISNUMBER(FIND("xxx",BE36)),"xxx",IF(ISNUMBER(FIND("xx",BE36)),"xx","error"))&AR36&"]"),MATCH(AV36,T_FinishColour[Finish / Colour],0)),""),"") -> 069 | AY36: =IF(AND(ISBLANK(BC36),ISBLANK(C36)),"HIDE",_xlfn.SWITCH(PRODUCT(C36:Z36,B36),2,"HEADING",1,"SHOW",0,"HIDE")) -> HIDE | BC36: RB12-4533-069045 | BE36: RB12-4533-xxx045 | BF36: Easy Spring Air MEDIUM w. Adjust - S45 LH | BH36: N | BO36: Piece | BP36: =IFERROR(IF(ISBLANK(BC36),"",INDEX(T_NAV_AU[Base Unit of Measure],MATCH(BC36,T_NAV_AU[No.],0))),"") -> PIECE | BS36: HW | BT36: 1 | BU36: 1 | BV36: 1 | BW36: =IFERROR(INDEX(INDIRECT("T_NAV_"&i_Location&"["&i_Location&"]"),MATCH(1,--(BC36=INDIRECT("T_NAV_"&i_Location&"[No.]"))*--((INDIRECT("T_NAV_"&i_Location&"["&i_Location&"]"))<>""),0))/IF(AND(BQ36="METRE",BG36<>"",BR36=""),BG36,1),"") -> 
D37: HEAVY | E37: 0 | F37: S45 | G37: =IFERROR(IF(ISBLANK(F37),"",IF(FIND(F37,INDIRECT($F$24))>0,1,0)),0) -> 0 | AI37: White | AR37: AU | AS37: White | AV37: White | AW37: =IF(ISNUMBER(FIND("x",BE37)),IFERROR(INDEX(INDIRECT("T_FinishColour[ColourCode-"&IF(ISNUMBER(FIND("xxx",BE37)),"xxx",IF(ISNUMBER(FIND("xx",BE37)),"xx","error"))&AR37&"]"),MATCH(AV37,T_FinishColour[Finish / Colour],0)),""),"") -> 069 | AY37: =IF(AND(ISBLANK(BC37),ISBLANK(C37)),"HIDE",_xlfn.SWITCH(PRODUCT(C37:Z37,B37),2,"HEADING",1,"SHOW",0,"HIDE")) -> HIDE | BC37: RB12-4534-069045 | BE37: RB12-4534-xxx045 | BF37: Easy Spring Air HEAVY w. Adjust - S45 LH | BH37: N | BO37: Piece | BP37: =IFERROR(IF(ISBLANK(BC37),"",INDEX(T_NAV_AU[Base Unit of Measure],MATCH(BC37,T_NAV_AU[No.],0))),"") -> PIECE | BS37: HW | BT37: 1 | BU37: 1 | BV37: 1 | BW37: =IFERROR(INDEX(INDIRECT("T_NAV_"&i_Location&"["&i_Location&"]"),MATCH(1,--(BC37=INDIRECT("T_NAV_"&i_Location&"[No.]"))*--((INDIRECT("T_NAV_"&i_Location&"["&i_Location&"]"))<>""),0))/IF(AND(BQ37="METRE",BG37<>"",BR37=""),BG37,1),"") -> 
AI38: White | AR38: AU | AW38: =IF(ISNUMBER(FIND("x",BE38)),IFERROR(INDEX(INDIRECT("T_FinishColour[ColourCode-"&IF(ISNUMBER(FIND("xxx",BE38)),"xxx",IF(ISNUMBER(FIND("xx",BE38)),"xx","error"))&AR38&"]"),MATCH(AV38,T_FinishColour[Finish / Colour],0)),""),"") ->  | AY38: =IF(AND(ISBLANK(BC38),ISBLANK(C38)),"HIDE",_xlfn.SWITCH(PRODUCT(C38:Z38,B38),2,"HEADING",1,"SHOW",0,"HIDE")) -> HIDE | BH38: N | BO38: Piece | BP38: =IFERROR(IF(ISBLANK(BC38),"",INDEX(T_NAV_AU[Base Unit of Measure],MATCH(BC38,T_NAV_AU[No.],0))),"") ->  | BS38: HW | BT38: 1 | BU38: 1 | BV38: 1 | BW38: =IFERROR(INDEX(INDIRECT("T_NAV_"&i_Location&"["&i_Location&"]"),MATCH(1,--(BC38=INDIRECT("T_NAV_"&i_Location&"[No.]"))*--((INDIRECT("T_NAV_"&i_Location&"["&i_Location&"]"))<>""),0))/IF(AND(BQ38="METRE",BG38<>"",BR38=""),BG38,1),"") -> 
AR39: AU | AV39: White | AW39: =IF(ISNUMBER(FIND("x",BE39)),IFERROR(INDEX(INDIRECT("T_FinishColour[ColourCode-"&IF(ISNUMBER(FIND("xxx",BE39)),"xxx",IF(ISNUMBER(FIND("xx",BE39)),"xx","error"))&AR39&"]"),MATCH(AV39,T_FinishColour[Finish / Colour],0)),""),"") ->  | AY39: =IF(AND(ISBLANK(BC39),ISBLANK(C39)),"HIDE",_xlfn.SWITCH(PRODUCT(C39:Z39,B39),2,"HEADING",1,"SHOW",0,"HIDE")) -> HIDE | BH39: N | BO39: Piece | BP39: =IFERROR(IF(ISBLANK(BC39),"",INDEX(T_NAV_AU[Base Unit of Measure],MATCH(BC39,T_NAV_AU[No.],0))),"") ->  | BS39: HW | BT39: 1 | BU39: 1 | BV39: 1 | BW39: =IFERROR(INDEX(INDIRECT("T_NAV_"&i_Location&"["&i_Location&"]"),MATCH(1,--(BC39=INDIRECT("T_NAV_"&i_Location&"[No.]"))*--((INDIRECT("T_NAV_"&i_Location&"["&i_Location&"]"))<>""),0))/IF(AND(BQ39="METRE",BG39<>"",BR39=""),BG39,1),"") -> 
AR40: AU | AV40: White | AW40: =IF(ISNUMBER(FIND("x",BE40)),IFERROR(INDEX(INDIRECT("T_FinishColour[ColourCode-"&IF(ISNUMBER(FIND("xxx",BE40)),"xxx",IF(ISNUMBER(FIND("xx",BE40)),"xx","error"))&AR40&"]"),MATCH(AV40,T_FinishColour[Finish / Colour],0)),""),"") ->  | AY40: =IF(AND(ISBLANK(BC40),ISBLANK(C40)),"HIDE",_xlfn.SWITCH(PRODUCT(C40:Z40,B40),2,"HEADING",1,"SHOW",0,"HIDE")) -> HIDE | BH40: N | BO40: Piece | BP40: =IFERROR(IF(ISBLANK(BC40),"",INDEX(T_NAV_AU[Base Unit of Measure],MATCH(BC40,T_NAV_AU[No.],0))),"") ->  | BS40: HW | BT40: 1 | BU40: 1 | BV40: 1 | BW40: =IFERROR(INDEX(INDIRECT("T_NAV_"&i_Location&"["&i_Location&"]"),MATCH(1,--(BC40=INDIRECT("T_NAV_"&i_Location&"[No.]"))*--((INDIRECT("T_NAV_"&i_Location&"["&i_Location&"]"))<>""),0))/IF(AND(BQ40="METRE",BG40<>"",BR40=""),BG40,1),"") -> 
B41: 2 | C41: =C42 -> 0 | AS41: =IF(ISNUMBER(FIND("x",BE41)),IFERROR(INDEX(AI41:AQ41,0,MATCH(AT41,AI41:AQ41,0)),IF(AI41<>"",AI41,i_DefaultColour)),"") ->  | AV41: =IF(ISNUMBER(FIND("x",BE41)),IFERROR(INDEX(AI41:AQ41,0,MATCH(AT41,AI41:AQ41,0)),AS41),"") ->  | AW41: =IF(ISNUMBER(FIND("x",BE41)),IFERROR(INDEX(INDIRECT("T_FinishColour[ColourCode-"&IF(ISNUMBER(FIND("xxx",BE41)),"xxx",IF(ISNUMBER(FIND("xx",BE41)),"xx","error"))&AR41&"]"),MATCH(AV41,T_FinishColour[Finish / Colour],0)),""),"") ->  | AY41: =IF(AND(ISBLANK(BC41),ISBLANK(C41)),"HIDE",_xlfn.SWITCH(PRODUCT(C41:Z41,B41),2,"HEADING",1,"SHOW",0,"HIDE")) -> HIDE | BC41: =_xlfn.IFNA(SUBSTITUTE(IF(AR41="AU",SUBSTITUTE(BE41,"xxx",AW41),SUBSTITUTE(SUBSTITUTE(BE41,"xx",AW41),"x","")),"LLL","580"),BE41) ->  | BJ41: =IFERROR(_xlfn.SINGLE(IF(BH41="Y",((INDEX(#REF!,MATCH(BI41,#REF!,0),0))),"")),"") ->  | BL41: =IFERROR(IF(BH41="Y",INDIRECT(BK41)-BJ41,""),"") ->  | BM41: =IFERROR(IF(BH41="Y",BL41,""),"") ->  | BN41: =IFERROR(IF(BH41="Y",TEXT(BL41/25.4,"0"&IF(ABS(BL41/25.4-ROUND(BL41/25.4,0))>1/32,"-0/"&CHOOSE(ROUND(MOD(BL41/25.4,1)*16,0),16,8,16,4,16,8,16,2,16,8,16,4,16,8,16),"")),""),"") ->  | BP41: =IFERROR(IF(ISBLANK(BC41),"",INDEX(T_NAV_AU[Base Unit of Measure],MATCH(BC41,T_NAV_AU[No.],0))),"") ->  | BU41: =IF(ISBLANK(BT41),"",PRODUCT(AE41,BT41)) ->  | BV41: =IF(ISBLANK(BT41),"",PRODUCT(AE41,BT41,i_systemQTY)) ->  | BW41: =IFERROR(INDEX(INDIRECT("T_NAV_"&i_Location&"["&i_Location&"]"),MATCH(1,--(BC41=INDIRECT("T_NAV_"&i_Location&"[No.]"))*--((INDIRECT("T_NAV_"&i_Location&"["&i_Location&"]"))<>""),0))/IF(AND(BQ41="METRE",BG41<>"",BR41=""),BG41,1),"") ->  | BX41: =IFERROR(IF(AND(AY41="SHOW",BW41<>""),BW41*BV41*IF(AND(BM41<>"",OR(BP41="LENGTH",BP41="METRE",BP41="ROLL")),(BL41/1000),1),""),"") ->  | BY41: =IF(BX41<>"",(INDIRECT("i_"&BS41&"discount"))*BX41,"") ->  | BZ41: =IFERROR(IF(BX41<>"",BX41-BY41,""),"") -> 
B42: 2 | C42: =IF(COUNTIF(AY43:AY50,"SHOW")>0,1,0) -> 0 | D42: i_Tube | F42: i_IdlerType | AS42: =IF(ISNUMBER(FIND("x",BE42)),IFERROR(INDEX(AI42:AQ42,0,MATCH(AT42,AI42:AQ42,0)),IF(AI42<>"",AI42,i_DefaultColour)),"") ->  | AV42: =IF(ISNUMBER(FIND("x",BE42)),IFERROR(INDEX(AI42:AQ42,0,MATCH(AT42,AI42:AQ42,0)),AS42),"") ->  | AW42: =IF(ISNUMBER(FIND("x",BE42)),IFERROR(INDEX(INDIRECT("T_FinishColour[ColourCode-"&IF(ISNUMBER(FIND("xxx",BE42)),"xxx",IF(ISNUMBER(FIND("xx",BE42)),"xx","error"))&AR42&"]"),MATCH(AV42,T_FinishColour[Finish / Colour],0)),""),"") ->  | AY42: =IF(AND(ISBLANK(BC42),ISBLANK(C42)),"HIDE",_xlfn.SWITCH(PRODUCT(C42:Z42,B42),2,"HEADING",1,"SHOW",0,"HIDE")) -> HIDE | BC42: IDLER | BE42: IDLER | BJ42: =IFERROR(_xlfn.SINGLE(IF(BH42="Y",((INDEX(#REF!,MATCH(BI42,#REF!,0),0))),"")),"") ->  | BL42: =IFERROR(IF(BH42="Y",INDIRECT(BK42)-BJ42,""),"") ->  | BM42: =IFERROR(IF(BH42="Y",BL42,""),"") ->  | BN42: =IFERROR(IF(BH42="Y",TEXT(BL42/25.4,"0"&IF(ABS(BL42/25.4-ROUND(BL42/25.4,0))>1/32,"-0/"&CHOOSE(ROUND(MOD(BL42/25.4,1)*16,0),16,8,16,4,16,8,16,2,16,8,16,4,16,8,16),"")),""),"") ->  | BP42: =IFERROR(IF(ISBLANK(BC42),"",INDEX(T_NAV_AU[Base Unit of Measure],MATCH(BC42,T_NAV_AU[No.],0))),"") ->  | BU42: =IF(ISBLANK(BT42),"",PRODUCT(AE42,BT42)) ->  | BV42: =IF(ISBLANK(BT42),"",PRODUCT(AE42,BT42,i_systemQTY)) ->  | BW42: =IFERROR(INDEX(INDIRECT("T_NAV_"&i_Location&"["&i_Location&"]"),MATCH(1,--(BC42=INDIRECT("T_NAV_"&i_Location&"[No.]"))*--((INDIRECT("T_NAV_"&i_Location&"["&i_Location&"]"))<>""),0))/IF(AND(BQ42="METRE",BG42<>"",BR42=""),BG42,1),"") ->  | BX42: =IFERROR(IF(AND(AY42="SHOW",BW42<>""),BW42*BV42*IF(AND(BM42<>"",OR(BP42="LENGTH",BP42="METRE",BP42="ROLL")),(BL42/1000),1),""),"") ->  | BY42: =IF(BX42<>"",(INDIRECT("i_"&BS42&"discount"))*BX42,"") ->  | BZ42: =IFERROR(IF(BX42<>"",BX42-BY42,""),"") -> 
E43: =IFERROR(IF(ISBLANK(D43),"",IF(FIND(D43,INDIRECT($D$42))>0,1,0)),0) ->  | F43: Skyline Pin End | G43: =IFERROR(IF(ISBLANK(F43),"",IF(FIND(F43,INDIRECT($F$42))>0,1,0)),0) -> 0 | I43: =IFERROR(IF(ISBLANK(H43),"",IF(FIND(H43,INDIRECT($H$42))>0,1,0)),0) ->  | K43: =IFERROR(IF(ISBLANK(J43),"",IF(FIND(J43,INDIRECT($J$42))>0,1,0)),0) ->  | M43: =IFERROR(IF(ISBLANK(L43),"",IF(FIND(L43,INDIRECT($L$42))>0,1,0)),0) ->  | O43: =IFERROR(IF(ISBLANK(N43),"",IF(FIND(N43,INDIRECT($N$42))>0,1,0)),0) ->  | Q43: =IFERROR(IF(ISBLANK(P43),"",IF(FIND(P43,INDIRECT($P$42))>0,1,0)),0) ->  | S43: =IFERROR(IF(ISBLANK(R43),"",IF(FIND(R43,INDIRECT($R$42))>0,1,0)),0) ->  | U43: =IFERROR(IF(ISBLANK(T43),"",IF(FIND(T43,INDIRECT($T$42))>0,1,0)),0) ->  | W43: =IFERROR(IF(ISBLANK(V43),"",IF(FIND(V43,INDIRECT($V$42))>0,1,0)),0) ->  | AR43: AU | AS43: =IF(ISNUMBER(FIND("x",BE43)),IFERROR(INDEX(AI43:AQ43,0,MATCH(AT43,AI43:AQ43,0)),IF(AI43<>"",AI43,i_DefaultColour)),"") -> Black | AT43: =i_Finish -> 0 | AV43: =IF(ISNUMBER(FIND("x",BE43)),IFERROR(INDEX(AI43:AQ43,0,MATCH(AT43,AI43:AQ43,0)),AS43),"") -> Black | AW43: =IF(ISNUMBER(FIND("x",BE43)),IFERROR(INDEX(INDIRECT("T_FinishColour[ColourCode-"&IF(ISNUMBER(FIND("xxx",BE43)),"xxx",IF(ISNUMBER(FIND("xx",BE43)),"xx","error"))&AR43&"]"),MATCH(AV43,T_FinishColour[Finish / Colour],0)),""),"") ->  | AY43: =IF(AND(ISBLANK(BC43),ISBLANK(C43)),"HIDE",_xlfn.SWITCH(PRODUCT(C43:Z43,B43),2,"HEADING",1,"SHOW",0,"HIDE")) -> HIDE | BC43: SLPEV653xx | BE43: SLPEV653xx | BF43: Skyline Pin End 1.5" | BH43: =IF(ISBLANK(BO43),"",IF(OR(BO43=L_Units),"Y","N")) -> N | BJ43: =IFERROR(_xlfn.SINGLE(IF(BH43="Y",((INDEX(#REF!,MATCH(BI43,#REF!,0),0))),"")),"") ->  | BL43: =IFERROR(IF(BH43="Y",INDIRECT(BK43)-BJ43,""),"") ->  | BM43: =IFERROR(IF(BH43="Y",BL43,""),"") ->  | BN43: =IFERROR(IF(BH43="Y",TEXT(BL43/25.4,"0"&IF(ABS(BL43/25.4-ROUND(BL43/25.4,0))>1/32,"-0/"&CHOOSE(ROUND(MOD(BL43/25.4,1)*16,0),16,8,16,4,16,8,16,2,16,8,16,4,16,8,16),"")),""),"") ->  | BO43: Piece | BP43: =IFERROR(IF(ISBLANK(BC43),"",INDEX(T_NAV_AU[Base Unit of Measure],MATCH(BC43,T_NAV_AU[No.],0))),"") ->  | BS43: HW | BT43: 1 | BU43: =IF(ISBLANK(BT43),"",PRODUCT(AE43,BT43)) -> 1 | BV43: =IF(ISBLANK(BT43),"",PRODUCT(AE43,BT43,i_systemQTY)) -> 1 | BW43: =IFERROR(INDEX(INDIRECT("T_NAV_"&i_Location&"["&i_Location&"]"),MATCH(1,--(BC43=INDIRECT("T_NAV_"&i_Location&"[No.]"))*--((INDIRECT("T_NAV_"&i_Location&"["&i_Location&"]"))<>""),0))/IF(AND(BQ43="METRE",BG43<>"",BR43=""),BG43,1),"") ->  | BX43: =IFERROR(IF(AND(AY43="SHOW",BW43<>""),BW43*BV43*IF(AND(BM43<>"",OR(BP43="LENGTH",BP43="METRE",BP43="ROLL")),(BL43/1000),1),""),"") ->  | BY43: =IF(BX43<>"",(INDIRECT("i_"&BS43&"discount"))*BX43,"") ->  | BZ43: =IFERROR(IF(BX43<>"",BX43-BY43,""),"") -> 
F44: Heavy | G44: =IFERROR(IF(ISBLANK(F44),"",IF(FIND(F44,INDIRECT($F$42))>0,1,0)),0) -> 0 | K44: =IFERROR(IF(ISBLANK(J44),"",IF(FIND(J44,INDIRECT($J$42))>0,1,0)),0) ->  | M44: =IFERROR(IF(ISBLANK(L44),"",IF(FIND(L44,INDIRECT($L$42))>0,1,0)),0) ->  | O44: =IFERROR(IF(ISBLANK(N44),"",IF(FIND(N44,INDIRECT($N$42))>0,1,0)),0) ->  | Q44: =IFERROR(IF(ISBLANK(P44),"",IF(FIND(P44,INDIRECT($P$42))>0,1,0)),0) ->  | S44: =IFERROR(IF(ISBLANK(R44),"",IF(FIND(R44,INDIRECT($R$42))>0,1,0)),0) ->  | U44: =IFERROR(IF(ISBLANK(T44),"",IF(FIND(T44,INDIRECT($T$42))>0,1,0)),0) ->  | W44: =IFERROR(IF(ISBLANK(V44),"",IF(FIND(V44,INDIRECT($V$42))>0,1,0)),0) ->  | AR44: AU | AS44: =IF(ISNUMBER(FIND("x",BE44)),IFERROR(INDEX(AI44:AQ44,0,MATCH(AT44,AI44:AQ44,0)),IF(AI44<>"",AI44,i_DefaultColour)),"") -> Black | AT44: =i_Finish -> 0 | AV44: =IF(ISNUMBER(FIND("x",BE44)),IFERROR(INDEX(AI44:AQ44,0,MATCH(AT44,AI44:AQ44,0)),AS44),"") -> Black | AW44: =IF(ISNUMBER(FIND("x",BE44)),IFERROR(INDEX(INDIRECT("T_FinishColour[ColourCode-"&IF(ISNUMBER(FIND("xxx",BE44)),"xxx",IF(ISNUMBER(FIND("xx",BE44)),"xx","error"))&AR44&"]"),MATCH(AV44,T_FinishColour[Finish / Colour],0)),""),"") ->  | AY44: =IF(AND(ISBLANK(BC44),ISBLANK(C44)),"HIDE",_xlfn.SWITCH(PRODUCT(C44:Z44,B44),2,"HEADING",1,"SHOW",0,"HIDE")) -> HIDE | BC44: SLPEHD53xx | BE44: SLPEHD53xx | BF44: Skyline Heavy Duty Pin End 1.5" | BH44: =IF(ISBLANK(BO44),"",IF(OR(BO44=L_Units),"Y","N")) -> N | BJ44: =IFERROR(_xlfn.SINGLE(IF(BH44="Y",((INDEX(#REF!,MATCH(BI44,#REF!,0),0))),"")),"") ->  | BL44: =IFERROR(IF(BH44="Y",INDIRECT(BK44)-BJ44,""),"") ->  | BM44: =IFERROR(IF(BH44="Y",BL44,""),"") ->  | BN44: =IFERROR(IF(BH44="Y",TEXT(BL44/25.4,"0"&IF(ABS(BL44/25.4-ROUND(BL44/25.4,0))>1/32,"-0/"&CHOOSE(ROUND(MOD(BL44/25.4,1)*16,0),16,8,16,4,16,8,16,2,16,8,16,4,16,8,16),"")),""),"") ->  | BO44: Piece | BP44: =IFERROR(IF(ISBLANK(BC44),"",INDEX(T_NAV_AU[Base Unit of Measure],MATCH(BC44,T_NAV_AU[No.],0))),"") ->  | BS44: HW | BT44: 1 | BU44: =IF(ISBLANK(BT44),"",PRODUCT(AE44,BT44)) -> 1 | BV44: =IF(ISBLANK(BT44),"",PRODUCT(AE44,BT44,i_systemQTY)) -> 1 | BW44: =IFERROR(INDEX(INDIRECT("T_NAV_"&i_Location&"["&i_Location&"]"),MATCH(1,--(BC44=INDIRECT("T_NAV_"&i_Location&"[No.]"))*--((INDIRECT("T_NAV_"&i_Location&"["&i_Location&"]"))<>""),0))/IF(AND(BQ44="METRE",BG44<>"",BR44=""),BG44,1),"") ->  | BX44: =IFERROR(IF(AND(AY44="SHOW",BW44<>""),BW44*BV44*IF(AND(BM44<>"",OR(BP44="LENGTH",BP44="METRE",BP44="ROLL")),(BL44/1000),1),""),"") ->  | BY44: =IF(BX44<>"",(INDIRECT("i_"&BS44&"discount"))*BX44,"") ->  | BZ44: =IFERROR(IF(BX44<>"",BX44-BY44,""),"") -> 
D45: 1.5" | E45: 0 | F45: Limiter - Single Stop | STD | G45: =IFERROR(IF(ISBLANK(F45),"",IF(FIND(F45,INDIRECT($F$42))>0,1,0)),0) -> 0 | K45: =IFERROR(IF(ISBLANK(J45),"",IF(FIND(J45,INDIRECT($J$42))>0,1,0)),0) ->  | M45: =IFERROR(IF(ISBLANK(L45),"",IF(FIND(L45,INDIRECT($L$42))>0,1,0)),0) ->  | O45: =IFERROR(IF(ISBLANK(N45),"",IF(FIND(N45,INDIRECT($N$42))>0,1,0)),0) ->  | Q45: =IFERROR(IF(ISBLANK(P45),"",IF(FIND(P45,INDIRECT($P$42))>0,1,0)),0) ->  | S45: =IFERROR(IF(ISBLANK(R45),"",IF(FIND(R45,INDIRECT($R$42))>0,1,0)),0) ->  | U45: =IFERROR(IF(ISBLANK(T45),"",IF(FIND(T45,INDIRECT($T$42))>0,1,0)),0) ->  | W45: =IFERROR(IF(ISBLANK(V45),"",IF(FIND(V45,INDIRECT($V$42))>0,1,0)),0) ->  | AR45: AU | AS45: =IF(ISNUMBER(FIND("x",BE45)),IFERROR(INDEX(AI45:AQ45,0,MATCH(AT45,AI45:AQ45,0)),IF(AI45<>"",AI45,i_DefaultColour)),"") ->  | AT45: =i_Finish -> 0 | AV45: =IF(ISNUMBER(FIND("x",BE45)),IFERROR(INDEX(AI45:AQ45,0,MATCH(AT45,AI45:AQ45,0)),AS45),"") ->  | AW45: =IF(ISNUMBER(FIND("x",BE45)),IFERROR(INDEX(INDIRECT("T_FinishColour[ColourCode-"&IF(ISNUMBER(FIND("xxx",BE45)),"xxx",IF(ISNUMBER(FIND("xx",BE45)),"xx","error"))&AR45&"]"),MATCH(AV45,T_FinishColour[Finish / Colour],0)),""),"") ->  | AY45: =IF(AND(ISBLANK(BC45),ISBLANK(C45)),"HIDE",_xlfn.SWITCH(PRODUCT(C45:Z45,B45),2,"HEADING",1,"SHOW",0,"HIDE")) -> HIDE | BC45: RB12-6101-069038 | BE45: RB12-6101-069038 | BF45: Limiter - Single Stop | STD 1.5" | BH45: =IF(ISBLANK(BO45),"",IF(OR(BO45=L_Units),"Y","N")) -> N | BJ45: =IFERROR(_xlfn.SINGLE(IF(BH45="Y",((INDEX(#REF!,MATCH(BI45,#REF!,0),0))),"")),"") ->  | BL45: =IFERROR(IF(BH45="Y",INDIRECT(BK45)-BJ45,""),"") ->  | BM45: =IFERROR(IF(BH45="Y",BL45,""),"") ->  | BN45: =IFERROR(IF(BH45="Y",TEXT(BL45/25.4,"0"&IF(ABS(BL45/25.4-ROUND(BL45/25.4,0))>1/32,"-0/"&CHOOSE(ROUND(MOD(BL45/25.4,1)*16,0),16,8,16,4,16,8,16,2,16,8,16,4,16,8,16),"")),""),"") ->  | BO45: Piece | BP45: =IFERROR(IF(ISBLANK(BC45),"",INDEX(T_NAV_AU[Base Unit of Measure],MATCH(BC45,T_NAV_AU[No.],0))),"") -> PIECE | BS45: HW | BT45: 1 | BU45: =IF(ISBLANK(BT45),"",PRODUCT(AE45,BT45)) -> 1 | BV45: =IF(ISBLANK(BT45),"",PRODUCT(AE45,BT45,i_systemQTY)) -> 1 | BW45: =IFERROR(INDEX(INDIRECT("T_NAV_"&i_Location&"["&i_Location&"]"),MATCH(1,--(BC45=INDIRECT("T_NAV_"&i_Location&"[No.]"))*--((INDIRECT("T_NAV_"&i_Location&"["&i_Location&"]"))<>""),0))/IF(AND(BQ45="METRE",BG45<>"",BR45=""),BG45,1),"") ->  | BX45: =IFERROR(IF(AND(AY45="SHOW",BW45<>""),BW45*BV45*IF(AND(BM45<>"",OR(BP45="LENGTH",BP45="METRE",BP45="ROLL")),(BL45/1000),1),""),"") ->  | BY45: =IF(BX45<>"",(INDIRECT("i_"&BS45&"discount"))*BX45,"") ->  | BZ45: =IFERROR(IF(BX45<>"",BX45-BY45,""),"") -> 
D46: 1.5" | E46: 0 | F46: Limiter - Single Stop | COMPACT | G46: =IFERROR(IF(ISBLANK(F46),"",IF(FIND(F46,INDIRECT($F$42))>0,1,0)),0) -> 0 | AR46: AU | AY46: =IF(AND(ISBLANK(BC46),ISBLANK(C46)),"HIDE",_xlfn.SWITCH(PRODUCT(C46:Z46,B46),2,"HEADING",1,"SHOW",0,"HIDE")) -> HIDE | BC46: RB12-6102-069038 | BE46: RB12-6102-069038 | BF46: Limiter - Single Stop | COMPACT 1.5" | BH46: N | BL46: =IFERROR(IF(BH46="Y",INDIRECT(BK46)-BJ46,""),"") ->  | BM46: =IFERROR(IF(BH46="Y",BL46,""),"") ->  | BN46: =IFERROR(IF(BH46="Y",TEXT(BL46/25.4,"0"&IF(ABS(BL46/25.4-ROUND(BL46/25.4,0))>1/32,"-0/"&CHOOSE(ROUND(MOD(BL46/25.4,1)*16,0),16,8,16,4,16,8,16,2,16,8,16,4,16,8,16),"")),""),"") ->  | BO46: Piece | BP46: =IFERROR(IF(ISBLANK(BC46),"",INDEX(T_NAV_AU[Base Unit of Measure],MATCH(BC46,T_NAV_AU[No.],0))),"") -> PIECE | BS46: HW | BT46: 1 | BU46: =IF(ISBLANK(BT46),"",PRODUCT(AE46,BT46)) -> 1 | BV46: =IF(ISBLANK(BT46),"",PRODUCT(AE46,BT46,i_systemQTY)) -> 1 | BW46: =IFERROR(INDEX(INDIRECT("T_NAV_"&i_Location&"["&i_Location&"]"),MATCH(1,--(BC46=INDIRECT("T_NAV_"&i_Location&"[No.]"))*--((INDIRECT("T_NAV_"&i_Location&"["&i_Location&"]"))<>""),0))/IF(AND(BQ46="METRE",BG46<>"",BR46=""),BG46,1),"") ->  | BX46: =IFERROR(IF(AND(AY46="SHOW",BW46<>""),BW46*BV46*IF(AND(BM46<>"",OR(BP46="LENGTH",BP46="METRE",BP46="ROLL")),(BL46/1000),1),""),"") ->  | BY46: =IF(BX46<>"",(INDIRECT("i_"&BS46&"discount"))*BX46,"") ->  | BZ46: =IFERROR(IF(BX46<>"",BX46-BY46,""),"") -> 
D47: S45 | E47: 0 | F47: Limiter - Single Stop | STD | G47: =IFERROR(IF(ISBLANK(F47),"",IF(FIND(F47,INDIRECT($F$42))>0,1,0)),0) -> 0 | AR47: AU | AY47: =IF(AND(ISBLANK(BC47),ISBLANK(C47)),"HIDE",_xlfn.SWITCH(PRODUCT(C47:Z47,B47),2,"HEADING",1,"SHOW",0,"HIDE")) -> HIDE | BC47: =_xlfn.IFNA(SUBSTITUTE(IF(AR47="AU",SUBSTITUTE(BE47,"xxx",AW47),SUBSTITUTE(SUBSTITUTE(BE47,"xx",AW47),"x","")),"LLL","580"),BE47) -> RB12-6101-069045 | BE47: RB12-6101-069045 | BF47: Limiter - Single Stop | STD S45 | BH47: N | BL47: =IFERROR(IF(BH47="Y",INDIRECT(BK47)-BJ47,""),"") ->  | BM47: =IFERROR(IF(BH47="Y",BL47,""),"") ->  | BN47: =IFERROR(IF(BH47="Y",TEXT(BL47/25.4,"0"&IF(ABS(BL47/25.4-ROUND(BL47/25.4,0))>1/32,"-0/"&CHOOSE(ROUND(MOD(BL47/25.4,1)*16,0),16,8,16,4,16,8,16,2,16,8,16,4,16,8,16),"")),""),"") ->  | BO47: Piece | BP47: =IFERROR(IF(ISBLANK(BC47),"",INDEX(T_NAV_AU[Base Unit of Measure],MATCH(BC47,T_NAV_AU[No.],0))),"") -> PIECE | BS47: HW | BT47: 1 | BU47: =IF(ISBLANK(BT47),"",PRODUCT(AE47,BT47)) -> 1 | BV47: =IF(ISBLANK(BT47),"",PRODUCT(AE47,BT47,i_systemQTY)) -> 1 | BW47: =IFERROR(INDEX(INDIRECT("T_NAV_"&i_Location&"["&i_Location&"]"),MATCH(1,--(BC47=INDIRECT("T_NAV_"&i_Location&"[No.]"))*--((INDIRECT("T_NAV_"&i_Location&"["&i_Location&"]"))<>""),0))/IF(AND(BQ47="METRE",BG47<>"",BR47=""),BG47,1),"") ->  | BX47: =IFERROR(IF(AND(AY47="SHOW",BW47<>""),BW47*BV47*IF(AND(BM47<>"",OR(BP47="LENGTH",BP47="METRE",BP47="ROLL")),(BL47/1000),1),""),"") ->  | BY47: =IF(BX47<>"",(INDIRECT("i_"&BS47&"discount"))*BX47,"") ->  | BZ47: =IFERROR(IF(BX47<>"",BX47-BY47,""),"") -> 
D48: S45 | E48: 0 | F48: Limiter - Single Stop | COMPACT | G48: =IFERROR(IF(ISBLANK(F48),"",IF(FIND(F48,INDIRECT($F$42))>0,1,0)),0) -> 0 | AR48: AU | AY48: =IF(AND(ISBLANK(BC48),ISBLANK(C48)),"HIDE",_xlfn.SWITCH(PRODUCT(C48:Z48,B48),2,"HEADING",1,"SHOW",0,"HIDE")) -> HIDE | BC48: =_xlfn.IFNA(SUBSTITUTE(IF(AR48="AU",SUBSTITUTE(BE48,"xxx",AW48),SUBSTITUTE(SUBSTITUTE(BE48,"xx",AW48),"x","")),"LLL","580"),BE48) -> RB12-6102-069045 | BE48: RB12-6102-069045 | BF48: Limiter - Single Stop | COMPACT S45 | BH48: N | BL48: =IFERROR(IF(BH48="Y",INDIRECT(BK48)-BJ48,""),"") ->  | BM48: =IFERROR(IF(BH48="Y",BL48,""),"") ->  | BN48: =IFERROR(IF(BH48="Y",TEXT(BL48/25.4,"0"&IF(ABS(BL48/25.4-ROUND(BL48/25.4,0))>1/32,"-0/"&CHOOSE(ROUND(MOD(BL48/25.4,1)*16,0),16,8,16,4,16,8,16,2,16,8,16,4,16,8,16),"")),""),"") ->  | BO48: Piece | BP48: =IFERROR(IF(ISBLANK(BC48),"",INDEX(T_NAV_AU[Base Unit of Measure],MATCH(BC48,T_NAV_AU[No.],0))),"") -> PIECE | BS48: HW | BT48: 1 | BU48: =IF(ISBLANK(BT48),"",PRODUCT(AE48,BT48)) -> 1 | BV48: =IF(ISBLANK(BT48),"",PRODUCT(AE48,BT48,i_systemQTY)) -> 1 | BW48: =IFERROR(INDEX(INDIRECT("T_NAV_"&i_Location&"["&i_Location&"]"),MATCH(1,--(BC48=INDIRECT("T_NAV_"&i_Location&"[No.]"))*--((INDIRECT("T_NAV_"&i_Location&"["&i_Location&"]"))<>""),0))/IF(AND(BQ48="METRE",BG48<>"",BR48=""),BG48,1),"") ->  | BX48: =IFERROR(IF(AND(AY48="SHOW",BW48<>""),BW48*BV48*IF(AND(BM48<>"",OR(BP48="LENGTH",BP48="METRE",BP48="ROLL")),(BL48/1000),1),""),"") ->  | BY48: =IF(BX48<>"",(INDIRECT("i_"&BS48&"discount"))*BX48,"") ->  | BZ48: =IFERROR(IF(BX48<>"",BX48-BY48,""),"") -> 
D49: 2" | E49: 0 | AY49: =IF(AND(ISBLANK(BC49),ISBLANK(C49)),"HIDE",_xlfn.SWITCH(PRODUCT(C49:Z49,B49),2,"HEADING",1,"SHOW",0,"HIDE")) -> HIDE | BC49: RA2 | BE49: RA2xx | BF49: 2" Adapter | BH49: N | BL49: =IFERROR(IF(BH49="Y",INDIRECT(BK49)-BJ49,""),"") ->  | BM49: =IFERROR(IF(BH49="Y",BL49,""),"") ->  | BN49: =IFERROR(IF(BH49="Y",TEXT(BL49/25.4,"0"&IF(ABS(BL49/25.4-ROUND(BL49/25.4,0))>1/32,"-0/"&CHOOSE(ROUND(MOD(BL49/25.4,1)*16,0),16,8,16,4,16,8,16,2,16,8,16,4,16,8,16),"")),""),"") ->  | BO49: Piece | BP49: =IFERROR(IF(ISBLANK(BC49),"",INDEX(T_NAV_AU[Base Unit of Measure],MATCH(BC49,T_NAV_AU[No.],0))),"") ->  | BS49: HW | BT49: 1 | BU49: =IF(ISBLANK(BT49),"",PRODUCT(AE49,BT49)) -> 1 | BV49: =IF(ISBLANK(BT49),"",PRODUCT(AE49,BT49,i_systemQTY)) -> 1 | BX49: =IFERROR(IF(AND(AY49="SHOW",BW49<>""),BW49*BV49*IF(AND(BM49<>"",OR(BP49="LENGTH",BP49="METRE",BP49="ROLL")),(BL49/1000),1),""),"") ->  | BY49: =IF(BX49<>"",(INDIRECT("i_"&BS49&"discount"))*BX49,"") ->  | BZ49: =IFERROR(IF(BX49<>"",BX49-BY49,""),"") -> 
AY50: =IF(AND(ISBLANK(BC50),ISBLANK(C50)),"HIDE",_xlfn.SWITCH(PRODUCT(C50:Z50,B50),2,"HEADING",1,"SHOW",0,"HIDE")) -> HIDE
B51: 2 | C51: =C52 -> 0 | AE51: =IFERROR(IF(AND(AA51="Y",PRODUCT(AB51:AD51)=0),o_nScreens,IF(PRODUCT(AB51:AD51)=0,"",PRODUCT(AB51:AD51))),"") ->  | AS51: =IF(ISNUMBER(FIND("x",BE51)),IFERROR(INDEX(AI51:AQ51,0,MATCH(AT51,AI51:AQ51,0)),IF(AI51<>"",AI51,i_DefaultColour)),"") ->  | AV51: =IF(ISNUMBER(FIND("x",BE51)),IFERROR(INDEX(AI51:AQ51,0,MATCH(AT51,AI51:AQ51,0)),AS51),"") ->  | AW51: =IF(ISNUMBER(FIND("x",BE51)),IFERROR(INDEX(INDIRECT("T_FinishColour[ColourCode-"&IF(ISNUMBER(FIND("xxx",BE51)),"xxx",IF(ISNUMBER(FIND("xx",BE51)),"xx","error"))&AR51&"]"),MATCH(AV51,T_FinishColour[Finish / Colour],0)),""),"") ->  | AY51: =IF(AND(ISBLANK(BC51),ISBLANK(C51)),"HIDE",_xlfn.SWITCH(PRODUCT(C51:Z51,B51),2,"HEADING",1,"SHOW",0,"HIDE")) -> HIDE | BC51: =_xlfn.IFNA(SUBSTITUTE(IF(AR51="AU",SUBSTITUTE(BE51,"xxx",AW51),SUBSTITUTE(SUBSTITUTE(BE51,"xx",AW51),"x","")),"LLL","580"),BE51) ->  | BH51: =IF(ISBLANK(BO51),"",IF(OR(BO51=L_Units),"Y","N")) ->  | BJ51: =IFERROR(_xlfn.SINGLE(IF(BH51="Y",((INDEX(#REF!,MATCH(BI51,#REF!,0),0))),"")),"") ->  | BL51: =IFERROR(IF(BH51="Y",INDIRECT(BK51)-BJ51,""),"") ->  | BP51: =IFERROR(IF(ISBLANK(BC51),"",INDEX(T_NAV_AU[Base Unit of Measure],MATCH(BC51,T_NAV_AU[No.],0))),"") ->  | BV51: =IF(ISBLANK(BT51),"",PRODUCT(AE51,BT51,i_systemQTY)) ->  | BW51: =IFERROR(INDEX(INDIRECT("T_NAV_"&i_Location&"["&i_Location&"]"),MATCH(1,--(BC51=INDIRECT("T_NAV_"&i_Location&"[No.]"))*--((INDIRECT("T_NAV_"&i_Location&"["&i_Location&"]"))<>""),0))/IF(AND(BQ51="METRE",BG51<>"",BR51=""),BG51,1),"") ->  | BX51: =IFERROR(IF(AND(AY51="SHOW",BW51<>""),BW51*BV51*IF(AND(BM51<>"",OR(BP51="LENGTH",BP51="METRE",BP51="ROLL")),(BL51/1000),1),""),"") ->  | BY51: =IF(BX51<>"",(INDIRECT("i_"&BS51&"discount"))*BX51,"") ->  | BZ51: =IFERROR(IF(BX51<>"",BX51-BY51,""),"") -> 
B52: 2 | C52: =IF(COUNTIF(AY53:AY71,"SHOW")>0,1,0) -> 0 | D52: i_WeightBar | F52: i_wbSpline | H52: i_wbAccessories | J52: i_wbSplineTape | L52: i_Location | N52: o_widthmm | AW52: =IF(ISNUMBER(FIND("x",BE52)),IFERROR(INDEX(INDIRECT("T_FinishColour[ColourCode-"&IF(ISNUMBER(FIND("xxx",BE52)),"xxx",IF(ISNUMBER(FIND("xx",BE52)),"xx","error"))&AR52&"]"),MATCH(AV52,T_FinishColour[Finish / Colour],0)),""),"") ->  | AY52: =IF(AND(ISBLANK(BC52),ISBLANK(C52)),"HIDE",_xlfn.SWITCH(PRODUCT(C52:Z52,B52),2,"HEADING",1,"SHOW",0,"HIDE")) -> HIDE | BC52: BOTTOM RAIL | BE52: =IF(i_Location="US","HEM BAR","BOTTOM RAIL") -> BOTTOM RAIL | BJ52: =IFERROR(_xlfn.SINGLE(IF(BH52="Y",((INDEX(#REF!,MATCH(BI52,#REF!,0),0))),"")),"") ->  | BP52: =IFERROR(IF(ISBLANK(BC52),"",INDEX(T_NAV_AU[Base Unit of Measure],MATCH(BC52,T_NAV_AU[No.],0))),"") ->  | BW52: =IFERROR(INDEX(INDIRECT("T_NAV_"&i_Location&"["&i_Location&"]"),MATCH(1,--(BC52=INDIRECT("T_NAV_"&i_Location&"[No.]"))*--((INDIRECT("T_NAV_"&i_Location&"["&i_Location&"]"))<>""),0))/IF(AND(BQ52="METRE",BG52<>"",BR52=""),BG52,1),"") -> 
D53: D30 | E53: =IFERROR(IF(ISBLANK(D53),"",IF(FIND(D53,INDIRECT($D$52))>0,1,0)),0) -> 0 | G53: =IFERROR(IF(ISBLANK(F53),"",IF(FIND(F53,INDIRECT($F$52))>0,1,0)),0) ->  | I53: =IFERROR(IF(ISBLANK(H53),"",IF(FIND(H53,INDIRECT($H$52))>0,1,0)),0) ->  | K53: =IFERROR(IF(ISBLANK(J53),"",IF(FIND(J53,INDIRECT($J$52))>0,1,0)),0) ->  | M53: =IFERROR(IF(ISBLANK(L53),"",IF(FIND(L53,INDIRECT($L$52))>0,1,0)),0) ->  | AI53: White | AJ53: Mill | AK53: Anodised | AR53: AU | AS53: White | AT53: =i_Finish -> 0 | AV53: White | AW53: =IF(ISNUMBER(FIND("x",BE53)),IFERROR(INDEX(INDIRECT("T_FinishColour[ColourCode-"&IF(ISNUMBER(FIND("xxx",BE53)),"xxx",IF(ISNUMBER(FIND("xx",BE53)),"xx","error"))&AR53&"]"),MATCH(AV53,T_FinishColour[Finish / Colour],0)),""),"") -> 069 | AY53: =IF(AND(ISBLANK(BC53),ISBLANK(C53)),"HIDE",_xlfn.SWITCH(PRODUCT(C53:Z53,B53),2,"HEADING",1,"SHOW",0,"HIDE")) -> HIDE | BC53: RB91-1232-069490 | BE53: ="RB91-1232-xxx"&(BG53*100) -> RB91-1232-xxx490 | BF53: D30 Medium Bottom Rail | BG53: =IF(i_Location="AU",5.8,4.9) -> 4.9 | BH53: =IF(ISBLANK(BO53),"",IF(OR(BO53=L_Units),"Y","N")) ->  | BI53: wb | BJ53: =IFERROR(IF(BH53="Y",((INDEX(T_Deduc18[Deduction],MATCH(BI53,T_Deduc18[Type],0),0))),""),"") ->  | BK53: o_widthmm | BL53: =IFERROR(IF(BH53="Y",INDIRECT(BK53)-BJ53,""),"") ->  | BN53: =IFERROR(IF(BH53="Y",TEXT(BL53/25.4,"0"&IF(ABS(BL53/25.4-ROUND(BL53/25.4,0))>1/32,"-0/"&CHOOSE(ROUND(MOD(BL53/25.4,1)*16,0),16,8,16,4,16,8,16,2,16,8,16,4,16,8,16),"")),""),"") ->  | BO53: =INDEX(T_UnitSelection[Units],MATCH(i_Units,T_UnitSelection[UnitSelection],0)) ->  | BP53: =IFERROR(IF(ISBLANK(BC53),"",INDEX(T_NAV_AU[Base Unit of Measure],MATCH(BC53,T_NAV_AU[No.],0))),"") ->  | BQ53: METRE | BS53: HW | BT53: 1 | BU53: 1 | BV53: 1 | BW53: =IFERROR(INDEX(INDIRECT("T_NAV_"&i_Location&"["&i_Location&"]"),MATCH(1,--(BC53=INDIRECT("T_NAV_"&i_Location&"[No.]"))*--((INDIRECT("T_NAV_"&i_Location&"["&i_Location&"]"))<>""),0))/IF(AND(BQ53="METRE",BG53<>"",BR53=""),BG53,1),"") -> 
D54: D30 | E54: 0 | G54: =IFERROR(IF(ISBLANK(F54),"",IF(FIND(F54,INDIRECT($F$52))>0,1,0)),0) ->  | I54: =IFERROR(IF(ISBLANK(H54),"",IF(FIND(H54,INDIRECT($H$52))>0,1,0)),0) ->  | AR54: AU | AS54: Black | AT54: 0 | AV54: Black | AW54: =IF(ISNUMBER(FIND("x",BE54)),IFERROR(INDEX(INDIRECT("T_FinishColour[ColourCode-"&IF(ISNUMBER(FIND("xxx",BE54)),"xxx",IF(ISNUMBER(FIND("xx",BE54)),"xx","error"))&AR54&"]"),MATCH(AV54,T_FinishColour[Finish / Colour],0)),""),"") -> 050 | AY54: =IF(AND(ISBLANK(BC54),ISBLANK(C54)),"HIDE",_xlfn.SWITCH(PRODUCT(C54:Z54,B54),2,"HEADING",1,"SHOW",0,"HIDE")) -> HIDE | BC54: RB91-2131-050002 | BE54: RB91-2131-xxx002 | BF54: D30 Medium Bottom Rail End Caps LH & RH | BH54: =IF(ISBLANK(BO54),"",IF(OR(BO54=L_Units),"Y","N")) -> N | BJ54: =IFERROR(_xlfn.SINGLE(IF(BH54="Y",((INDEX(#REF!,MATCH(BI54,#REF!,0),0))),"")),"") ->  | BO54: Pair | BP54: =IFERROR(IF(ISBLANK(BC54),"",INDEX(T_NAV_AU[Base Unit of Measure],MATCH(BC54,T_NAV_AU[No.],0))),"") -> PAIR | BS54: HW | BT54: 1 | BU54: 1 | BV54: 1 | BW54: =IFERROR(INDEX(INDIRECT("T_NAV_"&i_Location&"["&i_Location&"]"),MATCH(1,--(BC54=INDIRECT("T_NAV_"&i_Location&"[No.]"))*--((INDIRECT("T_NAV_"&i_Location&"["&i_Location&"]"))<>""),0))/IF(AND(BQ54="METRE",BG54<>"",BR54=""),BG54,1),"") -> 
D55: D30 | E55: 0 | F55: NO | G55: =IFERROR(IF(ISBLANK(F55),"",IF(FIND(F55,INDIRECT($F$52))>0,1,0)),0) -> 0 | I55: =IFERROR(IF(ISBLANK(H55),"",IF(FIND(H55,INDIRECT($H$52))>0,1,0)),0) ->  | O55: =IFERROR(IF(ISBLANK(N55),"",IF(FIND(N55,INDIRECT($N$42))>0,1,0)),0) ->  | Q55: =IFERROR(IF(ISBLANK(P55),"",IF(FIND(P55,INDIRECT($P$42))>0,1,0)),0) ->  | S55: =IFERROR(IF(ISBLANK(R55),"",IF(FIND(R55,INDIRECT($R$42))>0,1,0)),0) ->  | U55: =IFERROR(IF(ISBLANK(T55),"",IF(FIND(T55,INDIRECT($T$42))>0,1,0)),0) ->  | W55: =IFERROR(IF(ISBLANK(V55),"",IF(FIND(V55,INDIRECT($V$42))>0,1,0)),0) ->  | AI55: White | AR55: AU | AT55: 0 | AW55: =IF(ISNUMBER(FIND("x",BE55)),IFERROR(INDEX(INDIRECT("T_FinishColour[ColourCode-"&IF(ISNUMBER(FIND("xxx",BE55)),"xxx",IF(ISNUMBER(FIND("xx",BE55)),"xx","error"))&AR55&"]"),MATCH(AV55,T_FinishColour[Finish / Colour],0)),""),"") ->  | AY55: =IF(AND(ISBLANK(BC55),ISBLANK(C55)),"HIDE",_xlfn.SWITCH(PRODUCT(C55:Z55,B55),2,"HEADING",1,"SHOW",0,"HIDE")) -> HIDE | BC55: RB92-1501-001100 | BE55: RB92-1501-001100 | BF55: 15mm Flat Spline | 100Lm Roll | BG55: 100 | BH55: =IF(ISBLANK(BO55),"",IF(OR(BO55=L_Units),"Y","N")) ->  | BI55: wbSeal | BJ55: =IFERROR(IF(BH55="Y",((INDEX(T_Deduc18[Deduction],MATCH(BI55,T_Deduc18[Type],0),0))),""),"") ->  | BK55: o_widthmm | BL55: =IFERROR(IF(BH55="Y",INDIRECT(BK55)-BJ55,""),"") ->  | BO55: =INDEX(T_UnitSelection[Units],MATCH(i_Units,T_UnitSelection[UnitSelection],0)) ->  | BP55: =IFERROR(IF(ISBLANK(BC55),"",INDEX(T_NAV_AU[Base Unit of Measure],MATCH(BC55,T_NAV_AU[No.],0))),"") -> ROLL | BQ55: METRE | BS55: HW | BT55: 1 | BU55: 1 | BV55: =IF(ISBLANK(BT55),"",PRODUCT(AE55,BT55,i_systemQTY)) -> 1 | BW55: =IFERROR(INDEX(INDIRECT("T_NAV_"&i_Location&"["&i_Location&"]"),MATCH(1,--(BC55=INDIRECT("T_NAV_"&i_Location&"[No.]"))*--((INDIRECT("T_NAV_"&i_Location&"["&i_Location&"]"))<>""),0))/IF(AND(BQ55="METRE",BG55<>"",BR55=""),BG55,1),"") -> 
D56: D30 | E56: 0 | F56: MP | G56: =(IFERROR(IF(ISBLANK(F56),"",IF(FIND(F56,INDIRECT($F$52))>0,1,0)),0)+IF(G57=1,-1,0)) -> 0 | I56: =IFERROR(IF(ISBLANK(H56),"",IF(FIND(H56,INDIRECT($H$52))>0,1,0)),0) ->  | AR56: AU | AT56: 0 | AW56: =IF(ISNUMBER(FIND("x",BE56)),IFERROR(INDEX(INDIRECT("T_FinishColour[ColourCode-"&IF(ISNUMBER(FIND("xxx",BE56)),"xxx",IF(ISNUMBER(FIND("xx",BE56)),"xx","error"))&AR56&"]"),MATCH(AV56,T_FinishColour[Finish / Colour],0)),""),"") ->  | AY56: =IF(AND(ISBLANK(BC56),ISBLANK(C56)),"HIDE",_xlfn.SWITCH(PRODUCT(C56:Z56,B56),2,"HEADING",1,"SHOW",0,"HIDE")) -> HIDE | BC56: RB92-1502-001075 | BE56: RB92-1502-001075 | BF56: 15mm Flat Spline - D/S MP-HR TAPE | 75Lm Roll | BG56: 75 | BH56: =IF(ISBLANK(BO56),"",IF(OR(BO56=L_Units),"Y","N")) ->  | BI56: wbSeal | BJ56: =IFERROR(IF(BH56="Y",((INDEX(T_Deduc18[Deduction],MATCH(BI56,T_Deduc18[Type],0),0))),""),"") ->  | BK56: o_widthmm | BO56: =INDEX(T_UnitSelection[Units],MATCH(i_Units,T_UnitSelection[UnitSelection],0)) ->  | BP56: =IFERROR(IF(ISBLANK(BC56),"",INDEX(T_NAV_AU[Base Unit of Measure],MATCH(BC56,T_NAV_AU[No.],0))),"") -> ROLL | BQ56: METRE | BS56: HW | BT56: 1 | BU56: 1 | BV56: 1 | BW56: =IFERROR(INDEX(INDIRECT("T_NAV_"&i_Location&"["&i_Location&"]"),MATCH(1,--(BC56=INDIRECT("T_NAV_"&i_Location&"[No.]"))*--((INDIRECT("T_NAV_"&i_Location&"["&i_Location&"]"))<>""),0))/IF(AND(BQ56="METRE",BG56<>"",BR56=""),BG56,1),"") -> 
D57: D30 | E57: 0 | F57: B/SIDES | G57: =IFERROR(IF(ISBLANK(F57),"",IF(FIND(F57,INDIRECT($F$52))>0,1,0)),0) -> 0 | I57: =IFERROR(IF(ISBLANK(H57),"",IF(FIND(H57,INDIRECT($H$52))>0,1,0)),0) ->  | AI57: White | AJ57: Black | AR57: AU | AT57: 0 | AW57: =IF(ISNUMBER(FIND("x",BE57)),IFERROR(INDEX(INDIRECT("T_FinishColour[ColourCode-"&IF(ISNUMBER(FIND("xxx",BE57)),"xxx",IF(ISNUMBER(FIND("xx",BE57)),"xx","error"))&AR57&"]"),MATCH(AV57,T_FinishColour[Finish / Colour],0)),""),"") ->  | AY57: =IF(AND(ISBLANK(BC57),ISBLANK(C57)),"HIDE",_xlfn.SWITCH(PRODUCT(C57:Z57,B57),2,"HEADING",1,"SHOW",0,"HIDE")) -> HIDE | BC57: RB92-1503-001075 | BE57: RB92-1503-001075 | BF57: 15mm Flat Spline - D/S MP-HR TAPE B/SIDES | 75Lm Roll | BG57: 75 | BH57: =IF(ISBLANK(BO57),"",IF(OR(BO57=L_Units),"Y","N")) ->  | BI57: wbSeal | BJ57: =IFERROR(IF(BH57="Y",((INDEX(T_Deduc18[Deduction],MATCH(BI57,T_Deduc18[Type],0),0))),""),"") ->  | BK57: o_widthmm | BL57: =IFERROR(IF(BH57="Y",INDIRECT(BK57)-BJ57,""),"") ->  | BO57: =INDEX(T_UnitSelection[Units],MATCH(i_Units,T_UnitSelection[UnitSelection],0)) ->  | BP57: =IFERROR(IF(ISBLANK(BC57),"",INDEX(T_NAV_AU[Base Unit of Measure],MATCH(BC57,T_NAV_AU[No.],0))),"") -> ROLL | BQ57: METRE | BS57: HW | BT57: 1 | BU57: 1 | BV57: =IF(ISBLANK(BT57),"",PRODUCT(AE57,BT57,i_systemQTY)) -> 1 | BW57: =IFERROR(INDEX(INDIRECT("T_NAV_"&i_Location&"["&i_Location&"]"),MATCH(1,--(BC57=INDIRECT("T_NAV_"&i_Location&"[No.]"))*--((INDIRECT("T_NAV_"&i_Location&"["&i_Location&"]"))<>""),0))/IF(AND(BQ57="METRE",BG57<>"",BR57=""),BG57,1),"") -> 
D58: Fabric Wrap | E58: 0 | G58: =IFERROR(IF(ISBLANK(F58),"",IF(FIND(F58,INDIRECT($F$52))>0,1,0)),0) ->  | AI58: White | AR58: AU | AS58: White | AV58: =IF(ISNUMBER(FIND("x",BE58)),IFERROR(INDEX(AI58:AQ58,0,MATCH(AT58,AI58:AQ58,0)),AS58),"") -> White | AW58: =IF(ISNUMBER(FIND("x",BE58)),IFERROR(INDEX(INDIRECT("T_FinishColour[ColourCode-"&IF(ISNUMBER(FIND("xxx",BE58)),"xxx",IF(ISNUMBER(FIND("xx",BE58)),"xx","error"))&AR58&"]"),MATCH(AV58,T_FinishColour[Finish / Colour],0)),""),"") -> 069 | AY58: =IF(AND(ISBLANK(BC58),ISBLANK(C58)),"HIDE",_xlfn.SWITCH(PRODUCT(C58:Z58,B58),2,"HEADING",1,"SHOW",0,"HIDE")) -> HIDE | BC58: RB91-1236-069490 | BE58: RB91-1236-xxx490 | BF58: Fabric Wrap Hem Bar 16' | BG58: 4.9 | BH58: Y | BI58: wb | BJ58: =IFERROR(IF(BH58="Y",((INDEX(T_Deduc18[Deduction],MATCH(BI58,T_Deduc18[Type],0),0))),""),"") -> 25 | BK58: o_widthmm | BL58: =IFERROR(IF(BH58="Y",INDIRECT(BK58)-BJ58,""),"") -> -25 | BM58: =IFERROR(IF(BH58="Y",BL58,""),"") -> -25 | BN58: =IFERROR(IF(BH58="Y",TEXT(BL58/25.4,"0"&IF(ABS(BL58/25.4-ROUND(BL58/25.4,0))>1/32,"-0/"&CHOOSE(ROUND(MOD(BL58/25.4,1)*16,0),16,8,16,4,16,8,16,2,16,8,16,4,16,8,16),"")),""),"") -> -1 | BO58: =INDEX(T_UnitSelection[Units],MATCH(i_Units,T_UnitSelection[UnitSelection],0)) ->  | BP58: LENGTH | BQ58: METRE | BS58: HW | BT58: 1 | BU58: 1 | BV58: 1
D59: Fabric Wrap | E59: 0 | AI59: White | AR59: AU | AS59: White | AV59: =IF(ISNUMBER(FIND("x",BE59)),IFERROR(INDEX(AI59:AQ59,0,MATCH(AT59,AI59:AQ59,0)),AS59),"") -> White | AW59: =IF(ISNUMBER(FIND("x",BE59)),IFERROR(INDEX(INDIRECT("T_FinishColour[ColourCode-"&IF(ISNUMBER(FIND("xxx",BE59)),"xxx",IF(ISNUMBER(FIND("xx",BE59)),"xx","error"))&AR59&"]"),MATCH(AV59,T_FinishColour[Finish / Colour],0)),""),"") -> 069 | AY59: =IF(AND(ISBLANK(BC59),ISBLANK(C59)),"HIDE",_xlfn.SWITCH(PRODUCT(C59:Z59,B59),2,"HEADING",1,"SHOW",0,"HIDE")) -> HIDE | BC59: =_xlfn.IFNA(SUBSTITUTE(IF(AR59="AU",SUBSTITUTE(BE59,"xxx",AW59),SUBSTITUTE(SUBSTITUTE(BE59,"xx",AW59),"x","")),"LLL","580"),BE59) -> RB91-2136-069001 | BE59: RB91-2136-xxx001 | BF59: Fabric Wrap Hem Bar End Cap | BH59: =IF(ISBLANK(BO59),"",IF(OR(BO59=L_Units),"Y","N")) -> N | BJ59: =IFERROR(IF(BH59="Y",((INDEX(T_Deduc18[Deduction],MATCH(BI59,T_Deduc18[Type],0),0))),""),"") ->  | BL59: =IFERROR(IF(BH59="Y",(INDIRECT(BK59)-BJ59)/IF(AA59="",1,o_nScreens),""),"") ->  | BO59: Piece | BP59: =IFERROR(IF(ISBLANK(BC59),"",INDEX([1]!T_NAV[Base Unit of Measure],MATCH(BC59,[1]!T_NAV[No.],0))),"") ->  | BS59: HW | BT59: 2 | BU59: 2 | BV59: 2
D60: Fabric Wrap | E60: 0 | H60: Handle | I60: =IFERROR(IF(ISBLANK(H60),"",IF(FIND(H60,INDIRECT($H$52))>0,1,0)),0) -> 0 | AY60: =IF(AND(ISBLANK(BC60),ISBLANK(C60)),"HIDE",_xlfn.SWITCH(PRODUCT(C60:Z60,B60),2,"HEADING",1,"SHOW",0,"HIDE")) -> HIDE | BC60: =_xlfn.IFNA(SUBSTITUTE(IF(AR60="AU",SUBSTITUTE(BE60,"xxx",AW60),SUBSTITUTE(SUBSTITUTE(BE60,"xx",AW60),"x","")),"LLL","580"),BE60) -> RB91-2336-001000 | BE60: RB91-2336-001000 | BF60: Fabric Wrap Hem Bar Handle | BH60: =IF(ISBLANK(BO60),"",IF(OR(BO60=L_Units),"Y","N")) -> N | BJ60: =IFERROR(IF(BH60="Y",((INDEX(T_Deduc18[Deduction],MATCH(BI60,T_Deduc18[Type],0),0))),""),"") ->  | BL60: =IFERROR(IF(BH60="Y",(INDIRECT(BK60)-BJ60)/IF(AA60="",1,o_nScreens),""),"") ->  | BO60: Piece | BP60: =IFERROR(IF(ISBLANK(BC60),"",INDEX([1]!T_NAV[Base Unit of Measure],MATCH(BC60,[1]!T_NAV[No.],0))),"") ->  | BS60: HW | BT60: 1 | BU60: 1 | BV60: 1 | BW60: =IFERROR(INDEX(INDIRECT("T_NAV_"&i_Location&"["&i_Location&"]"),MATCH(1,--(BC60=INDIRECT("T_NAV_"&i_Location&"[No.]"))*--((INDIRECT("T_NAV_"&i_Location&"["&i_Location&"]"))<>""),0))/IF(AND(BQ60="METRE",BG60<>"",BR60=""),BG60,1),"") -> 
H61: Pull | I61: =IFERROR(IF(ISBLANK(H61),"",IF(FIND(H61,INDIRECT($H$52))>0,1,0)),0) -> 0 | AY61: =IF(AND(ISBLANK(BC61),ISBLANK(C61)),"HIDE",_xlfn.SWITCH(PRODUCT(C61:Z61,B61),2,"HEADING",1,"SHOW",0,"HIDE")) -> HIDE | BC61: =_xlfn.IFNA(SUBSTITUTE(IF(AR61="AU",SUBSTITUTE(BE61,"xxx",AW61),SUBSTITUTE(SUBSTITUTE(BE61,"xx",AW61),"x","")),"LLL","580"),BE61) -> RB91-2536-069000 | BE61: RB91-2536-069000 | BF61: Hem Bar Pull Hook 2ft/4ft Extn | BH61: =IF(ISBLANK(BO61),"",IF(OR(BO61=L_Units),"Y","N")) -> N | BJ61: =IFERROR(IF(BH61="Y",((INDEX(T_Deduc18[Deduction],MATCH(BI61,T_Deduc18[Type],0),0))),""),"") ->  | BL61: =IFERROR(IF(BH61="Y",(INDIRECT(BK61)-BJ61)/IF(AA61="",1,o_nScreens),""),"") ->  | BO61: Piece | BP61: =IFERROR(IF(ISBLANK(BC61),"",INDEX([1]!T_NAV[Base Unit of Measure],MATCH(BC61,[1]!T_NAV[No.],0))),"") ->  | BS61: HW | BT61: 1 | BU61: 1 | BV61: 1 | BW61: =IFERROR(INDEX(INDIRECT("T_NAV_"&i_Location&"["&i_Location&"]"),MATCH(1,--(BC61=INDIRECT("T_NAV_"&i_Location&"[No.]"))*--((INDIRECT("T_NAV_"&i_Location&"["&i_Location&"]"))<>""),0))/IF(AND(BQ61="METRE",BG61<>"",BR61=""),BG61,1),"") ->  | BX61: =IFERROR(IF(AND(AY61="SHOW",BW61<>""),BW61*BV61*IF(AND(BM61<>"",OR(BP61="LENGTH",BP61="METRE",BP61="ROLL")),(BL61/1000),1),""),"") ->  | BY61: =IF(BX61<>"",(INDIRECT("i_"&BS61&"discount"))*BX61,"") ->  | BZ61: =IFERROR(IF(BX61<>"",BX61-BY61,""),"") -> 
D62: Fabric Wrap | E62: 0 | F62: Wrap | G62: 0 | I62: =IFERROR(IF(ISBLANK(H62),"",IF(FIND(H62,INDIRECT($H$52))>0,1,0)),0) ->  | AA62: i_wbSpline | AC62: or | AE62: =IFERROR(IF(ISBLANK(AC62),1,IF(FIND(AC62,INDIRECT($AA$62))>0,2,1)),1) -> 1 | AY62: =IF(AND(ISBLANK(BC62),ISBLANK(C62)),"HIDE",_xlfn.SWITCH(PRODUCT(C62:Z62,B62),2,"HEADING",1,"SHOW",0,"HIDE")) -> HIDE | BC62: =_xlfn.IFNA(SUBSTITUTE(IF(AR62="AU",SUBSTITUTE(BE62,"xxx",AW62),SUBSTITUTE(SUBSTITUTE(BE62,"xx",AW62),"x","")),"LLL","580"),BE62) -> SS91-5350-069000 | BE62: SS91-5350-069000 | BF62: Smooth Round Spline | 5.0mm x 820ft Roll (250m) | BG62: 250 | BH62: Y | BI62: wb | BJ62: =IFERROR(IF(BH62="Y",((INDEX(T_Deduc18[Deduction],MATCH(BI62,T_Deduc18[Type],0),0))),""),"") -> 25 | BK62: o_widthmm | BL62: =IFERROR(IF(BH62="Y",INDIRECT(BK62)-BJ62,""),"") -> -25 | BM62: =IFERROR(IF(BH62="Y",BL62,""),"") -> -25 | BN62: =IFERROR(IF(BH62="Y",TEXT(BL62/25.4,"0"&IF(ABS(BL62/25.4-ROUND(BL62/25.4,0))>1/32,"-0/"&CHOOSE(ROUND(MOD(BL62/25.4,1)*16,0),16,8,16,4,16,8,16,2,16,8,16,4,16,8,16),"")),""),"") -> -1 | BO62: =INDEX(T_UnitSelection[Units],MATCH(i_Units,T_UnitSelection[UnitSelection],0)) ->  | BP62: ROLL | BQ62: METRE | BR62: Y | BS62: HW | BT62: 1 | BU62: 1 | BV62: =IF(ISBLANK(BT62),"",PRODUCT(AE62,BT62,i_systemQTY)) -> 1
D63: Fabric Wrap | E63: 0 | F63: One Side | G63: 0 | AY63: =IF(AND(ISBLANK(BC63),ISBLANK(C63)),"HIDE",_xlfn.SWITCH(PRODUCT(C63:Z63,B63),2,"HEADING",1,"SHOW",0,"HIDE")) -> HIDE | BC63: =_xlfn.IFNA(SUBSTITUTE(IF(AR63="AU",SUBSTITUTE(BE63,"xxx",AW63),SUBSTITUTE(SUBSTITUTE(BE63,"xx",AW63),"x","")),"LLL","580"),BE63) -> RB92-0901-001100 | BE63: RB92-0901-001100 | BF63: 9mm ACM Flat Spline - No Tape | BG63: 100 | BH63: Y | BI63: wb | BJ63: 40 | BK63: o_widthmm | BL63: -40 | BM63: -40 | BN63: -1-9/16 | BO63: =INDEX(T_UnitSelection[Units],MATCH(i_Units,T_UnitSelection[UnitSelection],0)) ->  | BP63: ROLL | BS63: HW | BT63: 1 | BU63: 1 | BV63: 1
D64: Fabric Wrap | E64: 0 | F64: NO | G64: =IFERROR(IF(ISBLANK(F64),"",IF(FIND(F64,INDIRECT($F$52))>0,1,0)),0) -> 0 | AE64: =IFERROR(IF(AND(AA64="Y",PRODUCT(AB64:AD64)=0),o_nScreens,IF(PRODUCT(AB64:AD64)=0,"",PRODUCT(AB64:AD64))),"") ->  | AR64: AU | AS64: =IF(ISNUMBER(FIND("x",BE64)),IFERROR(INDEX(AI64:AQ64,0,MATCH(AT64,AI64:AQ64,0)),IF(AI64<>"",AI64,i_DefaultColour)),"") ->  | AT64: 0 | AV64: =IF(ISNUMBER(FIND("x",BE64)),IFERROR(INDEX(AI64:AQ64,0,MATCH(AT64,AI64:AQ64,0)),AS64),"") ->  | AW64: =IF(ISNUMBER(FIND("x",BE64)),IFERROR(INDEX(INDIRECT("T_FinishColour[ColourCode-"&IF(ISNUMBER(FIND("xxx",BE64)),"xxx",IF(ISNUMBER(FIND("xx",BE64)),"xx","error"))&AR64&"]"),MATCH(AV64,T_FinishColour[Finish / Colour],0)),""),"") ->  | AY64: =IF(AND(ISBLANK(BC64),ISBLANK(C64)),"HIDE",_xlfn.SWITCH(PRODUCT(C64:Z64,B64),2,"HEADING",1,"SHOW",0,"HIDE")) -> HIDE | BC64: SB91-0018-050040 | BE64: SB91-0018-050040 | BF64: 9mm Flat Spline | BH64: =IF(ISBLANK(BO64),"",IF(OR(BO64=L_Units),"Y","N")) ->  | BI64: wbSeal | BJ64: =IFERROR(IF(BH64="Y",((INDEX(T_Deduc18[Deduction],MATCH(BI64,T_Deduc18[Type],0),0))),""),"") ->  | BK64: o_widthmm | BL64: =IFERROR(IF(BH64="Y",INDIRECT(BK64)-BJ64,""),"") ->  | BM64: =IFERROR(IF(BH64="Y",BL64,""),"") ->  | BN64: =IFERROR(IF(BH64="Y",TEXT(BL64/25.4,"0"&IF(ABS(BL64/25.4-ROUND(BL64/25.4,0))>1/32,"-0/"&CHOOSE(ROUND(MOD(BL64/25.4,1)*16,0),16,8,16,4,16,8,16,2,16,8,16,4,16,8,16),"")),""),"") ->  | BO64: =INDEX(T_UnitSelection[Units],MATCH(i_Units,T_UnitSelection[UnitSelection],0)) ->  | BP64: =IFERROR(IF(ISBLANK(BC64),"",INDEX(T_NAV_AU[Base Unit of Measure],MATCH(BC64,T_NAV_AU[No.],0))),"") -> METRE | BQ64: METRE | BS64: HW | BT64: 1 | BU64: =IF(ISBLANK(BT64),"",PRODUCT(AE64,BT64)) -> 1 | BV64: 1 | BW64: =IFERROR(INDEX(INDIRECT("T_NAV_"&i_Location&"["&i_Location&"]"),MATCH(1,--(BC64=INDIRECT("T_NAV_"&i_Location&"[No.]"))*--((INDIRECT("T_NAV_"&i_Location&"["&i_Location&"]"))<>""),0))/IF(AND(BQ64="METRE",BG64<>"",BR64=""),BG64,1),"") ->  | BX64: =IFERROR(IF(AND(AY64="SHOW",BW64<>""),BW64*BV64*IF(AND(BM64<>"",OR(BP64="LENGTH",BP64="METRE",BP64="ROLL")),(BL64/1000),1),""),"") ->  | BY64: =IF(BX64<>"",(INDIRECT("i_"&BS64&"discount"))*BX64,"") ->  | BZ64: =IFERROR(IF(BX64<>"",BX64-BY64,""),"") -> 
D65: Fabric Wrap | E65: 0 | F65: MP | G65: =(IFERROR(IF(ISBLANK(F65),"",IF(FIND(F65,INDIRECT($F$52))>0,1,0)),0)+IF(G66=1,-1,0)) -> 0 | AE65: =IFERROR(IF(AND(AA65="Y",PRODUCT(AB65:AD65)=0),o_nScreens,IF(PRODUCT(AB65:AD65)=0,"",PRODUCT(AB65:AD65))),"") ->  | AR65: AU | AS65: =IF(ISNUMBER(FIND("x",BE65)),IFERROR(INDEX(AI65:AQ65,0,MATCH(AT65,AI65:AQ65,0)),IF(AI65<>"",AI65,i_DefaultColour)),"") ->  | AT65: 0 | AV65: =IF(ISNUMBER(FIND("x",BE65)),IFERROR(INDEX(AI65:AQ65,0,MATCH(AT65,AI65:AQ65,0)),AS65),"") ->  | AW65: =IF(ISNUMBER(FIND("x",BE65)),IFERROR(INDEX(INDIRECT("T_FinishColour[ColourCode-"&IF(ISNUMBER(FIND("xxx",BE65)),"xxx",IF(ISNUMBER(FIND("xx",BE65)),"xx","error"))&AR65&"]"),MATCH(AV65,T_FinishColour[Finish / Colour],0)),""),"") ->  | AY65: =IF(AND(ISBLANK(BC65),ISBLANK(C65)),"HIDE",_xlfn.SWITCH(PRODUCT(C65:Z65,B65),2,"HEADING",1,"SHOW",0,"HIDE")) -> HIDE | BC65: SB91-0019-050580 | BE65: SB91-0019-050580 | BF65: 9mm Flat Spline - D/S MP-HR TAPE | BH65: =IF(ISBLANK(BO65),"",IF(OR(BO65=L_Units),"Y","N")) ->  | BI65: wbSeal | BJ65: =IFERROR(IF(BH65="Y",((INDEX(T_Deduc18[Deduction],MATCH(BI65,T_Deduc18[Type],0),0))),""),"") ->  | BK65: o_widthmm | BO65: =INDEX(T_UnitSelection[Units],MATCH(i_Units,T_UnitSelection[UnitSelection],0)) ->  | BP65: =IFERROR(IF(ISBLANK(BC65),"",INDEX(T_NAV_AU[Base Unit of Measure],MATCH(BC65,T_NAV_AU[No.],0))),"") -> LENGTH | BQ65: METRE | BS65: HW | BT65: 1 | BU65: 1 | BV65: 1 | BW65: =IFERROR(INDEX(INDIRECT("T_NAV_"&i_Location&"["&i_Location&"]"),MATCH(1,--(BC65=INDIRECT("T_NAV_"&i_Location&"[No.]"))*--((INDIRECT("T_NAV_"&i_Location&"["&i_Location&"]"))<>""),0))/IF(AND(BQ65="METRE",BG65<>"",BR65=""),BG65,1),"") -> 
D66: Fabric Wrap | E66: 0 | F66: B/SIDES | G66: =IFERROR(IF(ISBLANK(F66),"",IF(FIND(F66,INDIRECT($F$52))>0,1,0)),0) -> 0 | O66: =IFERROR(IF(ISBLANK(N66),"",IF(FIND(N66,INDIRECT($N$52))>0,1,0)),0) ->  | AE66: =IFERROR(MID(i_wbHandle,10,1)*1,"") ->  | AT66: 0 | AW66: =IF(ISNUMBER(FIND("x",BE66)),IFERROR(INDEX(INDIRECT("T_FinishColour[ColourCode-"&IF(ISNUMBER(FIND("xxx",BE66)),"xxx",IF(ISNUMBER(FIND("xx",BE66)),"xx","error"))&AR66&"]"),MATCH(AV66,T_FinishColour[Finish / Colour],0)),""),"") ->  | AY66: =IF(AND(ISBLANK(BC66),ISBLANK(C66)),"HIDE",_xlfn.SWITCH(PRODUCT(C66:Z66,B66),2,"HEADING",1,"SHOW",0,"HIDE")) -> HIDE | BC66: =_xlfn.IFNA(SUBSTITUTE(IF(AR66="AU",SUBSTITUTE(BE66,"xxx",AW66),SUBSTITUTE(SUBSTITUTE(BE66,"xx",AW66),"x","")),"LLL","580"),BE66) -> SB07-2201-022001 | BE66: SB07-2201-022001 | BF66: 9mm Flat Spline - D/S MP-HR TAPE B/SIDES | BH66: =IF(ISBLANK(BO66),"",IF(OR(BO66=L_Units),"Y","N")) ->  | BI66: wbSeal | BJ66: =IFERROR(IF(BH66="Y",((INDEX(T_Deduc18[Deduction],MATCH(BI66,T_Deduc18[Type],0),0))),""),"") ->  | BK66: o_widthmm | BO66: =INDEX(T_UnitSelection[Units],MATCH(i_Units,T_UnitSelection[UnitSelection],0)) ->  | BP66: =IFERROR(IF(ISBLANK(BC66),"",INDEX(T_NAV_AU[Base Unit of Measure],MATCH(BC66,T_NAV_AU[No.],0))),"") ->  | BQ66: METRE | BS66: HW | BT66: 1 | BU66: 1 | BV66: 1 | BW66: =IFERROR(INDEX(INDIRECT("T_NAV_"&i_Location&"["&i_Location&"]"),MATCH(1,--(BC66=INDIRECT("T_NAV_"&i_Location&"[No.]"))*--((INDIRECT("T_NAV_"&i_Location&"["&i_Location&"]"))<>""),0))/IF(AND(BQ66="METRE",BG66<>"",BR66=""),BG66,1),"") ->  | CC66: =2.85*2.64 -> 7.524
D67: D30 | E67: 0 | H67: Handle | I67: 0 | M67: =IFERROR(IF(ISBLANK(L67),"",IF(FIND(L67,INDIRECT($L$85))>0,1,0)),0) ->  | AY67: =IF(AND(ISBLANK(BC67),ISBLANK(C67)),"HIDE",_xlfn.SWITCH(PRODUCT(C67:Z67,B67),2,"HEADING",1,"SHOW",0,"HIDE")) -> HIDE | BC67: =_xlfn.IFNA(SUBSTITUTE(IF(AR67="AU",SUBSTITUTE(BE67,"xxx",AW67),SUBSTITUTE(SUBSTITUTE(BE67,"xx",AW67),"x","")),"LLL","580"),BE67) -> RB91-2332-001000 | BE67: RB91-2332-001000 | BF67: D30 Weight Bar Handle | BH67: =IF(ISBLANK(BO67),"",IF(OR(BO67=L_Units),"Y","N")) -> N | BJ67: =IFERROR(_xlfn.SINGLE(IF(BH67="Y",((INDEX(#REF!,MATCH(BI67,#REF!,0),0))),"")),"") ->  | BL67: =IFERROR(IF(BH67="Y",INDIRECT(BK67)-BJ67,""),"") ->  | BM67: =IFERROR(IF(BH67="Y",BL67,""),"") ->  | BN67: =IFERROR(IF(BH67="Y",TEXT(BL67/25.4,"0"&IF(ABS(BL67/25.4-ROUND(BL67/25.4,0))>1/32,"-0/"&CHOOSE(ROUND(MOD(BL67/25.4,1)*16,0),16,8,16,4,16,8,16,2,16,8,16,4,16,8,16),"")),""),"") ->  | BO67: Piece | BP67: =IFERROR(IF(ISBLANK(BC67),"",INDEX(T_NAV_AU[Base Unit of Measure],MATCH(BC67,T_NAV_AU[No.],0))),"") -> PIECE | BS67: HW | BT67: 1 | BU67: =IF(ISBLANK(BT67),"",PRODUCT(AE67,BT67)) -> 1 | BV67: =IF(ISBLANK(BT67),"",PRODUCT(AE67,BT67,i_systemQTY)) -> 1 | BW67: =IFERROR(INDEX(INDIRECT("T_NAV_"&i_Location&"["&i_Location&"]"),MATCH(1,--(BC67=INDIRECT("T_NAV_"&i_Location&"[No.]"))*--((INDIRECT("T_NAV_"&i_Location&"["&i_Location&"]"))<>""),0))/IF(AND(BQ67="METRE",BG67<>"",BR67=""),BG67,1),"") ->  | BX67: =IFERROR(IF(AND(AY67="SHOW",BW67<>""),BW67*BV67*IF(AND(BM67<>"",OR(BP67="LENGTH",BP67="METRE",BP67="ROLL")),(BL67/1000),1),""),"") ->  | BY67: =IF(BX67<>"",(INDIRECT("i_"&BS67&"discount"))*BX67,"") ->  | BZ67: =IFERROR(IF(BX67<>"",BX67-BY67,""),"") -> 
C68: 1 | G68: =IFERROR(IF(ISBLANK(F68),"",IF(FIND(F68,INDIRECT($F$52))>0,1,0)),0) ->  | I68: =IFERROR(IF(ISBLANK(H68),"",IF(FIND(H68,INDIRECT($H$52))>0,1,0)),0) ->  | K68: =IFERROR(IF(ISBLANK(J68),"",IF(FIND(J68,INDIRECT($J$52))>0,1,0)),0) ->  | L68: AU | M68: =IFERROR(IF(ISBLANK(L68),"",IF(FIND(L68,INDIRECT($L$52))>0,1,0)),0) -> 0 | AR68: AU | AT68: 0 | AW68: =IF(ISNUMBER(FIND("x",BE68)),IFERROR(INDEX(INDIRECT("T_FinishColour[ColourCode-"&IF(ISNUMBER(FIND("xxx",BE68)),"xxx",IF(ISNUMBER(FIND("xx",BE68)),"xx","error"))&AR68&"]"),MATCH(AV68,T_FinishColour[Finish / Colour],0)),""),"") ->  | AY68: =IF(AND(ISBLANK(BC68),ISBLANK(C68)),"HIDE",_xlfn.SWITCH(PRODUCT(C68:Z68,B68),2,"HEADING",1,"SHOW",0,"HIDE")) -> HIDE | BC68: =_xlfn.IFNA(SUBSTITUTE(IF(AR68="AU",SUBSTITUTE(BE68,"xxx",AW68),SUBSTITUTE(SUBSTITUTE(BE68,"xx",AW68),"x","")),"LLL","580"),BE68) -> VB05-0301-025200 | BE68: VB05-0301-025200 | BF68: VB05 OVAL Steel Ballast 5x7.5mm x 2mt Length | BG68: 2 | BH68: =IF(ISBLANK(BO68),"",IF(OR(BO68=L_Units),"Y","N")) ->  | BI68: Ballast | BJ68: =IFERROR(IF(BH68="Y",((INDEX(T_Deduc18[Deduction],MATCH(BI68,T_Deduc18[Type],0),0))),""),"") ->  | BK68: o_widthmm | BL68: =IFERROR(IF(BH68="Y",IF(INDIRECT(BK68)-BJ68<2001,INDIRECT(BK68)-BJ68,2000),""),"") ->  | BM68: =IFERROR(IF(BH68="Y",BL68,""),"") ->  | BN68: =IFERROR(IF(BH68="Y",TEXT(BL68/25.4,"0"&IF(ABS(BL68/25.4-ROUND(BL68/25.4,0))>1/32,"-0/"&CHOOSE(ROUND(MOD(BL68/25.4,1)*16,0),16,8,16,4,16,8,16,2,16,8,16,4,16,8,16),"")),""),"") ->  | BO68: =INDEX(T_UnitSelection[Units],MATCH(i_Units,T_UnitSelection[UnitSelection],0)) ->  | BP68: =IFERROR(IF(ISBLANK(BC68),"",INDEX(T_NAV_AU[Base Unit of Measure],MATCH(BC68,T_NAV_AU[No.],0))),"") -> LENGTH | BQ68: METRE | BS68: HW | BT68: 1 | BU68: =IF(ISBLANK(BT68),"",PRODUCT(AE68,BT68)) -> 1 | BV68: =IF(ISBLANK(BT68),"",PRODUCT(AE68,BT68,i_systemQTY)) -> 1 | BW68: =IFERROR(INDEX(INDIRECT("T_NAV_"&i_Location&"["&i_Location&"]"),MATCH(1,--(BC68=INDIRECT("T_NAV_"&i_Location&"[No.]"))*--((INDIRECT("T_NAV_"&i_Location&"["&i_Location&"]"))<>""),0))/IF(AND(BQ68="METRE",BG68<>"",BR68=""),BG68,1),"") -> 
L69: AU | M69: =IFERROR(IF(ISBLANK(L69),"",IF(FIND(L69,INDIRECT($L$52))>0,1,0)),0) -> 0 | O69: =IF(BL69=0,0,1) -> 1 | AR69: AU | AS69: =IF(ISNUMBER(FIND("x",BE69)),IFERROR(INDEX(AI69:AQ69,0,MATCH(AT69,AI69:AQ69,0)),IF(AI69<>"",AI69,i_DefaultColour)),"") ->  | AT69: 0 | AV69: =IF(ISNUMBER(FIND("x",BE69)),IFERROR(INDEX(AI69:AQ69,0,MATCH(AT69,AI69:AQ69,0)),AS69),"") ->  | AW69: =IF(ISNUMBER(FIND("x",BE69)),IFERROR(INDEX(INDIRECT("T_FinishColour[ColourCode-"&IF(ISNUMBER(FIND("xxx",BE69)),"xxx",IF(ISNUMBER(FIND("xx",BE69)),"xx","error"))&AR69&"]"),MATCH(AV69,T_FinishColour[Finish / Colour],0)),""),"") ->  | AY69: =IF(AND(ISBLANK(BC69),ISBLANK(C69)),"HIDE",_xlfn.SWITCH(PRODUCT(C69:Z69,B69),2,"HEADING",1,"SHOW",0,"HIDE")) -> HIDE | BC69: =_xlfn.IFNA(SUBSTITUTE(IF(AR69="AU",SUBSTITUTE(BE69,"xxx",AW69),SUBSTITUTE(SUBSTITUTE(BE69,"xx",AW69),"x","")),"LLL","580"),BE69) -> VB05-0301-025200 | BE69: VB05-0301-025200 | BF69: VB05 OVAL Steel Ballast 5x7.5mm x 2mt Length | BG69: 2 | BH69: =IF(ISBLANK(BO69),"",IF(OR(BO69=L_Units),"Y","N")) ->  | BI69: Ballast | BJ69: =IFERROR(IF(BH69="Y",((INDEX(T_Deduc18[Deduction],MATCH(BI69,T_Deduc18[Type],0),0))),""),"") ->  | BK69: o_widthmm | BL69: =IFERROR(IF(BH68="Y",IF(INDIRECT(BK68)-BJ68>2000,INDIRECT(BK68)-BJ68-2000,0),""),"") ->  | BM69: =IFERROR(IF(BH69="Y",BL69,""),"") ->  | BN69: =IFERROR(IF(BH69="Y",TEXT(BL69/25.4,"0"&IF(ABS(BL69/25.4-ROUND(BL69/25.4,0))>1/32,"-0/"&CHOOSE(ROUND(MOD(BL69/25.4,1)*16,0),16,8,16,4,16,8,16,2,16,8,16,4,16,8,16),"")),""),"") ->  | BO69: =INDEX(T_UnitSelection[Units],MATCH(i_Units,T_UnitSelection[UnitSelection],0)) ->  | BP69: =IFERROR(IF(ISBLANK(BC69),"",INDEX(T_NAV_AU[Base Unit of Measure],MATCH(BC69,T_NAV_AU[No.],0))),"") -> LENGTH | BQ69: METRE | BS69: HW | BT69: 1 | BU69: =IF(ISBLANK(BT69),"",PRODUCT(AE69,BT69)) -> 1 | BV69: =IF(ISBLANK(BT69),"",PRODUCT(AE69,BT69,i_systemQTY)) -> 1 | BW69: =IFERROR(INDEX(INDIRECT("T_NAV_"&i_Location&"["&i_Location&"]"),MATCH(1,--(BC69=INDIRECT("T_NAV_"&i_Location&"[No.]"))*--((INDIRECT("T_NAV_"&i_Location&"["&i_Location&"]"))<>""),0))/IF(AND(BQ69="METRE",BG69<>"",BR69=""),BG69,1),"") ->  | BX69: =IFERROR(IF(AND(AY69="SHOW",BW69<>""),BW69*BV69*IF(AND(BM69<>"",OR(BP69="LENGTH",BP69="METRE",BP69="ROLL")),(BL69/1000),1),""),"") ->  | BY69: =IF(BX69<>"",(INDIRECT("i_"&BS69&"discount"))*BX69,"") ->  | BZ69: =IFERROR(IF(BX69<>"",BX69-BY69,""),"") -> 
L70: US | M70: =IFERROR(IF(ISBLANK(L70),"",IF(FIND(L70,INDIRECT($L$52))>0,1,0)),0) -> 0 | AR70: US | AT70: 0 | AW70: =IF(ISNUMBER(FIND("x",BE70)),IFERROR(INDEX(INDIRECT("T_FinishColour[ColourCode-"&IF(ISNUMBER(FIND("xxx",BE70)),"xxx",IF(ISNUMBER(FIND("xx",BE70)),"xx","error"))&AR70&"]"),MATCH(AV70,T_FinishColour[Finish / Colour],0)),""),"") ->  | AY70: =IF(AND(ISBLANK(BC70),ISBLANK(C70)),"HIDE",_xlfn.SWITCH(PRODUCT(C70:Z70,B70),2,"HEADING",1,"SHOW",0,"HIDE")) -> HIDE | BC70: VB05-0301-025300 | BE70: VB05-0301-025300 | BF70: VB05 OVAL Steel Tiltrod 5x7.5mm x 3mt Length | BG70: 3 | BH70: =IF(ISBLANK(BO70),"",IF(OR(BO70=L_Units),"Y","N")) ->  | BI70: Ballast | BJ70: =IFERROR(IF(BH70="Y",((INDEX(T_Deduc18[Deduction],MATCH(BI70,T_Deduc18[Type],0),0))),""),"") ->  | BK70: o_widthmm | BL70: =IFERROR(IF(BH70="Y",IF(INDIRECT(BK70)-BJ70<3001,INDIRECT(BK70)-BJ70,3000),""),"") ->  | BO70: =INDEX(T_UnitSelection[Units],MATCH(i_Units,T_UnitSelection[UnitSelection],0)) ->  | BP70: =IFERROR(IF(ISBLANK(BC70),"",INDEX(T_NAV_AU[Base Unit of Measure],MATCH(BC70,T_NAV_AU[No.],0))),"") -> LENGTH | BQ70: METRE | BS70: HW | BT70: 1 | BU70: 1 | BV70: 1 | BW70: =IFERROR(INDEX(INDIRECT("T_NAV_"&i_Location&"["&i_Location&"]"),MATCH(1,--(BC70=INDIRECT("T_NAV_"&i_Location&"[No.]"))*--((INDIRECT("T_NAV_"&i_Location&"["&i_Location&"]"))<>""),0))/IF(AND(BQ70="METRE",BG70<>"",BR70=""),BG70,1),"") -> 
C71: 1 | G71: =IFERROR(IF(ISBLANK(F71),"",IF(FIND(F71,INDIRECT($F$52))>0,1,0)),0) ->  | I71: =IFERROR(IF(ISBLANK(H71),"",IF(FIND(H71,INDIRECT($H$52))>0,1,0)),0) ->  | L71: US | M71: =IFERROR(IF(ISBLANK(L71),"",IF(FIND(L71,INDIRECT($L$52))>0,1,0)),0) -> 0 | O71: =IF(BL71=0,0,1) -> 1 | AE71: =IFERROR(IF(AND(AA71="Y",PRODUCT(AB71:AD71)=0),o_nScreens,IF(PRODUCT(AB71:AD71)=0,"",PRODUCT(AB71:AD71))),"") ->  | AR71: US | AS71: =IF(ISNUMBER(FIND("x",BE71)),IFERROR(INDEX(AI71:AQ71,0,MATCH(AT71,AI71:AQ71,0)),IF(AI71<>"",AI71,i_DefaultColour)),"") ->  | AT71: 0 | AV71: =IF(ISNUMBER(FIND("x",BE71)),IFERROR(INDEX(AI71:AQ71,0,MATCH(AT71,AI71:AQ71,0)),AS71),"") ->  | AW71: =IF(ISNUMBER(FIND("x",BE71)),IFERROR(INDEX(INDIRECT("T_FinishColour[ColourCode-"&IF(ISNUMBER(FIND("xxx",BE71)),"xxx",IF(ISNUMBER(FIND("xx",BE71)),"xx","error"))&AR71&"]"),MATCH(AV71,T_FinishColour[Finish / Colour],0)),""),"") ->  | AY71: =IF(AND(ISBLANK(BC71),ISBLANK(C71)),"HIDE",_xlfn.SWITCH(PRODUCT(C71:Z71,B71),2,"HEADING",1,"SHOW",0,"HIDE")) -> HIDE | BC71: =_xlfn.IFNA(SUBSTITUTE(IF(AR71="AU",SUBSTITUTE(BE71,"xxx",AW71),SUBSTITUTE(SUBSTITUTE(BE71,"xx",AW71),"x","")),"LLL","580"),BE71) -> VB05-0301-025300 | BE71: VB05-0301-025300 | BF71: VB05 OVAL Steel Tiltrod 5x7.5mm x 3mt Length | BG71: 3 | BH71: =IF(ISBLANK(BO71),"",IF(OR(BO71=L_Units),"Y","N")) ->  | BI71: Ballast | BJ71: =IFERROR(IF(BH71="Y",((INDEX(T_Deduc18[Deduction],MATCH(BI71,T_Deduc18[Type],0),0))),""),"") ->  | BK71: o_widthmm | BL71: =IFERROR(IF(BH70="Y",IF(INDIRECT(BK70)-BJ70>3000,INDIRECT(BK70)-BJ70-3000,0),""),"") ->  | BO71: =INDEX(T_UnitSelection[Units],MATCH(i_Units,T_UnitSelection[UnitSelection],0)) ->  | BP71: =IFERROR(IF(ISBLANK(BC71),"",INDEX(T_NAV_AU[Base Unit of Measure],MATCH(BC71,T_NAV_AU[No.],0))),"") -> LENGTH | BQ71: METRE | BS71: HW | BT71: 1 | BU71: 1 | BV71: 1 | BW71: =IFERROR(INDEX(INDIRECT("T_NAV_"&i_Location&"["&i_Location&"]"),MATCH(1,--(BC71=INDIRECT("T_NAV_"&i_Location&"[No.]"))*--((INDIRECT("T_NAV_"&i_Location&"["&i_Location&"]"))<>""),0))/IF(AND(BQ71="METRE",BG71<>"",BR71=""),BG71,1),"") -> 
B72: 2 | C72: 1 | AW72: =IF(ISNUMBER(FIND("x",BE72)),IFERROR(INDEX(INDIRECT("T_FinishColour[ColourCode-"&IF(ISNUMBER(FIND("xxx",BE72)),"xxx",IF(ISNUMBER(FIND("xx",BE72)),"xx","error"))&AR72&"]"),MATCH(AV72,T_FinishColour[Finish / Colour],0)),""),"") ->  | AY72: =IF(AND(ISBLANK(BC72),ISBLANK(C72)),"HIDE",_xlfn.SWITCH(PRODUCT(C72:Z72,B72),2,"HEADING",1,"SHOW",0,"HIDE")) -> HEADING | BC72: =_xlfn.IFNA(SUBSTITUTE(IF(AR72="AU",SUBSTITUTE(BE72,"xxx",AW72),SUBSTITUTE(SUBSTITUTE(BE72,"xx",AW72),"x","")),"LLL","580"),BE72) ->  | BH72: =IF(ISBLANK(BO72),"",IF(OR(BO72=L_Units),"Y","N")) ->  | BJ72: =IFERROR(_xlfn.SINGLE(IF(BH72="Y",((INDEX(#REF!,MATCH(BI72,#REF!,0),0))),"")),"") ->  | BM72: =IFERROR(IF(BH72="Y",BL72,""),"") ->  | BP72: =IFERROR(IF(ISBLANK(BC72),"",INDEX(T_NAV_AU[Base Unit of Measure],MATCH(BC72,T_NAV_AU[No.],0))),"") ->  | BW72: =IFERROR(INDEX(INDIRECT("T_NAV_"&i_Location&"["&i_Location&"]"),MATCH(1,--(BC72=INDIRECT("T_NAV_"&i_Location&"[No.]"))*--((INDIRECT("T_NAV_"&i_Location&"["&i_Location&"]"))<>""),0))/IF(AND(BQ72="METRE",BG72<>"",BR72=""),BG72,1),"") ->  | BX72: =IFERROR(IF(AND(AY72="SHOW",BW72<>""),BW72*BV72*IF(AND(BM72<>"",OR(BP72="LENGTH",BP72="METRE",BP72="ROLL")),(BL72/1000),1),""),"") ->  | BZ72: =IFERROR(IF(BX72<>"",BX72-BY72,""),"") -> 
B73: 2 | C73: 1 | D73: i_Tube | F73: i_SystemType | H73: i_TubeExtras | J73: i_ControlType | L73: i_Location | N73: i_taped | AW73: =IF(ISNUMBER(FIND("x",BE73)),IFERROR(INDEX(INDIRECT("T_FinishColour[ColourCode-"&IF(ISNUMBER(FIND("xxx",BE73)),"xxx",IF(ISNUMBER(FIND("xx",BE73)),"xx","error"))&AR73&"]"),MATCH(AV73,T_FinishColour[Finish / Colour],0)),""),"") ->  | AY73: =IF(AND(ISBLANK(BC73),ISBLANK(C73)),"HIDE",_xlfn.SWITCH(PRODUCT(C73:Z73,B73),2,"HEADING",1,"SHOW",0,"HIDE")) -> HEADING | BC73: TUBE | BE73: TUBE | BJ73: =IFERROR(_xlfn.SINGLE(IF(BH73="Y",((INDEX(#REF!,MATCH(BI73,#REF!,0),0))),"")),"") ->  | BP73: =IFERROR(IF(ISBLANK(BC73),"",INDEX(T_NAV_AU[Base Unit of Measure],MATCH(BC73,T_NAV_AU[No.],0))),"") ->  | BW73: =IFERROR(INDEX(INDIRECT("T_NAV_"&i_Location&"["&i_Location&"]"),MATCH(1,--(BC73=INDIRECT("T_NAV_"&i_Location&"[No.]"))*--((INDIRECT("T_NAV_"&i_Location&"["&i_Location&"]"))<>""),0))/IF(AND(BQ73="METRE",BG73<>"",BR73=""),BG73,1),"") -> 
D74: 1.5" | E74: =IFERROR(IF(ISBLANK(D74),"",IF(FIND(D74,INDIRECT($D$73))>0,1,0)),0) -> 0 | G74: =IFERROR(IF(ISBLANK(F74),"",IF(FIND(F74,INDIRECT($F$73))>0,1,0)),0) ->  | I74: =IFERROR(IF(ISBLANK(H74),"",IF(FIND(H74,INDIRECT($H$73))>0,1,0)),0) ->  | K74: =IFERROR(IF(ISBLANK(J74),"",IF(FIND(J74,INDIRECT($J$73))>0,1,0)),0) ->  | AS74: =IF(ISNUMBER(FIND("x",BE74)),IFERROR(INDEX(AI74:AQ74,0,MATCH(AT74,AI74:AQ74,0)),IF(AI74<>"",AI74,i_DefaultColour)),"") ->  | AV74: =IF(ISNUMBER(FIND("x",BE74)),IFERROR(INDEX(AI74:AQ74,0,MATCH(AT74,AI74:AQ74,0)),AS74),"") ->  | AW74: =IF(ISNUMBER(FIND("x",BE74)),IFERROR(INDEX(INDIRECT("T_FinishColour[ColourCode-"&IF(ISNUMBER(FIND("xxx",BE74)),"xxx",IF(ISNUMBER(FIND("xx",BE74)),"xx","error"))&AR74&"]"),MATCH(AV74,T_FinishColour[Finish / Colour],0)),""),"") ->  | AY74: =IF(AND(ISBLANK(BC74),ISBLANK(C74)),"HIDE",_xlfn.SWITCH(PRODUCT(C74:Z74,B74),2,"HEADING",1,"SHOW",0,"HIDE")) -> HIDE | BC74: =_xlfn.IFNA(SUBSTITUTE(IF(AR74="AU",SUBSTITUTE(BE74,"xxx",AW74),SUBSTITUTE(SUBSTITUTE(BE74,"xx",AW74),"x","")),"LLL","015"),BE74) -> RTEA4T16 | BE74: RTEA4T16 | BF74: Aluminum Tube 1.5" Taped | BG74: 4.9 | BH74: =IF(ISBLANK(BO74),"",IF(OR(BO74=L_Units),"Y","N")) ->  | BI74: Tube | BJ74: =IFERROR(IF(BH74="Y",((INDEX(T_Deduc18[Deduction],MATCH(BI74,T_Deduc18[Type],0),0))),""),"") ->  | BK74: o_widthmm | BL74: =IFERROR(IF(BH74="Y",INDIRECT(BK74)-BJ74,""),"") ->  | BO74: =INDEX(T_UnitSelection[Units],MATCH(i_Units,T_UnitSelection[UnitSelection],0)) ->  | BP74: =IFERROR(IF(ISBLANK(BC74),"",INDEX(T_NAV_AU[Base Unit of Measure],MATCH(BC74,T_NAV_AU[No.],0))),"") -> LENGTH | BQ74: METRE | BS74: HW | BT74: 1 | BU74: 1 | BV74: 1 | BW74: =IFERROR(INDEX(INDIRECT("T_NAV_"&i_Location&"["&i_Location&"]"),MATCH(1,--(BC74=INDIRECT("T_NAV_"&i_Location&"[No.]"))*--((INDIRECT("T_NAV_"&i_Location&"["&i_Location&"]"))<>""),0))/IF(AND(BQ74="METRE",BG74<>"",BR74=""),BG74,1),"") -> 
D75: 2" | E75: =IFERROR(IF(ISBLANK(D75),"",IF(FIND(D75,INDIRECT($D$73))>0,1,0)),0) -> 0 | AY75: =IF(AND(ISBLANK(BC75),ISBLANK(C75)),"HIDE",_xlfn.SWITCH(PRODUCT(C75:Z75,B75),2,"HEADING",1,"SHOW",0,"HIDE")) -> HIDE | BC75: =_xlfn.IFNA(SUBSTITUTE(IF(AR75="AU",SUBSTITUTE(BE75,"xxx",AW75),SUBSTITUTE(SUBSTITUTE(BE75,"xx",AW75),"x","")),"LLL","015"),BE75) -> RTEA5T16 | BE75: RTEA5T16 | BF75: Aluminum Tube 2" Taped | BG75: 4.9 | BH75: =IF(ISBLANK(BO75),"",IF(OR(BO75=L_Units),"Y","N")) ->  | BI75: Tube | BJ75: =IFERROR(IF(BH75="Y",((INDEX(T_Deduc18[Deduction],MATCH(BI75,T_Deduc18[Type],0),0))),""),"") ->  | BK75: o_widthmm | BL75: =IFERROR(IF(BH75="Y",INDIRECT(BK75)-BJ75,""),"") ->  | BM75: =IFERROR(IF(BH75="Y",BL75,""),"") ->  | BN75: =IFERROR(IF(BH75="Y",TEXT(BL75/25.4,"0"&IF(ABS(BL75/25.4-ROUND(BL75/25.4,0))>1/32,"-0/"&CHOOSE(ROUND(MOD(BL75/25.4,1)*16,0),16,8,16,4,16,8,16,2,16,8,16,4,16,8,16),"")),""),"") ->  | BO75: =INDEX(T_UnitSelection[Units],MATCH(i_Units,T_UnitSelection[UnitSelection],0)) ->  | BP75: =IFERROR(IF(ISBLANK(BC75),"",INDEX(T_NAV_AU[Base Unit of Measure],MATCH(BC75,T_NAV_AU[No.],0))),"") -> LENGTH | BQ75: METRE | BS75: HW | BT75: 1 | BU75: =IF(ISBLANK(BT75),"",PRODUCT(AE75,BT75)) -> 1 | BV75: =IF(ISBLANK(BT75),"",PRODUCT(AE75,BT75,i_systemQTY)) -> 1 | BW75: =IFERROR(INDEX(INDIRECT("T_NAV_"&i_Location&"["&i_Location&"]"),MATCH(1,--(BC75=INDIRECT("T_NAV_"&i_Location&"[No.]"))*--((INDIRECT("T_NAV_"&i_Location&"["&i_Location&"]"))<>""),0))/IF(AND(BQ75="METRE",BG75<>"",BR75=""),BG75,1),"") ->  | BX75: =IFERROR(IF(AND(AY75="SHOW",BW75<>""),BW75*BV75*IF(AND(BM75<>"",OR(BP75="LENGTH",BP75="METRE",BP75="ROLL")),(BL75/1000),1),""),"") ->  | BY75: =IF(BX75<>"",(INDIRECT("i_"&BS75&"discount"))*BX75,"") ->  | BZ75: =IFERROR(IF(BX75<>"",BX75-BY75,""),"") -> 
D76: S45 LGT | E76: =IFERROR(IF(ISBLANK(D76),"",IF(FIND(D76,INDIRECT($D$73))>0,1,0)),0) -> 0 | H76: Without Tape | I76: =IFERROR(IF(ISBLANK(H76),"",IF(FIND(H76,INDIRECT($H$73))>0,1,0)),0) -> 0 | AY76: =IF(AND(ISBLANK(BC76),ISBLANK(C76)),"HIDE",_xlfn.SWITCH(PRODUCT(C76:Z76,B76),2,"HEADING",1,"SHOW",0,"HIDE")) -> HIDE | BC76: RB93-0443-000490 | BE76: ="RB93-0443-000"&(BG76*100) -> RB93-0443-000490 | BF76: S45 | LIGHT T-SPLINE Alum. Tube | BG76: =IF(i_Location="AU",5.8,4.9) -> 4.9 | BH76: =IF(ISBLANK(BO76),"",IF(OR(BO76=L_Units),"Y","N")) ->  | BI76: Tube | BJ76: =IFERROR(IF(BH76="Y",((INDEX(T_Deduc18[Deduction],MATCH(BI76,T_Deduc18[Type],0),0))),""),"") ->  | BK76: o_widthmm | BL76: =IFERROR(IF(BH76="Y",INDIRECT(BK76)-BJ76,""),"") ->  | BM76: =IFERROR(IF(BH76="Y",BL76,""),"") ->  | BN76: =IFERROR(IF(BH76="Y",TEXT(BL76/25.4,"0"&IF(ABS(BL76/25.4-ROUND(BL76/25.4,0))>1/32,"-0/"&CHOOSE(ROUND(MOD(BL76/25.4,1)*16,0),16,8,16,4,16,8,16,2,16,8,16,4,16,8,16),"")),""),"") ->  | BO76: =INDEX(T_UnitSelection[Units],MATCH(i_Units,T_UnitSelection[UnitSelection],0)) ->  | BP76: =IFERROR(IF(ISBLANK(BC76),"",INDEX(T_NAV_AU[Base Unit of Measure],MATCH(BC76,T_NAV_AU[No.],0))),"") ->  | BQ76: METRE | BS76: HW | BT76: 1 | BU76: 1 | BV76: 1 | BW76: =IFERROR(INDEX(INDIRECT("T_NAV_"&i_Location&"["&i_Location&"]"),MATCH(1,--(BC76=INDIRECT("T_NAV_"&i_Location&"[No.]"))*--((INDIRECT("T_NAV_"&i_Location&"["&i_Location&"]"))<>""),0))/IF(AND(BQ76="METRE",BG76<>"",BR76=""),BG76,1),"") -> 
D77: S45 LGT | E77: 0 | H77: With Tape | I77: 0 | AY77: =IF(AND(ISBLANK(BC77),ISBLANK(C77)),"HIDE",_xlfn.SWITCH(PRODUCT(C77:Z77,B77),2,"HEADING",1,"SHOW",0,"HIDE")) -> HIDE | BC77: RB93-6443-000490 | BE77: ="RB93-6443-000"&(BG77*100) -> RB93-6443-000490 | BF77: S45 | LIGHT T-SPLINE Alum. Tube (Taped) | BG77: 4.9 | BH77: =IF(ISBLANK(BO77),"",IF(OR(BO77=L_Units),"Y","N")) ->  | BI77: Tube | BJ77: =IFERROR(IF(BH77="Y",((INDEX(T_Deduc18[Deduction],MATCH(BI77,T_Deduc18[Type],0),0))),""),"") ->  | BK77: o_widthmm | BO77: =INDEX(T_UnitSelection[Units],MATCH(i_Units,T_UnitSelection[UnitSelection],0)) ->  | BP77: =IFERROR(IF(ISBLANK(BC77),"",INDEX(T_NAV_AU[Base Unit of Measure],MATCH(BC77,T_NAV_AU[No.],0))),"") ->  | BQ77: METRE | BS77: HW | BT77: 1 | BU77: =IF(ISBLANK(BT77),"",PRODUCT(AE77,BT77)) -> 1 | BV77: =IF(ISBLANK(BT77),"",PRODUCT(AE77,BT77,i_systemQTY)) -> 1 | BW77: =IFERROR(INDEX(INDIRECT("T_NAV_"&i_Location&"["&i_Location&"]"),MATCH(1,--(BC77=INDIRECT("T_NAV_"&i_Location&"[No.]"))*--((INDIRECT("T_NAV_"&i_Location&"["&i_Location&"]"))<>""),0))/IF(AND(BQ77="METRE",BG77<>"",BR77=""),BG77,1),"") -> 
D78: S45 STD | E78: 0 | H78: Without Tape | I78: 0 | AY78: =IF(AND(ISBLANK(BC78),ISBLANK(C78)),"HIDE",_xlfn.SWITCH(PRODUCT(C78:Z78,B78),2,"HEADING",1,"SHOW",0,"HIDE")) -> HIDE | BC78: RB93-0444-000490 | BE78: ="RB93-0444-000"&(BG78*100) -> RB93-0444-000490 | BF78: S45 | STD T-SPLINE Alum. Tube | BG78: 4.9 | BH78: =IF(ISBLANK(BO78),"",IF(OR(BO78=L_Units),"Y","N")) ->  | BI78: Tube | BJ78: =IFERROR(IF(BH78="Y",((INDEX(T_Deduc18[Deduction],MATCH(BI78,T_Deduc18[Type],0),0))),""),"") ->  | BK78: o_widthmm | BO78: =INDEX(T_UnitSelection[Units],MATCH(i_Units,T_UnitSelection[UnitSelection],0)) ->  | BP78: =IFERROR(IF(ISBLANK(BC78),"",INDEX(T_NAV_AU[Base Unit of Measure],MATCH(BC78,T_NAV_AU[No.],0))),"") ->  | BQ78: METRE | BS78: HW | BT78: 1 | BU78: 1 | BV78: 1 | BW78: =IFERROR(INDEX(INDIRECT("T_NAV_"&i_Location&"["&i_Location&"]"),MATCH(1,--(BC78=INDIRECT("T_NAV_"&i_Location&"[No.]"))*--((INDIRECT("T_NAV_"&i_Location&"["&i_Location&"]"))<>""),0))/IF(AND(BQ78="METRE",BG78<>"",BR78=""),BG78,1),"") -> 
D79: S45 STD | E79: 0 | H79: With Tape | I79: 0 | AY79: =IF(AND(ISBLANK(BC79),ISBLANK(C79)),"HIDE",_xlfn.SWITCH(PRODUCT(C79:Z79,B79),2,"HEADING",1,"SHOW",0,"HIDE")) -> HIDE | BC79: RB93-6444-000490 | BE79: ="RB93-6444-000"&(BG79*100) -> RB93-6444-000490 | BF79: S45 | STD T-SPLINE Alum. Tube (Taped) | BG79: 4.9 | BH79: =IF(ISBLANK(BO79),"",IF(OR(BO79=L_Units),"Y","N")) ->  | BI79: Tube | BJ79: =IFERROR(IF(BH79="Y",((INDEX(T_Deduc18[Deduction],MATCH(BI79,T_Deduc18[Type],0),0))),""),"") ->  | BK79: o_widthmm | BO79: =INDEX(T_UnitSelection[Units],MATCH(i_Units,T_UnitSelection[UnitSelection],0)) ->  | BP79: =IFERROR(IF(ISBLANK(BC79),"",INDEX(T_NAV_AU[Base Unit of Measure],MATCH(BC79,T_NAV_AU[No.],0))),"") ->  | BQ79: METRE | BS79: HW | BT79: 1 | BU79: 1 | BV79: 1 | BW79: =IFERROR(INDEX(INDIRECT("T_NAV_"&i_Location&"["&i_Location&"]"),MATCH(1,--(BC79=INDIRECT("T_NAV_"&i_Location&"[No.]"))*--((INDIRECT("T_NAV_"&i_Location&"["&i_Location&"]"))<>""),0))/IF(AND(BQ79="METRE",BG79<>"",BR79=""),BG79,1),"") -> 
D80: S45 HD | E80: 0 | H80: Without Tape | I80: 0 | AY80: =IF(AND(ISBLANK(BC80),ISBLANK(C80)),"HIDE",_xlfn.SWITCH(PRODUCT(C80:Z80,B80),2,"HEADING",1,"SHOW",0,"HIDE")) -> HIDE | BC80: =_xlfn.IFNA(SUBSTITUTE(IF(AR80="AU",SUBSTITUTE(BE80,"xxx",AW80),SUBSTITUTE(SUBSTITUTE(BE80,"xx",AW80),"x","")),"LLL","015"),BE80) -> RB93-0449-000490 | BE80: ="RB93-0449-000"&(BG80*100) -> RB93-0449-000490 | BF80: S45 | HD T-SPLINE Alum. Tube | BG80: 4.9 | BH80: =IF(ISBLANK(BO80),"",IF(OR(BO80=L_Units),"Y","N")) ->  | BI80: Tube | BJ80: =IFERROR(IF(BH80="Y",((INDEX(T_Deduc18[Deduction],MATCH(BI80,T_Deduc18[Type],0),0))),""),"") ->  | BK80: o_widthmm | BO80: =INDEX(T_UnitSelection[Units],MATCH(i_Units,T_UnitSelection[UnitSelection],0)) ->  | BP80: =IFERROR(IF(ISBLANK(BC80),"",INDEX(T_NAV_AU[Base Unit of Measure],MATCH(BC80,T_NAV_AU[No.],0))),"") ->  | BQ80: METRE | BS80: HW | BT80: 1 | BU80: 1 | BV80: 1 | BW80: =IFERROR(INDEX(INDIRECT("T_NAV_"&i_Location&"["&i_Location&"]"),MATCH(1,--(BC80=INDIRECT("T_NAV_"&i_Location&"[No.]"))*--((INDIRECT("T_NAV_"&i_Location&"["&i_Location&"]"))<>""),0))/IF(AND(BQ80="METRE",BG80<>"",BR80=""),BG80,1),"") -> 
D81: S45 HD | E81: 0 | H81: With Tape | I81: 0 | AY81: =IF(AND(ISBLANK(BC81),ISBLANK(C81)),"HIDE",_xlfn.SWITCH(PRODUCT(C81:Z81,B81),2,"HEADING",1,"SHOW",0,"HIDE")) -> HIDE | BC81: RB93-6449-000490 | BE81: ="RB93-6449-000"&(BG81*100) -> RB93-6449-000490 | BF81: S45 | HD T-SPLINE Alum. Tube (Taped) | BG81: 4.9 | BH81: =IF(ISBLANK(BO81),"",IF(OR(BO81=L_Units),"Y","N")) ->  | BI81: Tube | BJ81: =IFERROR(IF(BH81="Y",((INDEX(T_Deduc18[Deduction],MATCH(BI81,T_Deduc18[Type],0),0))),""),"") ->  | BK81: o_widthmm | BO81: =INDEX(T_UnitSelection[Units],MATCH(i_Units,T_UnitSelection[UnitSelection],0)) ->  | BP81: =IFERROR(IF(ISBLANK(BC81),"",INDEX(T_NAV_AU[Base Unit of Measure],MATCH(BC81,T_NAV_AU[No.],0))),"") ->  | BQ81: METRE | BS81: HW | BT81: 1 | BU81: 1 | BV81: 1 | BW81: =IFERROR(INDEX(INDIRECT("T_NAV_"&i_Location&"["&i_Location&"]"),MATCH(1,--(BC81=INDIRECT("T_NAV_"&i_Location&"[No.]"))*--((INDIRECT("T_NAV_"&i_Location&"["&i_Location&"]"))<>""),0))/IF(AND(BQ81="METRE",BG81<>"",BR81=""),BG81,1),"") -> 
AY82: =IF(AND(ISBLANK(BC82),ISBLANK(C82)),"HIDE",_xlfn.SWITCH(PRODUCT(C82:Z82,B82),2,"HEADING",1,"SHOW",0,"HIDE")) -> HIDE | BH82: =IF(ISBLANK(BO82),"",IF(OR(BO82=L_Units),"Y","N")) ->  | BI82: Tube | BJ82: =IFERROR(IF(BH82="Y",((INDEX(T_Deduc18[Deduction],MATCH(BI82,T_Deduc18[Type],0),0))),""),"") ->  | BK82: o_widthmm | BO82: =INDEX(T_UnitSelection[Units],MATCH(i_Units,T_UnitSelection[UnitSelection],0)) ->  | BP82: =IFERROR(IF(ISBLANK(BC82),"",INDEX(T_NAV_AU[Base Unit of Measure],MATCH(BC82,T_NAV_AU[No.],0))),"") ->  | BS82: HW | BT82: 1 | BU82: 1 | BV82: 1 | BW82: =IFERROR(INDEX(INDIRECT("T_NAV_"&i_Location&"["&i_Location&"]"),MATCH(1,--(BC82=INDIRECT("T_NAV_"&i_Location&"[No.]"))*--((INDIRECT("T_NAV_"&i_Location&"["&i_Location&"]"))<>""),0))/IF(AND(BQ82="METRE",BG82<>"",BR82=""),BG82,1),"") -> 
E83: =IFERROR(IF(ISBLANK(D83),"",IF(FIND(D83,INDIRECT($D$73))>0,1,0)),0) ->  | AY83: =IF(AND(ISBLANK(BC83),ISBLANK(C83)),"HIDE",_xlfn.SWITCH(PRODUCT(C83:Z83,B83),2,"HEADING",1,"SHOW",0,"HIDE")) -> HIDE | BH83: =IF(ISBLANK(BO83),"",IF(OR(BO83=L_Units),"Y","N")) ->  | BI83: Tube | BJ83: =IFERROR(IF(BH83="Y",((INDEX(T_Deduc18[Deduction],MATCH(BI83,T_Deduc18[Type],0),0))),""),"") ->  | BK83: o_widthmm | BO83: =INDEX(T_UnitSelection[Units],MATCH(i_Units,T_UnitSelection[UnitSelection],0)) ->  | BP83: =IFERROR(IF(ISBLANK(BC83),"",INDEX(T_NAV_AU[Base Unit of Measure],MATCH(BC83,T_NAV_AU[No.],0))),"") ->  | BS83: HW | BT83: 1 | BU83: 1 | BV83: 1 | BW83: =IFERROR(INDEX(INDIRECT("T_NAV_"&i_Location&"["&i_Location&"]"),MATCH(1,--(BC83=INDIRECT("T_NAV_"&i_Location&"[No.]"))*--((INDIRECT("T_NAV_"&i_Location&"["&i_Location&"]"))<>""),0))/IF(AND(BQ83="METRE",BG83<>"",BR83=""),BG83,1),"") -> 
B84: 2 | C84: =C85 -> 0 | AS84: =IF(ISNUMBER(FIND("x",BE84)),IFERROR(INDEX(AI84:AQ84,0,MATCH(AT84,AI84:AQ84,0)),IF(AI84<>"",AI84,i_DefaultColour)),"") ->  | AV84: =IF(ISNUMBER(FIND("x",BE84)),IFERROR(INDEX(AI84:AQ84,0,MATCH(AT84,AI84:AQ84,0)),AS84),"") ->  | AW84: =IF(ISNUMBER(FIND("x",BE84)),IFERROR(INDEX(INDIRECT("T_FinishColour[ColourCode-"&IF(ISNUMBER(FIND("xxx",BE84)),"xxx",IF(ISNUMBER(FIND("xx",BE84)),"xx","error"))&AR84&"]"),MATCH(AV84,T_FinishColour[Finish / Colour],0)),""),"") ->  | AY84: =IF(AND(ISBLANK(BC84),ISBLANK(C84)),"HIDE",_xlfn.SWITCH(PRODUCT(C84:Z84,B84),2,"HEADING",1,"SHOW",0,"HIDE")) -> HIDE | BC84: =_xlfn.IFNA(SUBSTITUTE(IF(AR84="AU",SUBSTITUTE(BE84,"xxx",AW84),SUBSTITUTE(SUBSTITUTE(BE84,"xx",AW84),"x","")),"LLL","580"),BE84) ->  | BH84: =IF(ISBLANK(BO84),"",IF(OR(BO84=L_Units),"Y","N")) ->  | BJ84: =IFERROR(_xlfn.SINGLE(IF(BH84="Y",((INDEX(#REF!,MATCH(BI84,#REF!,0),0))),"")),"") ->  | BP84: =IFERROR(IF(ISBLANK(BC84),"",INDEX(T_NAV_AU[Base Unit of Measure],MATCH(BC84,T_NAV_AU[No.],0))),"") ->  | BW84: =IFERROR(INDEX(INDIRECT("T_NAV_"&i_Location&"["&i_Location&"]"),MATCH(1,--(BC84=INDIRECT("T_NAV_"&i_Location&"[No.]"))*--((INDIRECT("T_NAV_"&i_Location&"["&i_Location&"]"))<>""),0))/IF(AND(BQ84="METRE",BG84<>"",BR84=""),BG84,1),"") ->  | BY84: =IF(BX84<>"",(INDIRECT("i_"&BS84&"discount"))*BX84,"") ->  | BZ84: =IFERROR(IF(BX84<>"",BX84-BY84,""),"") -> 
B85: 2 | C85: =IF(COUNTIF(AY86:AY89,"SHOW")>0,1,0) -> 0 | D85: i_TensionLock | F85: i_TensionTool | H85: i_SpannerTool | J85: i_ControlCap | L85: i_wbAccessories | N85: i_PullStick | AW85: =IF(ISNUMBER(FIND("x",BE85)),IFERROR(INDEX(INDIRECT("T_FinishColour[ColourCode-"&IF(ISNUMBER(FIND("xxx",BE85)),"xxx",IF(ISNUMBER(FIND("xx",BE85)),"xx","error"))&AR85&"]"),MATCH(AV85,T_FinishColour[Finish / Colour],0)),""),"") ->  | AY85: =IF(AND(ISBLANK(BC85),ISBLANK(C85)),"HIDE",_xlfn.SWITCH(PRODUCT(C85:Z85,B85),2,"HEADING",1,"SHOW",0,"HIDE")) -> HIDE | BC85: =_xlfn.IFNA(SUBSTITUTE(IF(AR85="AU",SUBSTITUTE(BE85,"xxx",AW85),SUBSTITUTE(SUBSTITUTE(BE85,"xx",AW85),"x","")),"LLL","580"),BE85) -> ACCESSORIES | BE85: ACCESSORIES | BJ85: =IFERROR(_xlfn.SINGLE(IF(BH85="Y",((INDEX(#REF!,MATCH(BI85,#REF!,0),0))),"")),"") ->  | BP85: =IFERROR(IF(ISBLANK(BC85),"",INDEX(T_NAV_AU[Base Unit of Measure],MATCH(BC85,T_NAV_AU[No.],0))),"") ->  | BW85: =IFERROR(INDEX(INDIRECT("T_NAV_"&i_Location&"["&i_Location&"]"),MATCH(1,--(BC85=INDIRECT("T_NAV_"&i_Location&"[No.]"))*--((INDIRECT("T_NAV_"&i_Location&"["&i_Location&"]"))<>""),0))/IF(AND(BQ85="METRE",BG85<>"",BR85=""),BG85,1),"") -> 
D86: Yes | E86: =IFERROR(IF(ISBLANK(D86),"",IF(FIND(D86,INDIRECT($D$85))>0,1,0)),0) -> 0 | G86: =IFERROR(IF(ISBLANK(F86),"",IF(FIND(F86,INDIRECT($F$85))>0,1,0)),0) ->  | I86: =IFERROR(IF(ISBLANK(H86),"",IF(FIND(H86,INDIRECT($H$85))>0,1,0)),0) ->  | K86: =IFERROR(IF(ISBLANK(J86),"",IF(FIND(J86,INDIRECT($J$85))>0,1,0)),0) ->  | AR86: AU | AT86: =i_Finish -> 0 | AW86: =IF(ISNUMBER(FIND("x",BE86)),IFERROR(INDEX(INDIRECT("T_FinishColour[ColourCode-"&IF(ISNUMBER(FIND("xxx",BE86)),"xxx",IF(ISNUMBER(FIND("xx",BE86)),"xx","error"))&AR86&"]"),MATCH(AV86,T_FinishColour[Finish / Colour],0)),""),"") ->  | AY86: =IF(AND(ISBLANK(BC86),ISBLANK(C86)),"HIDE",_xlfn.SWITCH(PRODUCT(C86:Z86,B86),2,"HEADING",1,"SHOW",0,"HIDE")) -> HIDE | BC86: =_xlfn.IFNA(SUBSTITUTE(IF(AR86="AU",SUBSTITUTE(BE86,"xxx",AW86),SUBSTITUTE(SUBSTITUTE(BE86,"xx",AW86),"x","")),"LLL",BG86*100),BE86) -> RB12-3835-503038 | BE86: RB12-3835-503038 | BF86: Easy Spring Air - Tension Lock | BH86: =IF(ISBLANK(BO86),"",IF(OR(BO86=L_Units),"Y","N")) -> N | BJ86: =IFERROR(_xlfn.SINGLE(IF(BH86="Y",((INDEX(#REF!,MATCH(BI86,#REF!,0),0))),"")),"") ->  | BO86: Piece | BP86: =IFERROR(IF(ISBLANK(BC86),"",INDEX(T_NAV_AU[Base Unit of Measure],MATCH(BC86,T_NAV_AU[No.],0))),"") -> PIECE | BS86: HW | BT86: 1 | BU86: 1 | BV86: 1 | BW86: =IFERROR(INDEX(INDIRECT("T_NAV_"&i_Location&"["&i_Location&"]"),MATCH(1,--(BC86=INDIRECT("T_NAV_"&i_Location&"[No.]"))*--((INDIRECT("T_NAV_"&i_Location&"["&i_Location&"]"))<>""),0))/IF(AND(BQ86="METRE",BG86<>"",BR86=""),BG86,1),"") -> 
E87: =IFERROR(IF(ISBLANK(D87),"",IF(FIND(D87,INDIRECT($D$85))>0,1,0)),0) ->  | F87: Yes | G87: =IFERROR(IF(ISBLANK(F87),"",IF(FIND(F87,INDIRECT($F$85))>0,1,0)),0) -> 0 | I87: =IFERROR(IF(ISBLANK(H87),"",IF(FIND(H87,INDIRECT($H$85))>0,1,0)),0) ->  | K87: =IFERROR(IF(ISBLANK(J87),"",IF(FIND(J87,INDIRECT($J$85))>0,1,0)),0) ->  | AR87: AU | AW87: =IF(ISNUMBER(FIND("x",BE87)),IFERROR(INDEX(INDIRECT("T_FinishColour[ColourCode-"&IF(ISNUMBER(FIND("xxx",BE87)),"xxx",IF(ISNUMBER(FIND("xx",BE87)),"xx","error"))&AR87&"]"),MATCH(AV87,T_FinishColour[Finish / Colour],0)),""),"") ->  | AY87: =IF(AND(ISBLANK(BC87),ISBLANK(C87)),"HIDE",_xlfn.SWITCH(PRODUCT(C87:Z87,B87),2,"HEADING",1,"SHOW",0,"HIDE")) -> HIDE | BC87: =_xlfn.IFNA(SUBSTITUTE(IF(AR87="AU",SUBSTITUTE(BE87,"xxx",AW87),SUBSTITUTE(SUBSTITUTE(BE87,"xx",AW87),"x","")),"LLL","580"),BE87) -> RB12-3836-025000 | BE87: RB12-3836-025000 | BF87: Easy Spring Air - PreTension Tool (5mm Hex) | BH87: =IF(ISBLANK(BO87),"",IF(OR(BO87=L_Units),"Y","N")) -> N | BJ87: =IFERROR(_xlfn.SINGLE(IF(BH87="Y",((INDEX(#REF!,MATCH(BI87,#REF!,0),0))),"")),"") ->  | BO87: Piece | BP87: =IFERROR(IF(ISBLANK(BC87),"",INDEX(T_NAV_AU[Base Unit of Measure],MATCH(BC87,T_NAV_AU[No.],0))),"") -> PIECE | BS87: HW | BT87: 1 | BU87: 1 | BV87: 1 | BW87: =IFERROR(INDEX(INDIRECT("T_NAV_"&i_Location&"["&i_Location&"]"),MATCH(1,--(BC87=INDIRECT("T_NAV_"&i_Location&"[No.]"))*--((INDIRECT("T_NAV_"&i_Location&"["&i_Location&"]"))<>""),0))/IF(AND(BQ87="METRE",BG87<>"",BR87=""),BG87,1),"") -> 
H88: Yes | I88: 0 | AE88: =IFERROR(IF(AND(AA88="Y",PRODUCT(AB88:AD88)=0),o_nScreens,IF(PRODUCT(AB88:AD88)=0,"",PRODUCT(AB88:AD88))),"") ->  | AR88: AU | AS88: =IF(ISNUMBER(FIND("x",BE88)),IFERROR(INDEX(AI88:AQ88,0,MATCH(AT88,AI88:AQ88,0)),IF(AI88<>"",AI88,i_DefaultColour)),"") ->  | AV88: =IF(ISNUMBER(FIND("x",BE88)),IFERROR(INDEX(AI88:AQ88,0,MATCH(AT88,AI88:AQ88,0)),AS88),"") ->  | AW88: =IF(ISNUMBER(FIND("x",BE88)),IFERROR(INDEX(INDIRECT("T_FinishColour[ColourCode-"&IF(ISNUMBER(FIND("xxx",BE88)),"xxx",IF(ISNUMBER(FIND("xx",BE88)),"xx","error"))&AR88&"]"),MATCH(AV88,T_FinishColour[Finish / Colour],0)),""),"") ->  | AY88: =IF(AND(ISBLANK(BC88),ISBLANK(C88)),"HIDE",_xlfn.SWITCH(PRODUCT(C88:Z88,B88),2,"HEADING",1,"SHOW",0,"HIDE")) -> HIDE | BC88: =_xlfn.IFNA(SUBSTITUTE(IF(AR88="AU",SUBSTITUTE(BE88,"xxx",AW88),SUBSTITUTE(SUBSTITUTE(BE88,"xx",AW88),"x","")),"LLL","580"),BE88) -> RB12-3837-025000 | BE88: RB12-3837-025000 | BF88: Easy Spring Air - Spanner Tool | BH88: =IF(ISBLANK(BO88),"",IF(OR(BO88=L_Units),"Y","N")) -> N | BJ88: =IFERROR(_xlfn.SINGLE(IF(BH88="Y",((INDEX(#REF!,MATCH(BI88,#REF!,0),0))),"")),"") ->  | BL88: =IFERROR(IF(BH88="Y",INDIRECT(BK88)-BJ88,""),"") ->  | BM88: =IFERROR(IF(BH88="Y",BL88,""),"") ->  | BN88: =IFERROR(IF(BH88="Y",TEXT(BL88/25.4,"0"&IF(ABS(BL88/25.4-ROUND(BL88/25.4,0))>1/32,"-0/"&CHOOSE(ROUND(MOD(BL88/25.4,1)*16,0),16,8,16,4,16,8,16,2,16,8,16,4,16,8,16),"")),""),"") ->  | BO88: Piece | BP88: =IFERROR(IF(ISBLANK(BC88),"",INDEX(T_NAV_AU[Base Unit of Measure],MATCH(BC88,T_NAV_AU[No.],0))),"") -> PIECE | BS88: HW | BT88: 1 | BU88: =IF(ISBLANK(BT88),"",PRODUCT(AE88,BT88)) -> 1 | BV88: =IF(ISBLANK(BT88),"",PRODUCT(AE88,BT88,i_systemQTY)) -> 1 | BW88: =IFERROR(INDEX(INDIRECT("T_NAV_"&i_Location&"["&i_Location&"]"),MATCH(1,--(BC88=INDIRECT("T_NAV_"&i_Location&"[No.]"))*--((INDIRECT("T_NAV_"&i_Location&"["&i_Location&"]"))<>""),0))/IF(AND(BQ88="METRE",BG88<>"",BR88=""),BG88,1),"") ->  | BX88: =IFERROR(IF(AND(AY88="SHOW",BW88<>""),BW88*BV88*IF(AND(BM88<>"",OR(BP88="LENGTH",BP88="METRE",BP88="ROLL")),(BL88/1000),1),""),"") -> 
E89: =IFERROR(IF(ISBLANK(D89),"",IF(FIND(D89,INDIRECT($D$85))>0,1,0)),0) ->  | G89: =IFERROR(IF(ISBLANK(F89),"",IF(FIND(F89,INDIRECT($F$85))>0,1,0)),0) ->  | I89: =IFERROR(IF(ISBLANK(H89),"",IF(FIND(H89,INDIRECT($H$85))>0,1,0)),0) ->  | J89: Yes | K89: =IFERROR(IF(ISBLANK(J89),"",IF(FIND(J89,INDIRECT($J$85))>0,1,0)),0) -> 0 | AW89: =IF(ISNUMBER(FIND("x",BE89)),IFERROR(INDEX(INDIRECT("T_FinishColour[ColourCode-"&IF(ISNUMBER(FIND("xxx",BE89)),"xxx",IF(ISNUMBER(FIND("xx",BE89)),"xx","error"))&AR89&"]"),MATCH(AV89,T_FinishColour[Finish / Colour],0)),""),"") ->  | AY89: =IF(AND(ISBLANK(BC89),ISBLANK(C89)),"HIDE",_xlfn.SWITCH(PRODUCT(C89:Z89,B89),2,"HEADING",1,"SHOW",0,"HIDE")) -> HIDE | BC89: =_xlfn.IFNA(SUBSTITUTE(IF(AR89="AU",SUBSTITUTE(BE89,"xxx",AW89),SUBSTITUTE(SUBSTITUTE(BE89,"xx",AW89),"x","")),"LLL","580"),BE89) -> RB12-8401-001000 | BE89: RB12-8401-001000 | BF89: Easy Spring Air - Control Cap | BH89: =IF(ISBLANK(BO89),"",IF(OR(BO89=L_Units),"Y","N")) -> N | BJ89: =IFERROR(_xlfn.SINGLE(IF(BH89="Y",((INDEX(#REF!,MATCH(BI89,#REF!,0),0))),"")),"") ->  | BO89: Piece | BP89: =IFERROR(IF(ISBLANK(BC89),"",INDEX(T_NAV_AU[Base Unit of Measure],MATCH(BC89,T_NAV_AU[No.],0))),"") ->  | BS89: HW | BT89: 1 | BU89: 1 | BV89: 1 | BW89: =IFERROR(INDEX(INDIRECT("T_NAV_"&i_Location&"["&i_Location&"]"),MATCH(1,--(BC89=INDIRECT("T_NAV_"&i_Location&"[No.]"))*--((INDIRECT("T_NAV_"&i_Location&"["&i_Location&"]"))<>""),0))/IF(AND(BQ89="METRE",BG89<>"",BR89=""),BG89,1),"") ->  | BY89: =IF(BX89<>"",(INDIRECT("i_"&BS89&"discount"))*BX89,"") ->  | BZ89: =IFERROR(IF(BX89<>"",BX89-BY89,""),"") -> 
B90: 2 | C90: 1 | K90: =IFERROR(IF(ISBLANK(J90),"",IF(FIND(J90,INDIRECT($J$73))>0,1,0)),0) ->  | AW90: =IF(ISNUMBER(FIND("x",BE90)),IFERROR(INDEX(INDIRECT("T_FinishColour[ColourCode-"&IF(ISNUMBER(FIND("xxx",BE90)),"xxx",IF(ISNUMBER(FIND("xx",BE90)),"xx","error"))&AR90&"]"),MATCH(AV90,T_FinishColour[Finish / Colour],0)),""),"") ->  | AY90: =IF(AND(ISBLANK(BC90),ISBLANK(C90)),"HIDE",_xlfn.SWITCH(PRODUCT(C90:Z90,B90),2,"HEADING",1,"SHOW",0,"HIDE")) -> HEADING | BC90: =_xlfn.IFNA(SUBSTITUTE(IF(AR90="AU",SUBSTITUTE(BE90,"xxx",AW90),SUBSTITUTE(SUBSTITUTE(BE90,"xx",AW90),"x","")),"LLL","580"),BE90) ->  | BH90: =IF(ISBLANK(BO90),"",IF(OR(BO90=L_Units),"Y","N")) ->  | BJ90: =IFERROR(_xlfn.SINGLE(IF(BH90="Y",((INDEX(#REF!,MATCH(BI90,#REF!,0),0))),"")),"") ->  | BP90: =IFERROR(IF(ISBLANK(BC90),"",INDEX(T_NAV_AU[Base Unit of Measure],MATCH(BC90,T_NAV_AU[No.],0))),"") ->  | BV90: =IF(ISBLANK(BT90),"",PRODUCT(AE42,BT90)) ->  | BW90: =IFERROR(INDEX(INDIRECT("T_NAV_"&i_Location&"["&i_Location&"]"),MATCH(1,--(BC90=INDIRECT("T_NAV_"&i_Location&"[No.]"))*--((INDIRECT("T_NAV_"&i_Location&"["&i_Location&"]"))<>""),0))/IF(AND(BQ90="METRE",BG90<>"",BR90=""),BG90,1),"") ->  | BY90: =IF(BX90<>"",(INDIRECT("i_"&BS90&"discount"))*BX90,"") -> 
B91: 2 | C91: 1 | AW91: =IF(ISNUMBER(FIND("x",BE91)),IFERROR(INDEX(INDIRECT("T_FinishColour[ColourCode-"&IF(ISNUMBER(FIND("xxx",BE91)),"xxx",IF(ISNUMBER(FIND("xx",BE91)),"xx","error"))&AR91&"]"),MATCH(AV91,T_FinishColour[Finish / Colour],0)),""),"") ->  | AY91: =IF(AND(ISBLANK(BC91),ISBLANK(C91)),"HIDE",_xlfn.SWITCH(PRODUCT(C91:Z91,B91),2,"HEADING",1,"SHOW",0,"HIDE")) -> HEADING | BC91: FABRIC | BE91: FABRIC | BJ91: =IFERROR(_xlfn.SINGLE(IF(BH91="Y",((INDEX(#REF!,MATCH(BI91,#REF!,0),0))),"")),"") ->  | BP91: =IFERROR(IF(ISBLANK(BC91),"",INDEX(T_NAV_AU[Base Unit of Measure],MATCH(BC91,T_NAV_AU[No.],0))),"") ->  | BW91: =IFERROR(INDEX(INDIRECT("T_NAV_"&i_Location&"["&i_Location&"]"),MATCH(1,--(BC91=INDIRECT("T_NAV_"&i_Location&"[No.]"))*--((INDIRECT("T_NAV_"&i_Location&"["&i_Location&"]"))<>""),0))/IF(AND(BQ91="METRE",BG91<>"",BR91=""),BG91,1),"") -> 
B92: 2 | C92: 1 | AW92: =IF(ISNUMBER(FIND("x",BE92)),IFERROR(INDEX(INDIRECT("T_FinishColour[ColourCode-"&IF(ISNUMBER(FIND("xxx",BE92)),"xxx",IF(ISNUMBER(FIND("xx",BE92)),"xx","error"))&AR92&"]"),MATCH(AV92,T_FinishColour[Finish / Colour],0)),""),"") ->  | AY92: =IF(AND(ISBLANK(BC92),ISBLANK(C92)),"HIDE",_xlfn.SWITCH(PRODUCT(C92:Z92,B92),2,"HEADING",1,"SHOW",0,"HIDE")) -> HEADING | BC92: NOT SUPPLIED | BE92: Not Supplied | BF92: Fabric Width | BH92: =IF(ISBLANK(BO92),"",IF(OR(BO92=L_Units),"Y","N")) ->  | BI92: Fabric | BJ92: =IFERROR(IF(BH92="Y",((INDEX(T_Deduc18[Deduction],MATCH(BI92,T_Deduc18[Type],0),0))),""),"") ->  | BK92: o_widthmm | BO92: =INDEX(T_UnitSelection[Units],MATCH(i_Units,T_UnitSelection[UnitSelection],0)) ->  | BP92: =IFERROR(IF(ISBLANK(BC92),"",INDEX(T_NAV_AU[Base Unit of Measure],MATCH(BC92,T_NAV_AU[No.],0))),"") ->  | BT92: 1 | BU92: 1 | BV92: =IF(ISBLANK(BT92),"",PRODUCT(AE92,BT92,i_systemQTY)) -> 1 | BW92: =IFERROR(INDEX(INDIRECT("T_NAV_"&i_Location&"["&i_Location&"]"),MATCH(1,--(BC92=INDIRECT("T_NAV_"&i_Location&"[No.]"))*--((INDIRECT("T_NAV_"&i_Location&"["&i_Location&"]"))<>""),0))/IF(AND(BQ92="METRE",BG92<>"",BR92=""),BG92,1),"") ->  | BZ92: =IFERROR(IF(BX92<>"",BX92-BY92,""),"") -> 
B93: 2 | C93: 1 | AW93: =IF(ISNUMBER(FIND("x",BE93)),IFERROR(INDEX(INDIRECT("T_FinishColour[ColourCode-"&IF(ISNUMBER(FIND("xxx",BE93)),"xxx",IF(ISNUMBER(FIND("xx",BE93)),"xx","error"))&AR93&"]"),MATCH(AV93,T_FinishColour[Finish / Colour],0)),""),"") ->  | AY93: =IF(AND(ISBLANK(BC93),ISBLANK(C93)),"HIDE",_xlfn.SWITCH(PRODUCT(C93:Z93,B93),2,"HEADING",1,"SHOW",0,"HIDE")) -> HEADING | BF93: Fabric Drop | BH93: =IF(ISBLANK(BO93),"",IF(OR(BO93=L_Units),"Y","N")) ->  | BI93: FabricDrop | BJ93: =IFERROR(IF(BH93="Y",((INDEX(T_Deduc18[Deduction],MATCH(BI93,T_Deduc18[Type],0),0))),""),"") ->  | BK93: o_dropmm | BO93: =INDEX(T_UnitSelection[Units],MATCH(i_Units,T_UnitSelection[UnitSelection],0)) ->  | BP93: =IFERROR(IF(ISBLANK(BC93),"",INDEX(T_NAV_AU[Base Unit of Measure],MATCH(BC93,T_NAV_AU[No.],0))),"") ->  | BW93: =IFERROR(INDEX(INDIRECT("T_NAV_"&i_Location&"["&i_Location&"]"),MATCH(1,--(BC93=INDIRECT("T_NAV_"&i_Location&"[No.]"))*--((INDIRECT("T_NAV_"&i_Location&"["&i_Location&"]"))<>""),0))/IF(AND(BQ93="METRE",BG93<>"",BR93=""),BG93,1),"") ->  | BZ93: =IFERROR(IF(BX93<>"",BX93-BY93,""),"") -> 
B94: 2 | C94: 1 | AY94: =IF(AND(ISBLANK(BC94),ISBLANK(C94)),"HIDE",_xlfn.SWITCH(PRODUCT(C94:Z94,B94),2,"HEADING",1,"SHOW",0,"HIDE")) -> HEADING
B95: 2 | C95: 1 | AY95: =IF(AND(ISBLANK(BC95),ISBLANK(C95)),"HIDE",_xlfn.SWITCH(PRODUCT(C95:Z95,B95),2,"HEADING",1,"SHOW",0,"HIDE")) -> HEADING | BE95: CUSTOM NOTES
C96: 1 | AY96: =IF(AND(ISBLANK(BC96),ISBLANK(C96)),"HIDE",_xlfn.SWITCH(PRODUCT(C96:Z96,B96),2,"HEADING",1,"SHOW",0,"HIDE")) -> SHOW | BE96: ="Recommended "&IF(i_Location="US","Hem Bar","Bottom Rail")&" total mass: "&IF(i_Units="Metric",ROUND(o_wbRecMass_Metric,2)&" kg",ROUND(o_wbRecMass_Imperial,2)&" lb")&" ("&IF(i_Units="Metric",ROUND(o_ReqdwbMass,2)&" kg/m",ROUND(o_ReqdwbMass_Imperial,2)&" lb/ft")&")" -> 
C97: 1 | AY97: =IF(AND(ISBLANK(BC97),ISBLANK(C97)),"HIDE",_xlfn.SWITCH(PRODUCT(C97:Z97,B97),2,"HEADING",1,"SHOW",0,"HIDE")) -> SHOW
C98: 1 | AY98: =IF(AND(ISBLANK(BC98),ISBLANK(C98)),"HIDE",_xlfn.SWITCH(PRODUCT(C98:Z98,B98),2,"HEADING",1,"SHOW",0,"HIDE")) -> SHOW
C99: 1 | K99: =IFERROR(IF(ISBLANK(J99),"",IF(FIND(J99,INDIRECT($J$73))>0,1,0)),0) ->  | AY99: =IF(AND(ISBLANK(BC99),ISBLANK(C99)),"HIDE",_xlfn.SWITCH(PRODUCT(C99:Z99,B99),2,"HEADING",1,"SHOW",0,"HIDE")) -> SHOW
C100: 1 | K100: =IFERROR(IF(ISBLANK(J100),"",IF(FIND(J100,INDIRECT($J$73))>0,1,0)),0) ->  | AY100: =IF(AND(ISBLANK(BC100),ISBLANK(C100)),"HIDE",_xlfn.SWITCH(PRODUCT(C100:Z100,B100),2,"HEADING",1,"SHOW",0,"HIDE")) -> SHOW
AS101: =IF(ISNUMBER(FIND("x",BE101)),IFERROR(INDEX(AI101:AQ101,0,MATCH(AT101,AI101:AQ101,0)),IF(AI101<>"",AI101,i_DefaultColour)),"") ->  | AV101: =IF(ISNUMBER(FIND("x",BE101)),IFERROR(INDEX(AI101:AQ101,0,MATCH(AT101,AI101:AQ101,0)),AS101),"") ->  | AW101: =IF(ISNUMBER(FIND("x",BE101)),IFERROR(INDEX(INDIRECT("T_FinishColour[ColourCode-"&IF(ISNUMBER(FIND("xxx",BE101)),"xxx",IF(ISNUMBER(FIND("xx",BE101)),"xx","error"))&AR101&"]"),MATCH(AV101,T_FinishColour[Finish / Colour],0)),""),"") ->  | AY101: =IF(AND(ISBLANK(BC101),ISBLANK(C101)),"HIDE",_xlfn.SWITCH(PRODUCT(C101:Z101,B101),2,"HEADING",1,"SHOW",0,"HIDE")) -> HIDE
AW102: =IF(ISNUMBER(FIND("x",BE102)),IFERROR(INDEX(INDIRECT("T_FinishColour[ColourCode-"&IF(ISNUMBER(FIND("xxx",BE102)),"xxx",IF(ISNUMBER(FIND("xx",BE102)),"xx","error"))&AR102&"]"),MATCH(AV102,T_FinishColour[Finish / Colour],0)),""),"") ->  | AY102: =IF(i_Pricing="No","HIDE","SHOW") -> SHOW
AW103: =IF(ISNUMBER(FIND("x",BE103)),IFERROR(INDEX(INDIRECT("T_FinishColour[ColourCode-"&IF(ISNUMBER(FIND("xxx",BE103)),"xxx",IF(ISNUMBER(FIND("xx",BE103)),"xx","error"))&AR103&"]"),MATCH(AV103,T_FinishColour[Finish / Colour],0)),""),"") ->  | AY103: =IF(i_Location="US","HIDE",IF(i_Pricing="No","HIDE","SHOW")) -> SHOW | BO103: ="LIST PRICE: ("&IF(CustomCurrency="",i_Currency,CustomCurrency)&")" ->  | BV103: =SUM(BX15:BX93)*(IF(CustomCurrencyRate<>"",CustomCurrencyRate,1)) -> 0
AW104: =IF(ISNUMBER(FIND("x",BE104)),IFERROR(INDEX(INDIRECT("T_FinishColour[ColourCode-"&IF(ISNUMBER(FIND("xxx",BE104)),"xxx",IF(ISNUMBER(FIND("xx",BE104)),"xx","error"))&AR104&"]"),MATCH(AV104,T_FinishColour[Finish / Colour],0)),""),"") ->  | AY104: =IF(i_Location="US","HIDE",IF(i_Pricing="No","HIDE","SHOW")) -> SHOW | BO104: ="Discounts Applied: " -> Discounts Applied: | BV104: =SUM(BY15:BY93) -> 0
AW105: =IF(ISNUMBER(FIND("x",BE105)),IFERROR(INDEX(INDIRECT("T_FinishColour[ColourCode-"&IF(ISNUMBER(FIND("xxx",BE105)),"xxx",IF(ISNUMBER(FIND("xx",BE105)),"xx","error"))&AR105&"]"),MATCH(AV105,T_FinishColour[Finish / Colour],0)),""),"") ->  | AY105: =IF(i_Location="US","HIDE",IF(i_Pricing="No","HIDE","SHOW")) -> SHOW | BO105: ="TOTAL ex. GST: ("&IF(CustomCurrency="",i_Currency,CustomCurrency)&")" ->  | BV105: =BV103-BV104 -> 0
AW106: =IF(ISNUMBER(FIND("x",BE106)),IFERROR(INDEX(INDIRECT("T_FinishColour[ColourCode-"&IF(ISNUMBER(FIND("xxx",BE106)),"xxx",IF(ISNUMBER(FIND("xx",BE106)),"xx","error"))&AR106&"]"),MATCH(AV106,T_FinishColour[Finish / Colour],0)),""),"") ->  | AY106: =IF(i_Pricing="No","HIDE","SHOW") -> SHOW
AW107: =IF(ISNUMBER(FIND("x",BE107)),IFERROR(INDEX(INDIRECT("T_FinishColour[ColourCode-"&IF(ISNUMBER(FIND("xxx",BE107)),"xxx",IF(ISNUMBER(FIND("xx",BE107)),"xx","error"))&AR107&"]"),MATCH(AV107,T_FinishColour[Finish / Colour],0)),""),"") ->  | AY107: =IF(AND(ISBLANK(BE107),ISBLANK(C107)),"HIDE",IF(PRODUCT(C107:Z107)=1,"SHOW","HIDE")) -> HIDE
AW108: =IF(ISNUMBER(FIND("x",BE108)),IFERROR(INDEX(INDIRECT("T_FinishColour[ColourCode-"&IF(ISNUMBER(FIND("xxx",BE108)),"xxx",IF(ISNUMBER(FIND("xx",BE108)),"xx","error"))&AR108&"]"),MATCH(AV108,T_FinishColour[Finish / Colour],0)),""),"") ->  | AY108: HIDE | BO108: System unit cost | BV108: =BV105/i_systemQTY -> 0
AW109: =IF(ISNUMBER(FIND("x",BE109)),IFERROR(INDEX(INDIRECT("T_FinishColour[ColourCode-"&IF(ISNUMBER(FIND("xxx",BE109)),"xxx",IF(ISNUMBER(FIND("xx",BE109)),"xx","error"))&AR109&"]"),MATCH(AV109,T_FinishColour[Finish / Colour],0)),""),"") ->  | AY109: HIDE
AW110: =IF(ISNUMBER(FIND("x",BE110)),IFERROR(INDEX(INDIRECT("T_FinishColour[ColourCode-"&IF(ISNUMBER(FIND("xxx",BE110)),"xxx",IF(ISNUMBER(FIND("xx",BE110)),"xx","error"))&AR110&"]"),MATCH(AV110,T_FinishColour[Finish / Colour],0)),""),"") ->  | AY110: HIDE
AW111: =IF(ISNUMBER(FIND("x",BE111)),IFERROR(INDEX(INDIRECT("T_FinishColour[ColourCode-"&IF(ISNUMBER(FIND("xxx",BE111)),"xxx",IF(ISNUMBER(FIND("xx",BE111)),"xx","error"))&AR111&"]"),MATCH(AV111,T_FinishColour[Finish / Colour],0)),""),"") ->  | AY111: HIDE
AW112: =IF(ISNUMBER(FIND("x",BE112)),IFERROR(INDEX(INDIRECT("T_FinishColour[ColourCode-"&IF(ISNUMBER(FIND("xxx",BE112)),"xxx",IF(ISNUMBER(FIND("xx",BE112)),"xx","error"))&AR112&"]"),MATCH(AV112,T_FinishColour[Finish / Colour],0)),""),"") ->  | AY112: HIDE
AW113: =IF(ISNUMBER(FIND("x",BE113)),IFERROR(INDEX(INDIRECT("T_FinishColour[ColourCode-"&IF(ISNUMBER(FIND("xxx",BE113)),"xxx",IF(ISNUMBER(FIND("xx",BE113)),"xx","error"))&AR113&"]"),MATCH(AV113,T_FinishColour[Finish / Colour],0)),""),"") ->  | AY113: HIDE
AY114: HIDE
E230: Ultra-Lock Wire Guide | F230: Ultra-Lock Zipscreen
F261: Ultra-Lock Zipscreen
E262: Ultra-Lock Wire Guide

Sheet Ctrl_Lists (hidden)
G1: TO BE FINISHED LATER>
A2: List Summary | U2: L_SelectUnitsSingle
D3: i_Currency | O3: o_nScreens | U3: =IF(i_Units="Metric","Imperial","Metric") -> Metric
D4: =INDEX(T_Currency[Currency],MATCH(i_Location,T_Location[Location],0)) ->  | O4: =IF(OR(i_LinkedScreens="No",i_LinkedScreens=""),1,i_nScreens) ->  | U4: =IF(i_Units="","Imperial",0) -> Imperial
B5: Activate List ->
B6: Table/List Name (MUST MATCH) -> | C6: ="T_"&SUBSTITUTE((OFFSET(C6,2,0))," ","") -> T_Installation | D6: T_Currency | E6: T_Location | F6: T_BlindType | G6: T_SystemType | H6: T_InstallationType | I6: T_ControlType | J6: T_SideGuideFixing | L6: ="T_"&SUBSTITUTE((OFFSET(L6,2,0))," ","") -> T_ControlSide | M6: T_YesNo | N6: T_BoxShape | O6: T_nScreens | P6: T_CassetteBrush | Q6: T_wbBallast | R6: T_PivotArmLength | T6: T_Linked | U6: ="T_"&SUBSTITUTE((OFFSET(U6,2,0))," ","") -> T_UnitSelection | X6: T_SheetStatus | Z6: T_Motor | AB6: ="T_"&SUBSTITUTE((OFFSET(AB6,2,0))," ","") -> T_RemoteList | AC6: T_ZipscreenSideGuides | AD6: T_WGTopTerminal | AE6: T_Booster | AF6: T_GearArm | AG6: T_GearRatio | AH6: T_BracketOptions | AI6: T_IdlerType | AJ6: T_OpenBktOrientation | AK6: T_Sensors
B7: List Test ->
B8: Header Name -> | C8: Installation | D8: Currency | E8: Location | F8: Blind Type | G8: System Type | H8: Installation Type | I8: Control Type | J8: SideGuideFixing | K8: Outcome | L8: Control Side | M8: YesNo | N8: Box Shape | O8: nScreens | P8: CassetteBrush | Q8: wbBallast | R8: PivotArmLength | S8: Converted | T8: Linked | U8: UnitSelection | V8: Units | W8: Fabric | X8: Status | Z8: Motor | AB8: RemoteList | AC8: ZipscreenSideGuides | AD8: WGTopTerminal | AE8: Booster | AF8: GearArm | AG8: GearRatio | AH8: BracketOptions | AI8: IdlerType | AJ8: OpenBktOrientation | AK8: Sensors
C9: Internal | D9: AUD | E9: AU | F9: Single | G9: Zipscreen | H9: Open | I9: Spring | J9: Side Guide - Face Fix (Wall / Outside Mount) | K9: No Clip | L9: Left | M9: Yes | N9: Round | O9: 2 | P9: Yes | Q9: Yes | R9: 1.0m (40") | S9: 1000 | T9: No | U9: Metric | V9: mm | W9: gsm | X9: Development | Z9: AUTOMATE | ARC FT Motor | AB9: PUSH Five Ch. | White | AC9: L-Fixing Rail | AD9: Hook Saddle Bracket | AE9: Short | AF9: 1m (40") | AG9: 5:1 (7.5 Nm) | AH9: Mild Steel | AI9: Bearing Idler 63mm | AJ9: Bracket - Face Fix Orientation | AK9: No Sensor
C10: External | D10: USD | E10: US | F10: Dual | G10: VEUE - Straight Drop | I10: Gear | J10: Side Guide - Recess Fix (Inside Mount) | K10: Top Fix | L10: Right | M10: No | N10: Square | O10: 3 | P10: No | Q10: No | R10: 1.4m (55") | S10: 1400 | T10: Easy Link | U10: Imperial | V10: in | W10: oz/yd² | X10: Release | Z10: Somfy Motor (Round Head) | AB10: PUSH Five Ch. | Black | AC10: Face Fix U-Rail (Wall Mount) | AD10: Round Clamp Terminal | AE10: Standard | AF10: 1.5m (60") | AG10: 8:1 (20 Nm) | AH10: Stainless Steel | AI10: Idler Housing & Pin Kit | AJ10: Bracket - Top Fix Orientation | AK10: AUTOMATE | ARC Solar Sun & Wind Sensor
D11: EUR | G11: VEUE - Wire Guide | I11: Motor | R11: 1.6m | S11: 1600 | T11: Multi Infinite Link | Z11: Somfy Motor (Star Head) | AB11: PUSH Fifteen Ch. | White | AE11: Heavy | AF11: 2m (80") | AI11: Extreme Bearing Idler
G12: VEUE - Pivot Arm | AB12: PUSH Fifteen Ch. | Black | AE12: Extra Heavy
G13: VEUE - Channel Guide | AB13: No Remote | AE13: Dual Heavy
G14: EXTREME - Zipscreen
G15: EXTREME - Wire Guide
C20: ="T_"&SUBSTITUTE((OFFSET(C20,2,0))," ","") -> T_Tube | D20: ="T_"&SUBSTITUTE((OFFSET(D20,2,0))," ","") -> T_WeightBar | E20: ="T_"&SUBSTITUTE((OFFSET(E20,2,0))," ","") -> T_wbSpline | F20: T_TubeExtras | G20: T_Chain | H20: T_Finish | I20: T_FinishColour | N20: T_Fabric | R20: ="T_"&SUBSTITUTE((OFFSET(R20,2,0))," ","") -> T_ChainTensioner | T20: T_ChainType | V20: T_CostCalc
E21: =INDEX(Ctrl_Lists!$E$23:$E$30,MATCH(i_WeightBar,T_WeightBar[],0)) ->  | N21: gsm | O21: oz/yd² | P21: mm | Z21: Translate | AC21: ="T_"&SUBSTITUTE((OFFSET(AC21,2,0))," ","") -> T_HandleOptions
C22: Tube | D22: WeightBar | E22: wbSpline | F22: TubeExtras | G22: Chain | H22: Finish | I22: Finish / Colour | J22: ColourCode-xxxAU | K22: ColourCode-xxUS | L22: ColourCode-xxxUS | N22: Metric | O22: Imperial | P22: Thickness | R22: ChainTensioner | T22: ChainType | V22: CostCalc | Z22: US | AA22: AU
C23: 1.5" | D23: D30 | E23: 9mm Flat Spline (D/S Tape) | F23: With Tape | G23: 50 cm | H23: Mill | I23: =T_Finish[[#This Row],[Finish]] -> Mill | J23: 000 | K23: U | N23: 180 | O23: =ROUND(T_Fabric[[#This Row],[Metric]]/33.9,2) -> 5.31 | P23: 0.4 | R23: Face Fix | T23: Plastic | V23: Pro-rata'd lengths | Z23: Pin End | AA23: Idler End | AC23: HandleOptions
C24: S45 LT | D24: Fabric Wrap | E24: 7.2mm Round Spline w/ 15mm Tail | F24: Without Tape | G24: 75 cm | H24: Anodised | I24: Anodised | J24: 018 | K24: A | N24: 320 | O24: =ROUND(T_Fabric[[#This Row],[Metric]]/33.9,2) -> 9.44 | P24: 0.55 | R24: Recess Fix | T24: Metal | V24: Charge full lengths | Z24: Edge | AA24: dim-OUT | AC24: No
C25: S45 STD | D25: F4115 | G25: 100 cm | H25: Power Coat | I25: Stainless | J25: 013 | N25: 420 | O25: =ROUND(T_Fabric[[#This Row],[Metric]]/33.9,2) -> 12.39 | P25: 0.55 | R25: Universal | V25: Minimum pack sizes??? | AC25: Handle (x1)
C26: S45 HD | D26: Oval | G26: 125 cm | I26: Black | J26: 050 | K26: BK | L26: 050 | N26: 500 | O26: =ROUND(T_Fabric[[#This Row],[Metric]]/33.9,2) -> 14.75 | P26: 0.9 | R26: Chain Hold | AC26: Handle (x2)
D27: Round | G27: 150 cm | I27: White | J27: 069 | K27: W | L27: 075
D28: No Weight Bar | G28: 175 cm | I28: Silver Grey | J28: 338
D29: HB16 | G29: 200 cm | I29: Bronze | J29: 082 | K29: BR | L29: 472
I30: Vanilla | K30: V | L30: 414
I31: Cream | K31: CR
I32: Sandstone | J32: 269
I33: Barley | J33: 283
I34: Gray | J34: 340 | K34: G
I35: Brown | K35: GR
I36: Zinc Plated | J36: 025 | K36: =1/0 ->  | L36: 025
I37: Monument
I38: Woodland Grey
J40: Test
I41: L_ColourList
I48: =_xlfn._xlws.FILTER(T_FinishColour[Finish / Colour],T_FinishColour[ColourCode-xxxUS]<>"") -> Black | N48: ="T_"&SUBSTITUTE((OFFSET(N48,2,0))," ","") -> T_wbBrush | O48: ="T_"&SUBSTITUTE((OFFSET(O48,2,0))," ","") -> T_wbBubbleSeal | Q48: ="T_"&SUBSTITUTE((OFFSET(Q48,2,0))," ","") -> T_ChainLength
I49: White
I50: Bronze | N50: wbBrush | O50: wbBubbleSeal | Q50: ChainLength
I51: Vanilla | N51: Yes | O51: No Bubble Seal | Q51: 50
I52: Zinc Plated | N52: No | O52: Yes - Bottom/Back Seal (1x) | Q52: 75
O53: Yes - Bottom + Back Seal (2x) | Q53: 100
Q54: 125
Q55: 150
Q56: 175
Q57: 200

Sheet Ctrl_Selections (hidden)
C1: =IF(INDIRECT("i_"&SUBSTITUTE(D55," ","")),0,"No") if a default value is required
A3: Configuration Matrix
C5: Enter DEPENDENCIES | D5: SELECTION OPTIONS | E5: CONFIGURATIONS
C6: Ref Position → | D6: =COUNTA(D7:D20) -> 1 | E6: =SUM(COUNTIF(E7:E20,$C7:$C20)) -> 0 | F6: =SUM(COUNTIF(F7:F20,$C7:$C20)) -> 0 | G6: =SUM(COUNTIF(G7:G20,$C7:$C20)) -> 0 | H6: =SUM(COUNTIF(H7:H20,$C7:$C20)) -> 0 | I6: =SUM(COUNTIF(I7:I20,$C7:$C20)) -> 0 | J6: =SUM(COUNTIF(J7:J20,$C7:$C20)) -> 0 | K6: =SUM(COUNTIF(K7:K20,$C7:$C20)) -> 0 | L6: =SUM(COUNTIF(L7:L20,$C7:$C20)) -> 0 | M6: =SUM(COUNTIF(M7:M20,$C7:$C20)) -> 0 | N6: =SUM(COUNTIF(N7:N20,$C7:$C20)) -> 0
B7: Enter Selection 1 -> | C7: =i_InstallationType -> 0 | D7: Installation Type | E7: Open
B12: Enter Selection 2->
B19: Enter Selection 3->
B20: Enter Selection 4->
D22: =MAX(E22:N22) -> 0 | E22: =IF(E6<>$D6,0,COUNTA(E23:E27)) -> 0 | F22: 0 | G22: 0 | H22: 0 | I22: 0 | J22: 0 | K22: 0 | L22: 0 | M22: 0 | N22: 0
B23: Dependent (Output List) 1 ->
D28: DO NOT FILL
D30: =D23 -> 0 | G30: =SUBSTITUTE(" ","",$D7) ->  | H30: =IFERROR(INDEX(#REF!, MATCH(0, COUNTIF($D30:G$445,#REF!) + ( COUNTIF(#REF!,#REF!)<>1), 0)), "") ->  | I30: =IFERROR(INDEX(#REF!, MATCH(0, COUNTIF($D30:H$445,#REF!) + ( COUNTIF(#REF!,#REF!)<>1), 0)), "") -> 
C31: row | D31: =MATCH(D30,$D6:$D29,0) -> 17
C32: column | D32: =MATCH(OFFSET($D6,MATCH(D30,$D6:$D29,0)-2,0),OFFSET($D6,MATCH(D30,$D6:$D29,0)-2,1,1,11),0)+1 -> 
C33: Size | D33: =OFFSET($D6,MATCH(D30,$D6:$D29,0)-2,0,) -> 0
C34: Test →
C35: Data Validation Name | D35: ="L_"&SUBSTITUTE(D30," ","") -> L_0
C38: Enter DEPENDENCIES | D38: SELECTION OPTIONS | E38: CONFIGURATIONS
C39: Ref Position → | D39: =COUNTA(D40:D51) -> 1 | E39: =SUM(COUNTIF(E40:E51,$C40:$C51)) -> 0 | F39: =SUM(COUNTIF(F40:F51,$C40:$C51)) -> 0 | G39: =SUM(COUNTIF(G40:G51,$C40:$C51)) -> 0 | H39: =SUM(COUNTIF(H40:H51,$C40:$C51)) -> 0 | I39: =SUM(COUNTIF(I40:I51,$C40:$C51)) -> 0 | J39: =SUM(COUNTIF(J40:J51,$C40:$C51)) -> 0 | K39: =SUM(COUNTIF(K40:K51,$C40:$C51)) -> 0 | L39: =SUM(COUNTIF(L40:L51,$C40:$C51)) -> 0 | M39: =SUM(COUNTIF(M40:M51,$C40:$C51)) -> 0 | N39: =SUM(COUNTIF(N40:N51,$C40:$C51)) -> 0
B40: Enter Selection 2-> | C40: =i_InstallationType -> 0 | D40: Installation Type | E40: Open
B50: Enter Selection 3->
B51: Enter Selection 4->
D53: =MAX(E53:N53) -> 0 | E53: =IF(E39<>$D39,0,COUNTA(E54:E62)) -> 0 | F53: 0 | G53: 0 | H53: 0 | I53: 0 | J53: 0 | K53: 0 | L53: 0 | M53: 0 | N53: 0
B54: Dependent (Output List) 1 -> | D54: Tension Tool | E54: Not Required
E55: Tension Lock
E56: PreTension Tool
E57: Spanner Tool
E58: Tension Lock + PreTension + Spanner
E59: Tension Lock + PreTension
E60: Tension Lock + Spanner
E61: PreTension + Spanner
E62: Control Cap
D63: DO NOT FILL
D65: =MAX(E65:N65) -> 0 | E65: =IF(E39<>$D39,0,COUNTA(E66:E70)) -> 0 | F65: 0 | G65: 0 | H65: 0 | I65: 0 | J65: 0 | K65: 0 | L65: 0 | M65: 0 | N65: 0
B66: Dependent (Output List) 1 ->
D71: DO NOT FILL
D73: =D54 -> Tension Tool | E73: =D66 -> 0 | H73: =IFERROR(INDEX(#REF!, MATCH(0, COUNTIF($D73:G$445,#REF!) + ( COUNTIF(#REF!,#REF!)<>1), 0)), "") ->  | I73: =IFERROR(INDEX(#REF!, MATCH(0, COUNTIF($D73:H$445,#REF!) + ( COUNTIF(#REF!,#REF!)<>1), 0)), "") -> 
C74: row | D74: =MATCH(D73,$D39:$D71,0) -> 16 | E74: =MATCH(E73,$D39:$D71,0) -> 15
C75: column | D75: =MATCH(OFFSET($D39,MATCH(D73,$D39:$D64,0)-2,0),OFFSET($D39,MATCH(D73,$D39:$D64,0)-2,1,1,11),0)+1 -> 2 | E75: =MATCH(OFFSET($D39,MATCH(E73,$D39:$D71,0)-2,0),OFFSET($D39,MATCH(E73,$D39:$D71,0)-2,1,1,11),0)+1 -> 
C76: Size | D76: =OFFSET($D39,MATCH(D73,$D39:$D64,0)-2,0,) -> 0 | E76: =OFFSET($D39,MATCH(E73,$D39:$D71,0)-2,0,) -> 0
C77: Test →
C78: Data Validation Name | D78: ="L_"&SUBSTITUTE(D73," ","") -> L_TensionTool | E78: ="L_"&SUBSTITUTE(E73," ","") -> L_0
C83: Enter DEPENDENCIES | D83: SELECTION OPTIONS | E83: CONFIGURATIONS
C84: Ref Position → | D84: =COUNTA(D85:D91) -> 1 | E84: =SUM(COUNTIF(E85:E91,$C85:$C91)) -> 0 | F84: =SUM(COUNTIF(F85:F91,$C85:$C91)) -> 0 | G84: =SUM(COUNTIF(G85:G91,$C85:$C91)) -> 0 | H84: =SUM(COUNTIF(H85:H91,$C85:$C91)) -> 0 | I84: =SUM(COUNTIF(I85:I91,$C85:$C91)) -> 0 | J84: =SUM(COUNTIF(J85:J91,$C85:$C91)) -> 0 | K84: =SUM(COUNTIF(K85:K91,$C85:$C91)) -> 0 | L84: =SUM(COUNTIF(L85:L91,$C85:$C91)) -> 0 | M84: =SUM(COUNTIF(M85:M91,$C85:$C91)) -> 0 | N84: =SUM(COUNTIF(N85:N91,$C85:$C91)) -> 0
B85: Enter Selection 1 -> | C85: =i_Location -> 0 | D85: Location | E85: AU | F85: US
D93: =MAX(E93:N93) -> 0 | E93: =IF(E84<>$D84,0,COUNTA(E94:E99)) -> 0 | F93: =IF(F84<>$D84,0,COUNTA(F94:F99)) -> 0 | G93: 0 | H93: 0 | I93: 0 | J93: 0 | K93: 0 | L93: 0 | M93: 0 | N93: 0
B94: Dependent (Output List) 1 -> | D94: Pricing | E94: Yes | F94: No
E95: No
D100: DO NOT FILL
D102: =MAX(E102:N102) -> 0 | E102: =IF(E84<>$D84,0,COUNTA(E103:E111)) -> 0 | F102: =IF(F84<>$D84,0,COUNTA(F103:F111)) -> 0 | G102: 0 | H102: 0 | I102: 0 | J102: 0 | K102: 0 | L102: 0 | M102: 0 | N102: 0
B103: Dependent (Output List) 1 ->
D112: DO NOT FILL
D114: =D94 -> Pricing | E114: =D103 -> 0 | G114: =SUBSTITUTE(" ","",$D85) ->  | H114: =IFERROR(INDEX(#REF!, MATCH(0, COUNTIF($D114:G$445,#REF!) + ( COUNTIF(#REF!,#REF!)<>1), 0)), "") ->  | I114: =IFERROR(INDEX(#REF!, MATCH(0, COUNTIF($D114:H$445,#REF!) + ( COUNTIF(#REF!,#REF!)<>1), 0)), "") -> 
C115: row | D115: =MATCH(D114,$D84:$D101,0) -> 11 | E115: =MATCH(E114,$D84:$D112,0) -> 10
C116: column | D116: =MATCH(OFFSET($D84,MATCH(D114,$D84:$D101,0)-2,0),OFFSET($D84,MATCH(D114,$D84:$D101,0)-2,1,1,11),0)+1 -> 2 | E116: =MATCH(OFFSET($D84,MATCH(E114,$D84:$D112,0)-2,0),OFFSET($D84,MATCH(E114,$D84:$D112,0)-2,1,1,11),0)+1 -> 
C117: Size | D117: =OFFSET($D84,MATCH(D114,$D84:$D101,0)-2,0,) -> 0 | E117: =OFFSET($D84,MATCH(E114,$D84:$D112,0)-2,0,) -> 0
C118: Test →
C119: Data Validation Name | D119: ="L_"&SUBSTITUTE(D114," ","") -> L_Pricing | E119: ="L_"&SUBSTITUTE(E114," ","") -> L_0
C124: Enter DEPENDENCIES | D124: SELECTION OPTIONS | E124: CONFIGURATIONS
C125: Ref Position → | D125: =COUNTA(D126:D137) -> 1 | E125: =SUM(COUNTIF(E126:E137,$C126:$C137)) -> 0 | F125: =SUM(COUNTIF(F126:F137,$C126:$C137)) -> 0 | G125: =SUM(COUNTIF(G126:G137,$C126:$C137)) -> 0 | H125: =SUM(COUNTIF(H126:H137,$C126:$C137)) -> 0 | I125: =SUM(COUNTIF(I126:I137,$C126:$C137)) -> 0 | J125: =SUM(COUNTIF(J126:J137,$C126:$C137)) -> 0 | K125: =SUM(COUNTIF(K126:K137,$C126:$C137)) -> 0 | L125: =SUM(COUNTIF(L126:L137,$C126:$C137)) -> 0 | M125: =SUM(COUNTIF(M126:M137,$C126:$C137)) -> 0 | N125: =SUM(COUNTIF(N126:N137,$C126:$C137)) -> 0
B126: Enter Selection 1 -> | C126: =i_InstallationType -> 0 | D126: Installation Type | E126: Open
D139: =MAX(E139:N139) -> 0 | E139: =IF(E125<>$D125,0,COUNTA(E140:E145)) -> 0 | F139: 0 | G139: 0 | H139: 0 | I139: 0 | J139: 0 | K139: 0 | L139: 0 | M139: 0 | N139: 0
B140: Dependent (Output List) 1 -> | D140: Bkt Fix Orientation | E140: Bracket - Face Fix Orientation
E141: Bracket - Top Fix Orientation
D146: DO NOT FILL
D148: =D140 -> Bkt Fix Orientation | G148: =SUBSTITUTE(" ","",$D126) ->  | H148: =IFERROR(INDEX(#REF!, MATCH(0, COUNTIF($D148:G$445,#REF!) + ( COUNTIF(#REF!,#REF!)<>1), 0)), "") ->  | I148: =IFERROR(INDEX(#REF!, MATCH(0, COUNTIF($D148:H$445,#REF!) + ( COUNTIF(#REF!,#REF!)<>1), 0)), "") -> 
C149: row | D149: =MATCH(D148,$D125:$D147,0) -> 16
C150: column | D150: =MATCH(OFFSET($D125,MATCH(D148,$D125:$D147,0)-2,0),OFFSET($D125,MATCH(D148,$D125:$D147,0)-2,1,1,11),0)+1 -> 2
C151: Size | D151: =OFFSET($D125,MATCH(D148,$D125:$D147,0)-2,0,) -> 0
C152: Test →
C153: Data Validation Name | D153: ="L_"&SUBSTITUTE(D148," ","") -> L_BktFixOrientation
C161: Enter DEPENDENCIES | D161: SELECTION OPTIONS | E161: CONFIGURATIONS
C162: Ref Position → | D162: =COUNTA(D163:D169) -> 1 | E162: =SUM(COUNTIF(E163:E169,$C163:$C169)) -> 0 | F162: =SUM(COUNTIF(F163:F169,$C163:$C169)) -> 0 | G162: =SUM(COUNTIF(G163:G169,$C163:$C169)) -> 0 | H162: =SUM(COUNTIF(H163:H169,$C163:$C169)) -> 0 | I162: =SUM(COUNTIF(I163:I169,$C163:$C169)) -> 0 | J162: =SUM(COUNTIF(J163:J169,$C163:$C169)) -> 0 | K162: =SUM(COUNTIF(K163:K169,$C163:$C169)) -> 0 | L162: =SUM(COUNTIF(L163:L169,$C163:$C169)) -> 0 | M162: =SUM(COUNTIF(M163:M169,$C163:$C169)) -> 0 | N162: =SUM(COUNTIF(N163:N169,$C163:$C169)) -> 0
B163: Enter Selection 1 -> | C163: =i_SystemType -> 0 | D163: System Type
D171: =MAX(E171:N171) -> 0 | E171: =IF(E162<>$D162,0,COUNTA(E172:E177)) -> 0 | F171: 0 | G171: 0 | H171: 0 | I171: 0 | J171: 0 | K171: 0 | L171: 0 | M171: 0 | N171: 0
B172: Dependent (Output List) 1 -> | D172: Installation Type
D178: DO NOT FILL
D180: =MAX(E180:N180) -> 0 | E180: =IF(E162<>$D162,0,COUNTA(E181:E185)) -> 0 | F180: 0 | G180: 0 | H180: 0 | I180: 0 | J180: 0 | K180: 0 | L180: 0 | M180: 0 | N180: 0
B181: Dependent (Output List) 1 ->
D186: DO NOT FILL
D188: =D172 -> Installation Type | E188: =D181 -> 0 | G188: =SUBSTITUTE(" ","",$D163) ->  | H188: =IFERROR(INDEX(#REF!, MATCH(0, COUNTIF($D188:G$445,#REF!) + ( COUNTIF(#REF!,#REF!)<>1), 0)), "") ->  | I188: =IFERROR(INDEX(#REF!, MATCH(0, COUNTIF($D188:H$445,#REF!) + ( COUNTIF(#REF!,#REF!)<>1), 0)), "") -> 
C189: row | D189: =MATCH(D188,$D162:$D179,0) -> 11 | E189: =MATCH(E188,$D162:$D186,0) -> 10
C190: column | D190: =MATCH(OFFSET($D162,MATCH(D188,$D162:$D179,0)-2,0),OFFSET($D162,MATCH(D188,$D162:$D179,0)-2,1,1,11),0)+1 -> 2 | E190: =MATCH(OFFSET($D162,MATCH(E188,$D162:$D186,0)-2,0),OFFSET($D162,MATCH(E188,$D162:$D186,0)-2,1,1,11),0)+1 -> 
C191: Size | D191: =OFFSET($D162,MATCH(D188,$D162:$D179,0)-2,0,) -> 0 | E191: =OFFSET($D162,MATCH(E188,$D162:$D186,0)-2,0,) -> 0
C192: Test →
C193: Data Validation Name | D193: ="L_"&SUBSTITUTE(D188," ","") -> L_InstallationType | E193: ="L_"&SUBSTITUTE(E188," ","") -> L_0
C201: Enter DEPENDENCIES | D201: SELECTION OPTIONS | E201: CONFIGURATIONS
C202: Ref Position → | D202: =COUNTA(D203:D211) -> 1 | E202: =SUM(COUNTIF(E203:E211,$C203:$C211)) -> 0 | F202: =SUM(COUNTIF(F203:F211,$C203:$C211)) -> 0 | G202: =SUM(COUNTIF(G203:G211,$C203:$C211)) -> 0 | H202: =SUM(COUNTIF(H203:H211,$C203:$C211)) -> 0 | I202: =SUM(COUNTIF(I203:I211,$C203:$C211)) -> 0 | J202: =SUM(COUNTIF(J203:J211,$C203:$C211)) -> 0 | K202: =SUM(COUNTIF(K203:K211,$C203:$C211)) -> 0 | L202: =SUM(COUNTIF(L203:L211,$C203:$C211)) -> 0 | M202: =SUM(COUNTIF(M203:M211,$C203:$C211)) -> 0 | N202: =SUM(COUNTIF(N203:N211,$C203:$C211)) -> 0
B203: Enter Selection 1 -> | C203: =i_Tube -> 0 | D203: Tube | E203: 1.5" | F203: 2" | G203: S45 LGT
G204: S45 STD
G205: S45 HD
D213: =MAX(E213:N213) -> 0 | E213: =IF(E202<>$D202,0,COUNTA(E214:E219)) -> 0 | F213: =IF(F202<>$D202,0,COUNTA(F214:F219)) -> 0 | G213: 0 | H213: 0 | I213: 0 | J213: 0 | K213: 0 | L213: 0 | M213: 0 | N213: 0
B214: Dependent (Output List) 1 -> | D214: Idler Type | E214: Limiter - Single Stop | STD 1.5" | F214: Skyline Heavy Duty Pin End 1.5" | G214: Limiter - Single Stop | STD S45
E215: Limiter - Single Stop | COMPACT 1.5"
D220: DO NOT FILL
D222: =MAX(E222:N222) -> 0 | E222: =IF(E202<>$D202,0,COUNTA(E223:E227)) -> 0 | F222: 0 | G222: 0 | H222: 0 | I222: 0 | J222: 0 | K222: 0 | L222: 0 | M222: 0 | N222: 0
B223: Dependent (Output List) 1 ->
D228: DO NOT FILL
D230: =D214 -> Idler Type | E230: =D223 -> 0 | G230: =SUBSTITUTE(" ","",$D203) ->  | H230: =IFERROR(INDEX(#REF!, MATCH(0, COUNTIF($D230:G$445,#REF!) + ( COUNTIF(#REF!,#REF!)<>1), 0)), "") ->  | I230: =IFERROR(INDEX(#REF!, MATCH(0, COUNTIF($D230:H$445,#REF!) + ( COUNTIF(#REF!,#REF!)<>1), 0)), "") -> 
C231: row | D231: =MATCH(D230,$D202:$D221,0) -> 13 | E231: =MATCH(E230,$D202:$D228,0) -> 12
C232: column | D232: =MATCH(OFFSET($D202,MATCH(D230,$D202:$D221,0)-2,0),OFFSET($D202,MATCH(D230,$D202:$D221,0)-2,1,1,11),0)+1 -> 2 | E232: =MATCH(OFFSET($D202,MATCH(E230,$D202:$D228,0)-2,0),OFFSET($D202,MATCH(E230,$D202:$D228,0)-2,1,1,11),0)+1 -> 
C233: Size | D233: =OFFSET($D202,MATCH(D230,$D202:$D221,0)-2,0,) -> 0 | E233: =OFFSET($D202,MATCH(E230,$D202:$D228,0)-2,0,) -> 0
C234: Test →
C235: Data Validation Name | D235: ="L_"&SUBSTITUTE(D230," ","") -> L_IdlerType | E235: ="L_"&SUBSTITUTE(E230," ","") -> L_0
D237: =OFFSET($D$202,$D$231-1,$D$232-1,$D$233) -> 
D238: =OFFSET(Ctrl_Selections!$D$202,Ctrl_Selections!$D$231-1,Ctrl_Selections!$D$232-1,Ctrl_Selections!$D$233) -> 
C243: Enter DEPENDENCIES | D243: SELECTION OPTIONS | E243: CONFIGURATIONS
C244: Ref Position → | D244: =COUNTA(D245:D253) -> 1 | E244: =SUM(COUNTIF(E245:E253,$C$245:$C$253)) -> 0 | F244: =SUM(COUNTIF(F245:F253,$C$245:$C$253)) -> 0 | G244: =SUM(COUNTIF(G245:G253,$C$245:$C$253)) -> 0 | H244: =SUM(COUNTIF(H245:H253,$C$245:$C$253)) -> 0 | I244: =SUM(COUNTIF(I245:I253,$C$245:$C$253)) -> 0 | J244: =SUM(COUNTIF(J245:J253,$C$245:$C$253)) -> 0 | K244: =SUM(COUNTIF(K245:K253,$C$245:$C$253)) -> 0 | L244: =SUM(COUNTIF(L245:L253,$C$245:$C$253)) -> 0 | M244: =SUM(COUNTIF(M245:M253,$C$245:$C$253)) -> 0 | N244: =SUM(COUNTIF(N245:N253,$C$245:$C$253)) -> 0
B245: Enter Selection 3-> | C245: =i_InstallationType -> 0 | D245: Installation Type | E245: Open
C249: =i_Tube -> 0
D255: =MAX(E255:N255) -> 0 | E255: =IF(E244<>$D244,0,COUNTA(E256:E262)) -> 0 | F255: 0 | G255: 0 | H255: 0 | I255: 0 | J255: 0 | K255: 0 | L255: 0 | M255: 0 | N255: 0
B256: Dependent (Output List) 1 -> | D256: Control Type | E256: Easy Spring Air - MICRO - LH
E257: Easy Spring Air - MINI - LH
E258: Easy Spring Air - SMALL - LH
E259: Easy Spring Air - LIGHT - LH
E260: Easy Spring Air - MEDIUM - LH
E261: Easy Spring Air - HEAVY - LH
D263: DO NOT FILL
D265: =MAX(E265:N265) -> 0 | E265: =IF(E244<>$D244,0,COUNTA(E266:E272)) -> 0 | F265: =IF(F244<>$D244,0,COUNTA(F266:F272)) -> 0 | G265: 0 | H265: 0 | I265: 0 | J265: 0 | K265: 0 | L265: 0 | M265: 0 | N265: 0
B266: Dependent (Output List) 1 -> | D266: Gear Ratio
D273: DO NOT FILL
D275: =D256 -> Control Type | E275: =D266 -> Gear Ratio
C276: row | D276: =MATCH(D275,$D244:$D264,0) -> 13 | E276: =MATCH(E275,$D244:$D273,0) -> 23
C277: column | D277: =MATCH(OFFSET($D244,MATCH(D275,$D244:$D264,0)-2,0),OFFSET($D244,MATCH(D275,$D244:$D264,0)-2,1,1,11),0)+1 -> 2 | E277: =MATCH(OFFSET($D244,MATCH(E275,$D244:$D272,0)-2,0),OFFSET($D244,MATCH(E275,$D244:$D272,0)-2,1,1,11),0)+1 -> 2
C278: Size | D278: =OFFSET($D244,MATCH(D275,$D244:$D264,0)-2,0,) -> 0 | E278: =OFFSET($D243,MATCH(E275,$D243:$D273,0)-2,0,) -> 0
C279: Test →
C280: Data Validation Name | D280: ="L_"&SUBSTITUTE(D275," ","") -> L_ControlType | E280: ="L_"&SUBSTITUTE(E275," ","") -> L_GearRatio
C288: Enter DEPENDENCIES | D288: SELECTION OPTIONS | E288: CONFIGURATIONS
C289: Ref Position → | D289: =COUNTA(D290:D298) -> 1 | E289: =SUM(COUNTIF(E290:E298,$C$290:$C$298)) -> 0 | F289: =SUM(COUNTIF(F290:F298,$C$290:$C$298)) -> 0 | G289: =SUM(COUNTIF(G290:G298,$C$290:$C$298)) -> 0 | H289: =SUM(COUNTIF(H290:H298,$C$290:$C$298)) -> 0 | I289: =SUM(COUNTIF(I290:I298,$C$290:$C$298)) -> 0 | J289: =SUM(COUNTIF(J290:J298,$C$290:$C$298)) -> 0 | K289: =SUM(COUNTIF(K290:K298,$C$290:$C$298)) -> 0 | L289: =SUM(COUNTIF(L290:L298,$C$290:$C$298)) -> 0 | M289: =SUM(COUNTIF(M290:M298,$C$290:$C$298)) -> 0 | N289: =SUM(COUNTIF(N290:N298,$C$290:$C$298)) -> 0
B290: Enter Selection 3-> | C290: =i_Location -> 0 | D290: Location | E290: US | F290: AU
D300: =MAX(E300:N300) -> 0 | E300: =IF(E289<>$D289,0,COUNTA(E301:E307)) -> 0 | F300: 0 | G300: 0 | H300: 0 | I300: 0 | J300: 0 | K300: 0 | L300: 0 | M300: 0 | N300: 0
B301: Dependent (Output List) 1 -> | D301: Tube | E301: 1.5" | F301: S45 LGT
E302: 2" | F302: S45 STD
E303: S45 LGT | F303: S45 HD
E304: S45 STD
E305: S45 HD
D308: DO NOT FILL
D311: =D301 -> Tube
C312: row | D312: =MATCH(D311,$D289:$D309,0) -> 13
C313: column | D313: =MATCH(OFFSET($D289,MATCH(D311,$D289:$D309,0)-2,0),OFFSET($D289,MATCH(D311,$D289:$D309,0)-2,1,1,11),0)+1 -> 2
C314: Size | D314: =OFFSET($D289,MATCH(D311,$D289:$D309,0)-2,0,) -> 0
C315: Test →
C316: Data Validation Name | D316: ="L_"&SUBSTITUTE(D311," ","") -> L_Tube
D319: =OFFSET($D$134,OFFSET(INDIRECT(ADDRESS(ROW(),COLUMN(),4)),-3,0)-1,OFFSET(INDIRECT(ADDRESS(ROW(),COLUMN(),4)),-2,0)-1,OFFSET(INDIRECT(ADDRESS(ROW(),COLUMN(),4)),-1,0))
C327: Enter DEPENDENCIES | D327: SELECTION OPTIONS | E327: CONFIGURATIONS
C328: Ref Position → | D328: =COUNTA(D329:D341) -> 2 | E328: =SUM(COUNTIF(E329:E341,$C$329:$C$341)) -> 0 | F328: =SUM(COUNTIF(F329:F341,$C$329:$C$341)) -> 0 | G328: =SUM(COUNTIF(G329:G341,$C$329:$C$341)) -> 0 | H328: =SUM(COUNTIF(H329:H341,$C$329:$C$341)) -> 0 | I328: =SUM(COUNTIF(I329:I341,$C$383:$C$391)) -> 0 | J328: =SUM(COUNTIF(J329:J341,$C$383:$C$391)) -> 0 | K328: =SUM(COUNTIF(K329:K341,$C$383:$C$391)) -> 0 | L328: =SUM(COUNTIF(L329:L341,$C$383:$C$391)) -> 0 | M328: =SUM(COUNTIF(M329:M341,$C$383:$C$391)) -> 0 | N328: =SUM(COUNTIF(N329:N341,$C$383:$C$391)) -> 0
B329: Enter Selection 3-> | C329: =i_Location -> 0 | D329: i_Location
C333: =i_SystemType -> 0 | D333: i_SystemType
B341: Enter Selection 4->
D343: =MAX(E343:N343) -> 0 | E343: =IF(E328<>$D328,0,COUNTA(#REF!)) -> 0 | F343: =IF(F328<>$D328,0,COUNTA(F344:F350)) -> 0 | G343: 0 | H343: 0 | I343: =IF(I328<>$D328,0,COUNTA(E344:E350)) -> 0 | J343: 0 | K343: 0 | L343: 0 | M343: 0 | N343: 0
B344: Dependent (Output List) 1 ->
D351: DO NOT FILL
D353: =MAX(E353:N353) -> 0 | E353: =IF(E328<>$D328,0,COUNTA(E354:E360)) -> 0 | F353: =IF(F328<>$D328,0,COUNTA(F354:F360)) -> 0 | G353: 0 | H353: 0 | I353: 0 | J353: 0 | K353: 0 | L353: 0 | M353: 0 | N353: 0
B354: Dependent (Output List) 1 ->
D361: DO NOT FILL
D364: =D344 -> 0 | E364: =D354 -> 0
C365: row | D365: =MATCH(D364,$D328:$D362,0) -> 16 | E365: =MATCH(E364,$D328:$D362,0) -> 16
C366: column | D366: =MATCH(OFFSET($D328,MATCH(D364,$D328:$D362,0)-2,0),OFFSET($D328,MATCH(D364,$D328:$D362,0)-2,1,1,11),0)+1 ->  | E366: =MATCH(OFFSET($D328,MATCH(E364,$D328:$D362,0)-2,0),OFFSET($D328,MATCH(E364,$D328:$D362,0)-2,1,1,11),0)+1 -> 
C367: Size | D367: =OFFSET($D328,MATCH(D364,$D328:$D362,0)-2,0,) -> 0 | E367: =OFFSET($D328,MATCH(E364,$D328:$D362,0)-2,0,) -> 0
C368: Test → | E368: L-Fixing Rail
C369: Data Validation Name | D369: ="L_"&SUBSTITUTE(D364," ","") -> L_0 | E369: ="L_"&SUBSTITUTE(E364," ","") -> L_0
D372: =OFFSET($D$328,$D$365-1,$D$366-1,$D$367) -> 
D374: =OFFSET(Ctrl_Selections!$D$328,Ctrl_Selections!$D$365-1,Ctrl_Selections!$D$366-1,Ctrl_Selections!$D$367) -> 
G379: have not set up deductions for pivot arm / wire guide systems.
C381: Enter DEPENDENCIES | D381: SELECTION OPTIONS | E381: CONFIGURATIONS
C382: Ref Position → | D382: =COUNTA(D383:D391) -> 1 | E382: =SUM(COUNTIF(E383:E391,$C$383:$C$391)) -> 0 | F382: =SUM(COUNTIF(F383:F391,$C$383:$C$391)) -> 0 | G382: =SUM(COUNTIF(G383:G391,$C$383:$C$391)) -> 0 | H382: =SUM(COUNTIF(H383:H391,$C$383:$C$391)) -> 0 | I382: =SUM(COUNTIF(I383:I391,$C$383:$C$391)) -> 0 | J382: =SUM(COUNTIF(J383:J391,$C$383:$C$391)) -> 0 | K382: =SUM(COUNTIF(K383:K391,$C$383:$C$391)) -> 0 | L382: =SUM(COUNTIF(L383:L391,$C$383:$C$391)) -> 0 | M382: =SUM(COUNTIF(M383:M391,$C$383:$C$391)) -> 0 | N382: =SUM(COUNTIF(N383:N391,$C$383:$C$391)) -> 0
B383: Enter Selection 3-> | C383: =i_Location -> 0 | D383: Location | E383: AU | F383: US
B391: Enter Selection 4->
D393: =MAX(E393:N393) -> 0 | E393: =IF(E382<>$D382,0,COUNTA(E394:E400)) -> 0 | F393: =IF(F382<>$D382,0,COUNTA(F394:F400)) -> 0 | G393: 0 | H393: 0 | I393: 0 | J393: 0 | K393: 0 | L393: 0 | M393: 0 | N393: 0
B394: Dependent (Output List) 1 -> | D394: Open Bkt Style | E394: LX Skyline | F394: Skyline 1.5"
F395: LX Skyline
F396: Opulence Round Skyline
F397: Opulence Square Skyline
D401: DO NOT FILL
D404: =D394 -> Open Bkt Style
C405: row | D405: =MATCH(D404,$D382:$D402,0) -> 13
C406: column | D406: =MATCH(OFFSET($D382,MATCH(D404,$D382:$D402,0)-2,0),OFFSET($D382,MATCH(D404,$D382:$D402,0)-2,1,1,11),0)+1 -> 2
C407: Size | D407: =OFFSET($D382,MATCH(D404,$D382:$D402,0)-2,0,) -> 0
C408: Test →
C409: Data Validation Name | D409: ="L_"&SUBSTITUTE(D404," ","") -> L_OpenBktStyle
D412: =OFFSET($D$134,OFFSET(INDIRECT(ADDRESS(ROW(),COLUMN(),4)),-3,0)-1,OFFSET(INDIRECT(ADDRESS(ROW(),COLUMN(),4)),-2,0)-1,OFFSET(INDIRECT(ADDRESS(ROW(),COLUMN(),4)),-1,0))
D414: =OFFSET($D$382,$D$405-1,$D$406-1,$D$407) -> 
C419: Enter DEPENDENCIES | D419: SELECTION OPTIONS | E419: CONFIGURATIONS
C420: Ref Position → | D420: =COUNTA(D421:D426) -> 1 | E420: =SUM(COUNTIF($E$421:$E$427,$C$421:$C$427)) -> 0 | F420: =SUM(COUNTIF($F$421:$F$427,$C$421:$C$427)) -> 0
B421: Enter Selection 1 -> | C421: =i_OpenBktStyle -> 0 | D421: Open Bkt Style | E421: Skyline 1.5" | F421: Opulence Round
E422: LX Skyline | F422: Opulence Square
B425: Enter Selection 2->
B426: Enter Selection 3-> | C426: =i_ControlType -> 0
B427: Enter Selection 4->
D429: =MAX(E429:N429) -> 0 | E429: =IF(E420<>$D420,0,COUNTA(E430:E434)) -> 0 | F429: 0 | G429: 0 | H429: 0 | I429: 0 | J429: 0 | K429: 0 | L429: 0 | M429: 0 | N429: 0
B430: Dependent (Output List) 1 -> | D430: Open Bkt Covers | E430: Yes | F430: No
E431: No
D435: DO NOT FILL
D437: =D430 -> Open Bkt Covers | H437: =IFERROR(INDEX(#REF!, MATCH(0, COUNTIF($D437:G$445,#REF!) + ( COUNTIF(#REF!,#REF!)<>1), 0)), "") ->  | I437: =IFERROR(INDEX(#REF!, MATCH(0, COUNTIF($D437:H$445,#REF!) + ( COUNTIF(#REF!,#REF!)<>1), 0)), "") -> 
C438: row | D438: =MATCH(D437,$D420:$D436,0) -> 11
C439: column | D439: =MATCH(OFFSET($D420,MATCH(D437,$D420:$D436,0)-2,0),OFFSET($D420,MATCH(D437,$D420:$D436,0)-2,1,1,11),0)+1 -> 2
C440: Size | D440: =OFFSET($D420,MATCH(D437,$D420:$D436,0)-2,0,) -> 0
C441: Test → | D441: No
C442: Data Validation Name | D442: ="L_"&SUBSTITUTE(D437," ","") -> L_OpenBktCovers
C448: Enter DEPENDENCIES | D448: SELECTION OPTIONS | E448: CONFIGURATIONS
... 141 more rows

Sheet Ctrl_Deductions (hidden)
I1: LXSKYLINE | J1: 4.89 | K1: 4.89 | L1: =K1+K3 -> 12.19 | AL1: =i_BktFixType -> 0
D2: Does | F2: Apply to | I2: SLB660 | J2: 4.57 | K2: 4.57 | L2: =K2+K3 -> 11.87 | AJ2: assumes top/face is BASELINE | AL2: =i_ZipscreenSideGuideFix -> 
I3: MINI | J3: 339.9 | K3: 7.3 | X3: Enter DEPENDENCIES | Y3: SELECTION OPTIONS | Z3: CONFIGURATIONS
I4: LIGHT | J4: 541.9 | K4: 7.3 | Y4: =MAX(Z4:AU4) -> 0 | Z4: =SUM(COUNTIF(Z5:Z19,$X$5:$X$19)) -> 0 | AA4: =SUM(COUNTIF(AA5:AA19,$X$5:$X$19)) -> 0 | AB4: =SUM(COUNTIF(AB5:AB19,$X$5:$X$19)) -> 0 | AC4: =SUM(COUNTIF(AC5:AC19,$X$5:$X$19)) -> 0 | AD4: =SUM(COUNTIF(AD5:AD19,$X$5:$X$19)) -> 0 | AE4: =SUM(COUNTIF(AE5:AE19,$X$5:$X$19)) -> 0 | AF4: =SUM(COUNTIF(AF5:AF19,$X$5:$X$19)) -> 0 | AG4: =SUM(COUNTIF(AG5:AG19,$X$5:$X$19)) -> 0 | AH4: =SUM(COUNTIF(AH5:AH19,$X$5:$X$19)) -> 0 | AI4: =SUM(COUNTIF(AI5:AI19,$X$5:$X$19)) -> 0 | AJ4: =SUM(COUNTIF(AJ5:AJ14,$X$5:$X$14)) -> 0 | AK4: =SUM(COUNTIF(AK5:AK14,$X$5:$X$14)) -> 0 | AL4: =SUM(COUNTIF(AL5:AL14,$X$5:$X$14)) -> 0 | AM4: =SUM(COUNTIF(AM5:AM14,$X$5:$X$14)) -> 0 | AN4: =SUM(COUNTIF(AN5:AN14,$X$5:$X$14)) -> 0 | AO4: =SUM(COUNTIF(AO5:AO14,$X$5:$X$14)) -> 0 | AP4: =SUM(COUNTIF(AP5:AP14,$X$5:$X$14)) -> 0 | AQ4: =SUM(COUNTIF(AQ5:AQ14,$X$5:$X$14)) -> 0 | AR4: =SUM(COUNTIF(AR5:AR14,$X$5:$X$14)) -> 0 | AS4: =SUM(COUNTIF(AS5:AS14,$X$5:$X$14)) -> 0 | AT4: =SUM(COUNTIF(AT5:AT14,$X$5:$X$14)) -> 0 | AU4: =SUM(COUNTIF(AU5:AU14,$X$5:$X$14)) -> 0
I5: MED | J5: 851.9 | K5: 7.3
I6: HEAVY | J6: 951.9 | K6: 7.3
J7: 5
I8: SLB660 | J8: 4.57 | K8: 4.57 | L8: =K8+K9 -> 12.19
I9: SLPEV653xx | J9: 41.15 | K9: 7.62 | L9: =K8+K11 -> 18.57
I10: SLPEHD53xx | J10: 78.34 | K10: 9 | X10: =INDIRECT("i_"&SUBSTITUTE($Y10," ","")) -> 0 | Y10: Open Bkt Style | Z10: Skyline 1.5" | AA10: Skyline 1.5" | AB10: Skyline 1.5" | AC10: LX Skyline | AD10: LX Skyline | AE10: LX Skyline | AF10: Opulence Round Skyline | AG10: Opulence Round Skyline | AH10: Opulence Round Skyline
I11: Universal Limiter | J11: 142.69 | K11: 14 | AF11: Opulence Square Skyline | AG11: Opulence Square Skyline | AH11: Opulence Square Skyline
H12: =J11-J12 -> 17.74 | I12: Short Limiter | J12: 124.95 | K12: 14 | AF12: Opulence Round RB09 | AG12: Opulence Round RB09 | AH12: Opulence Round RB09
I13: LXSKYLINE | J13: 4.89 | K13: 4.89 | AF13: Opulence Square RB09 | AG13: Opulence Square RB09 | AH13: Opulence Square RB09
H15: SLB660 | I15: MINIMUM SHADE WIDTH | J15: STD 1.5 | K15: HD 1.5 | L15: Universal | M15: Short | X15: =INDIRECT("i_"&SUBSTITUTE($Y15," ","")) -> 0 | Y15: Idler Type | Z15: Skyline Pin End 1.5" | AA15: Skyline Heavy Duty Pin End 1.5" | AB15: Limiter - Single Stop | STD 1.5" | AC15: Skyline Pin End 1.5" | AD15: Skyline Heavy Duty Pin End 1.5" | AE15: Limiter - Single Stop | STD 1.5" | AF15: Skyline Pin End 1.5" | AG15: Skyline Heavy Duty Pin End 1.5" | AH15: Limiter - Single Stop | STD 1.5"
I16: MINI | J16: =$J$2+$J$3+$J$7+$J$8+$J$9 -> 395.19 | K16: =$J$2+$J$3+$J$7+$J$8+$J$10 -> 432.38 | L16: =$J$2+$J$3+$J$7+$J$8+$J$11 -> 496.73 | M16: =$J$2+$J$3+$J$7+$J$8+$J$12 -> 478.99 | AB16: Limiter - Single Stop | COMPACT 1.5" | AE16: Limiter - Single Stop | COMPACT 1.5" | AH16: Limiter - Single Stop | COMPACT 1.5"
I17: LIGHT | J17: =$J$2+$J$4+$J$7+$J$8+$J$9 -> 597.19 | K17: =$J$2+$J$4+$J$7+$J$8+$J$10 -> 634.38 | L17: =$J$2+$J$4+$J$7+$J$8+$J$11 -> 698.73 | M17: =$J$2+$J$4+$J$7+$J$8+$J$12 -> 680.99 | AB17: Limiter - Single Stop | STD S45 | AE17: Limiter - Single Stop | STD S45 | AH17: Limiter - Single Stop | STD S45
I18: MEDIUM | J18: =$J$2+$J$5+$J$7+$J$8+$J$9 -> 907.19 | K18: =$J$2+$J$5+$J$7+$J$8+$J$10 -> 944.38 | L18: =$J$2+$J$5+$J$7+$J$8+$J$11 -> 1008.73 | M18: =$J$2+$J$5+$J$7+$J$8+$J$12 -> 990.99 | AB18: Limiter - Single Stop | COMPACT S45 | AE18: Limiter - Single Stop | COMPACT S45 | AH18: Limiter - Single Stop | COMPACT S45
I19: HEAVY | J19: =$J$2+$J$6+$J$7+$J$8+$J$9 -> 1007.19 | K19: =$J$2+$J$6+$J$7+$J$8+$J$10 -> 1044.38 | L19: =$J$2+$J$6+$J$7+$J$8+$J$11 -> 1108.73 | M19: =$J$2+$J$6+$J$7+$J$8+$J$12 -> 1090.99
AJ21: open bkt assumes TOP FIX for heights, modifier for face fix
H22: SLB660 | I22: TUBE DEDUCTION | J22: STD 1.5 | K22: HD 1.5 | L22: Universal | M22: Short | AJ22: assumes top/face is BASELINE for box190- modifier subtracts 6mm (accounts for L fixing side channels
I23: ALL | J23: =$K$2+$K$3+$K$8+$K$9 -> 24.06 | K23: =$K$2+$K$3+$K$8+$K$10 -> 25.44 | L23: =$K$2+$K$3+$K$8+$K$11 -> 30.44 | M23: =$K$2+$K$3+$K$8+$K$12 -> 30.44
X24: Type | Y24: Deduction | Z24: =IF(Z4<>$Y$4,0,1) -> 1 | AA24: 1 | AB24: =IF(AB4<>$Y$4,0,1) -> 1 | AC24: 1 | AD24: 1 | AE24: 1 | AF24: 1 | AG24: 1 | AH24: 1 | AI24: 1 | AJ24: 1 | AK24: 1 | AL24: 1 | AM24: 1 | AN24: 1 | AO24: 1 | AP24: 1 | AQ24: 1 | AR24: 1 | AS24: 1 | AT24: 1 | AU24: 1
X25: Fabric | Y25: =INDEX(Z25:AU25,0,MATCH(1,$Z$24:$AU$24,0)) -> 25 | Z25: 25 | AA25: 27 | AB25: 32 | AC25: 25 | AD25: 27 | AE25: 32 | AF25: 29 | AG25: 31 | AH25: 36
D26: HAS FORMULAS | H26: LXSKYLINE | I26: MINIMUM SHADE WIDTH | J26: STD 1.5 | K26: HD 1.5 | L26: Universal | M26: Short | X26: Tube | Y26: 25 | Z26: =Z25 -> 25 | AA26: 27 | AB26: 32 | AC26: 25 | AD26: 27 | AE26: 32 | AF26: 29 | AG26: 31 | AH26: 36
I27: MINI | J27: =$J$1+$J$3+$J$7+$J$13+$J$9 -> 395.83 | K27: =$J$1+$J$3+$J$7+$J$13+$J$10 -> 433.02 | L27: =$J$1+$J$3+$J$7+$J$13+$J$11 -> 497.37 | M27: =$J$1+$J$3+$J$7+$J$13+$J$12 -> 479.63 | X27: Box | Y27: 0
I28: LIGHT | J28: =$J$1+$J$4+$J$7+$J$13+$J$9 -> 597.83 | K28: =$J$1+$J$4+$J$7+$J$13+$J$10 -> 635.02 | L28: =$J$1+$J$4+$J$7+$J$13+$J$11 -> 699.37 | M28: =$J$1+$J$4+$J$7+$J$13+$J$12 -> 681.63 | X28: ControlType | Y28: 0
I29: MEDIUM | J29: =$J$1+$J$5+$J$7+$J$13+$J$9 -> 907.83 | K29: =$J$1+$J$5+$J$7+$J$13+$J$10 -> 945.02 | L29: =$J$1+$J$5+$J$7+$J$13+$J$11 -> 1009.37 | M29: =$J$1+$J$5+$J$7+$J$13+$J$12 -> 991.63 | X29: Idler | Y29: 0
I30: HEAVY | J30: =$J$1+$J$6+$J$7+$J$13+$J$9 -> 1007.83 | K30: =$J$1+$J$6+$J$7+$J$13+$J$10 -> 1045.02 | L30: =$J$1+$J$6+$J$7+$J$13+$J$11 -> 1109.37 | M30: =$J$1+$J$6+$J$7+$J$13+$J$12 -> 1091.63 | X30: wb | Y30: 25 | Z30: =Z25 -> 25 | AA30: 27 | AB30: 32 | AC30: 25 | AD30: 27 | AE30: 32 | AF30: 29 | AG30: 31 | AH30: 36
X31: Ballast | Y31: =INDEX(Z31:AU31,0,MATCH(1,$Z$24:$AU$24,0)) -> 55 | Z31: =Z26+30 -> 55 | AA31: =AA26+30 -> 57 | AB31: 62 | AC31: 55 | AD31: 57 | AE31: 62 | AF31: 59 | AG31: 311 | AH31: 66
X32: TubeSpline | Y32: 25 | Z32: =Z25 -> 25 | AA32: 27 | AB32: 32 | AC32: 25 | AD32: 27 | AE32: 32 | AF32: 29 | AG32: 31 | AH32: 36
H33: LXSKYLINE | I33: TUBE DEDUCTION | J33: STD 1.5 | K33: HD 1.5 | L33: Universal | M33: Short | X33: wbSpline | Y33: 25 | Z33: =Z25 -> 25 | AA33: 27 | AB33: 32 | AC33: 25 | AD33: 27 | AE33: 32 | AF33: 29 | AG33: 31 | AH33: 36
D34: =COUNTA(D43:D52) -> 6 | I34: ALL | J34: =$K$1+$K$3+$K$13+$K$9 -> 24.7 | K34: =$K$1+$K$3+$K$13+$K$10 -> 26.08 | L34: =$K$1+$K$3+$K$13+$K$11 -> 31.08 | M34: =$K$1+$K$3+$K$13+$K$12 -> 31.08 | X34: wbSeal | Y34: 25 | Z34: =Z25 -> 25 | AA34: 27 | AB34: 32 | AC34: 25 | AD34: 27 | AE34: 32 | AF34: 29 | AG34: 31 | AH34: 36
X35: Brush | Y35: 0
X36: FabricDrop | Y36: =INDEX(Z36:AU36,0,MATCH(1,$Z$24:$AU$24,0)) -> -150 | Z36: -150 | AA36: -150 | AB36: -150 | AC36: -150 | AD36: -150 | AE36: -150 | AF36: -150 | AG36: -150 | AH36: -150
Z38: =o_Widthmm-((((o_Widthmm*o_ReqdwbMass/1000)-(o_Widthmm*XLOOKUP(i_WeightBar,T_refWeightBar[Description],T_refWeightBar[Mass/m],0,0)/1000))*1000)/o_BallastMass) | AJ38: top/face vs. recess has diff rail HEIGHTS?
Z39: ballast used to use this formula for EXACT calc
Q40: Lookup | Z40: 22-Jan-24; changed to maximum ballast length for simplicity
Q41: Deduction
D42: =X25 -> Fabric | E42: =X26 -> Tube | F42: =X27 -> Box | G42: =X28 -> ControlType | H42: =X29 -> Idler | I42: =X30 -> wb | J42: =X31 -> Ballast | K42: =X32 -> TubeSpline | L42: =X33 -> wbSpline | M42: =X34 -> wbSeal | N42: =X35 -> Brush | O42: =X36 -> FabricDrop | Q42: Modifiers | S42: QTY | T42: ON/OFF | V42: Comments | Z42: =IF(Z4<>$Y$4,0,1) -> 1 | AA42: 1 | AB42: 1 | AC42: 1 | AD42: 1 | AE42: 1 | AF42: 1 | AG42: 1 | AH42: 1 | AI42: 1 | AJ42: 1 | AK42: 1 | AL42: 1 | AM42: 1 | AN42: 1 | AO42: 1 | AP42: 1 | AQ42: 1 | AR42: 1 | AS42: 1 | AT42: 1 | AU42: 1
D43: 1 | E43: 1 | F43: 1 | G43: 0 | H43: 0 | I43: 1 | J43: 1 | K43: 1 | L43: 1 | M43: 1 | N43: 0 | O43: 0 | Q43: =INDEX($Z$43:$AU$49,0,MATCH(1,$Z$42:$AU$42,0)) -> 3 | S43: 1 | T43: =IFERROR(IF(ISBLANK(X43),"",IF(FIND(Y43,INDIRECT("i_"&$X43))>0,1,0)),0) -> 0 | X43: OpenBktCovers | Y43: Yes | Z43: 3 | AA43: 3 | AB43: 3 | AC43: 2 | AD43: 2 | AE43: 2
D44: 0 | E44: 0 | F44: 0 | G44: 0 | H44: 0 | I44: 0 | J44: 0 | K44: 0 | L44: 0 | M44: 0 | N44: 0 | O44: 1 | Q44: =INDEX($Z$43:$AU$49,0,MATCH(1,$Z$42:$AU$42,0)) -> -140 | S44: 1 | T44: =IFERROR(IF(ISBLANK(X44),"",IF(FIND(Y44,INDIRECT("i_"&$X44))>0,1,0)),0) -> 0 | X44: WeightBar | Y44: Fabric Wrap | Z44: -140 | AA44: -140 | AB44: -140 | AC44: -140 | AD44: -140 | AE44: -140 | AF44: -140 | AG44: -140 | AH44: -140
D45: 0 | E45: 0 | F45: 0 | G45: 1 | H45: 1 | I45: 0 | J45: 0 | K45: 0 | L45: 0 | M45: 0 | N45: 0 | O45: 0 | Q45: 0 | S45: 0 | T45: =IFERROR(IF(ISBLANK(X45),"",IF(FIND(Y45,INDIRECT("i_"&$X45))>0,1,0)),0) -> 
D46: 1 | E46: 1 | F46: 0 | G46: 0 | H46: 0 | I46: 1 | J46: 1 | K46: 1 | L46: 1 | M46: 1 | N46: 0 | O46: 0 | Q46: 0 | S46: 0
D47: 1 | E47: 1 | F47: 0 | G47: 0 | H47: 0 | I47: 1 | J47: 1 | K47: 1 | L47: 1 | M47: 1 | N47: 0 | O47: 0 | Q47: 0 | S47: 0
D48: 1 | E48: 1 | F48: 1 | G48: 0 | H48: 0 | I48: 1 | J48: 1 | K48: 1 | L48: 1 | M48: 1 | N48: 0 | O48: 0 | Q48: 0 | S48: 0 | T48: =IFERROR(IF(ISBLANK(X48),"",IF(FIND(Y48,INDIRECT("i_"&$X48))>0,1,0)),0) -> 
X53: Type | Y53: Deduction | Z53: =IF(Z4<>$Y$4,0,1) -> 1 | AA53: 1 | AB53: 1 | AC53: 1 | AD53: 1 | AE53: 1 | AF53: 1 | AG53: 1 | AH53: 1 | AI53: 1 | AJ53: 1 | AK53: 1 | AL53: 1 | AM53: 1 | AN53: 1 | AO53: 1 | AP53: 1 | AQ53: 1 | AR53: 1 | AS53: 1 | AT53: 1 | AU53: 1
X54: Fabric | Y54: =INDEX(Z54:AU54,0,MATCH(1,$Z$24:$AU$24,0)) -> 25 | Z54: =IFERROR(IF(Z$53=0,"",Z25+SUMPRODUCT($T$43:$T$48,$S$43:$S$48,$Q$43:$Q$48,OFFSET($D$42,1,MATCH($X54,$D$42:$O$42,0)-1,$D$34,1))),"") -> 25 | AA54: 27 | AB54: 32 | AC54: 25 | AD54: 27 | AE54: =IFERROR(IF(AE$53=0,"",AE25+SUMPRODUCT($T$43:$T$48,$S$43:$S$48,$Q$43:$Q$48,OFFSET($D$42,1,MATCH($X54,$D$42:$O$42,0)-1,$D$34,1))),"") -> 32 | AF54: 29 | AG54: 31 | AH54: 36 | AI54: 0 | AJ54: 0 | AK54: 0 | AL54: 0 | AM54: 0 | AN54: 0 | AO54: 0 | AP54: 0 | AQ54: 0 | AR54: 0 | AS54: 0 | AT54: 0 | AU54: 0
X55: Tube | Y55: =INDEX(Z55:AU55,0,MATCH(1,$Z$24:$AU$24,0)) -> 25 | Z55: =IFERROR(IF(Z$53=0,"",Z26+SUMPRODUCT($T$43:$T$48,$S$43:$S$48,$Q$43:$Q$48,OFFSET($D$42,1,MATCH($X55,$D$42:$O$42,0)-1,$D$34,1))),"") -> 25 | AA55: =IFERROR(IF(AA$53=0,"",AA26+SUMPRODUCT($T$43:$T$48,$S$43:$S$48,$Q$43:$Q$48,OFFSET($D$42,1,MATCH($X55,$D$42:$O$42,0)-1,$D$34,1))),"") -> 27 | AB55: 32 | AC55: 25 | AD55: 27 | AE55: 32 | AF55: 29 | AG55: 31 | AH55: 36 | AI55: 0 | AJ55: 0 | AK55: 0 | AL55: 0 | AM55: 0 | AN55: 0 | AO55: 0 | AP55: 0 | AQ55: 0 | AR55: 0 | AS55: 0 | AT55: 0 | AU55: 0
X56: Box | Y56: =INDEX(Z56:AU56,0,MATCH(1,$Z$24:$AU$24,0)) -> 0 | Z56: =IFERROR(IF(Z$53=0,"",Z27+SUMPRODUCT($T$43:$T$48,$S$43:$S$48,$Q$43:$Q$48,OFFSET($D$42,1,MATCH($X56,$D$42:$O$42,0)-1,$D$34,1))),"") -> 0 | AA56: 0 | AB56: 0 | AC56: 0 | AD56: 0 | AE56: 0 | AF56: 0 | AG56: 0 | AH56: 0 | AI56: 0 | AJ56: 0 | AK56: 0 | AL56: 0 | AM56: 0 | AN56: 0 | AO56: 0 | AP56: 0 | AQ56: 0 | AR56: 0 | AS56: 0 | AT56: 0 | AU56: 0
X57: wb | Y57: =INDEX(Z57:AU57,0,MATCH(1,$Z$24:$AU$24,0)) -> 25 | Z57: =IFERROR(IF(Z$53=0,"",Z30+SUMPRODUCT($T$43:$T$48,$S$43:$S$48,$Q$43:$Q$48,OFFSET($D$42,1,MATCH($X57,$D$42:$O$42,0)-1,$D$34,1))),"") -> 25 | AA57: 27 | AB57: 32 | AC57: 25 | AD57: 27 | AE57: 32 | AF57: 29 | AG57: 31 | AH57: 36 | AI57: 0 | AJ57: 0 | AK57: 0 | AL57: 0 | AM57: 0 | AN57: 0 | AO57: 0 | AP57: 0 | AQ57: 0 | AR57: 0 | AS57: 0 | AT57: 0 | AU57: 0
X58: Ballast | Y58: =INDEX(Z58:AU58,0,MATCH(1,$Z$24:$AU$24,0)) -> 55 | Z58: =IFERROR(IF(Z$53=0,"",Z31+SUMPRODUCT($T$43:$T$48,$S$43:$S$48,$Q$43:$Q$48,OFFSET($D$42,1,MATCH($X58,$D$42:$O$42,0)-1,$D$34,1))),"") -> 55 | AA58: 57 | AB58: 62 | AC58: 55 | AD58: 57 | AE58: 62 | AF58: 59 | AG58: 311 | AH58: 66 | AI58: 0 | AJ58: 0 | AK58: 0 | AL58: 0 | AM58: 0 | AN58: 0 | AO58: 0 | AP58: 0 | AQ58: 0 | AR58: 0 | AS58: 0 | AT58: 0 | AU58: 0
X59: TubeSpline | Y59: =INDEX(Z59:AU59,0,MATCH(1,$Z$24:$AU$24,0)) -> 25 | Z59: =IFERROR(IF(Z$53=0,"",Z32+SUMPRODUCT($T$43:$T$48,$S$43:$S$48,$Q$43:$Q$48,OFFSET($D$42,1,MATCH($X59,$D$42:$O$42,0)-1,$D$34,1))),"") -> 25 | AA59: 27 | AB59: 32 | AC59: 25 | AD59: 27 | AE59: 32 | AF59: 29 | AG59: 31 | AH59: 36 | AI59: 0 | AJ59: 0 | AK59: 0 | AL59: 0 | AM59: 0 | AN59: 0 | AO59: 0 | AP59: 0 | AQ59: 0 | AR59: 0 | AS59: 0 | AT59: 0 | AU59: 0
X60: wbSpline | Y60: =INDEX(Z60:AU60,0,MATCH(1,$Z$24:$AU$24,0)) -> 25 | Z60: =IFERROR(IF(Z$53=0,"",Z33+SUMPRODUCT($T$43:$T$48,$S$43:$S$48,$Q$43:$Q$48,OFFSET($D$42,1,MATCH($X60,$D$42:$O$42,0)-1,$D$34,1))),"") -> 25 | AA60: 27 | AB60: 32 | AC60: 25 | AD60: 27 | AE60: 32 | AF60: 29 | AG60: 31 | AH60: 36 | AI60: 0 | AJ60: 0 | AK60: 0 | AL60: 0 | AM60: 0 | AN60: 0 | AO60: 0 | AP60: 0 | AQ60: 0 | AR60: 0 | AS60: 0 | AT60: 0 | AU60: 0
X61: wbSeal | Y61: =INDEX(Z61:AU61,0,MATCH(1,$Z$24:$AU$24,0)) -> 25 | Z61: =IFERROR(IF(Z$53=0,"",Z34+SUMPRODUCT($T$43:$T$48,$S$43:$S$48,$Q$43:$Q$48,OFFSET($D$42,1,MATCH($X61,$D$42:$O$42,0)-1,$D$34,1))),"") -> 25 | AA61: 27 | AB61: 32 | AC61: 25 | AD61: 27 | AE61: 32 | AF61: 29 | AG61: 31 | AH61: 36 | AI61: 0 | AJ61: 0 | AK61: 0 | AL61: 0 | AM61: 0 | AN61: 0 | AO61: 0 | AP61: 0 | AQ61: 0 | AR61: 0 | AS61: 0 | AT61: 0 | AU61: 0
X62: Brush | Y62: =INDEX(Z62:AU62,0,MATCH(1,$Z$24:$AU$24,0)) -> 0 | AJ62: =IFERROR(IF(AJ$53=0,"",AJ35+SUMPRODUCT($T$43:$T$48,$S$43:$S$48,$Q$43:$Q$48,OFFSET($D$42,1,MATCH($X62,$D$42:$O$42,0)-1,$D$34,1))),"") -> 0 | AK62: 0 | AL62: 0 | AM62: 0 | AN62: 0 | AO62: 0 | AP62: 0 | AQ62: 0 | AR62: 0 | AS62: 0 | AT62: 0 | AU62: 0
X63: FabricDrop | Y63: =INDEX(Z63:AU63,0,MATCH(1,$Z$24:$AU$24,0)) -> -150 | Z63: =IFERROR(IF(Z$53=0,"",Z36+SUMPRODUCT($T$43:$T$48,$S$43:$S$48,$Q$43:$Q$48,OFFSET($D$42,1,MATCH($X63,$D$42:$O$42,0)-1,$D$34,1))),"") -> -150 | AA63: =IFERROR(IF(AA$53=0,"",AA36+SUMPRODUCT($T$43:$T$48,$S$43:$S$48,$Q$43:$Q$48,OFFSET($D$42,1,MATCH($X63,$D$42:$O$42,0)-1,$D$34,1))),"") -> -150 | AB63: -150 | AC63: -150 | AD63: -150 | AE63: -150 | AF63: -150 | AG63: -150 | AH63: -150 | AI63: 0 | AJ63: =IFERROR(IF(AJ$53=0,"",AJ36+SUMPRODUCT($T$43:$T$48,$S$43:$S$48,$Q$43:$Q$48,OFFSET($D$42,1,MATCH($X63,$D$42:$O$42,0)-1,$D$34,1))),"") -> 0 | AK63: 0 | AL63: 0 | AM63: 0 | AN63: 0 | AO63: 0 | AP63: 0 | AQ63: 0 | AR63: 0 | AS63: 0 | AT63: 0 | AU63: 0

Sheet Ctrl_Recommendations (hidden)
C2: Absolute Min | E2: Absolute Max | G2: ="Current Value ("&i_Units&")" -> Current Value () | H2: Outside Specs (0 = No, 1 = Yes) | V2: sorted by priority
C3: mm | D3: ="Min ("&i_Units&")" -> Min () | E3: mm | F3: ="Max ("&i_Units&")" -> Max () | M3: FORMULA drive min-max | V3: Warning cells are NAMED.
B4: Width | C4: =o_MinWidthReqd ->  | D4: =IF(i_Units="Metric",C4,CONVERT(C4,"mm","in")) ->  | E4: 3000 | F4: =IF(i_Units="Metric",E4,CONVERT(E4,"mm","in")) -> 118.1102362 | G4: =i_Width -> 0 | H4: =IF(AND(AND(i_Width<>"",i_Width>=0),OR(i_Width<MinWidth,i_Width>MaxWidth)),1,0) -> 
B5: Drop | C5: 500 | D5: =IF(i_Units="Metric",C5,CONVERT(C5,"mm","in")) -> 19.68503937 | E5: 3000 | F5: =IF(i_Units="Metric",E5,CONVERT(E5,"mm","in")) -> 118.1102362 | G5: =i_Drop -> 0 | H5: =IF(AND(AND(i_Drop<>"",i_Drop>=0),OR(i_Drop<MinDrop,i_Drop>MaxDrop)),1,0) -> 0 | K5: # | L5: Dim | M5: Min | N5: Max | P5: i_installationType | V5: on / off | W5: Warning
K6: w_BlindDrop | L6: o_dropmm | N6: 3000 | T6: =IFERROR(PRODUCT(IF(o_Dropmm>N6,"1","0"),Q6),"-") -> 0 | V6: =IFERROR(IF(T6>0,"on","off"),"-") -> off | W6: ="Warning! Blind Drop is too large, recommended limit is "&IF(i_Units="Metric",ROUND(E5/1000,2) &" m", ROUND(CONVERT(E5,"mm","in"),0)&" in")&". Refer Specifications Manual." -> Warning! Blind Drop is too large, recommended limit is 118 in. Refer Specifications Manual.
K7: w_BlindDrop | L7: o_dropmm | N7: 3000 | P7: Open | Q7: =IFERROR(IF(ISBLANK(P7),"",IF(FIND(P7,INDIRECT($P$5))>0,0,1)),1) -> 1 | T7: =IFERROR(PRODUCT(IF(o_Dropmm>N7,"1","0"),Q7),"-") -> 0 | V7: =IFERROR(IF(T7>0,"on","off"),"-") -> off | W7: ="Warning! Blind Drop is greater than "&IF(i_Units="Metric",ROUND(N7/1000,2) &" m", ROUND(CONVERT(N7,"mm","in"),0)&" in") -> Warning! Blind Drop is greater than 118 in
B8: Weight lookup_metric | C8: =IFERROR(INDEX(T_wbMassReq[wbMass],MATCH(i_ControlType,T_wbMassReq[Spring],0))/1000,"") ->  | D8: kg/m | K8: w_BlindDrop | L8: o_dropmm | M8: =C5 -> 500 | T8: =IFERROR(PRODUCT(IF(AND(o_Dropmm<>0,o_Dropmm<M8),"1","0"),Q8),"-") -> 0 | V8: =IFERROR(IF(T8>0,"on","off"),"-") -> off | W8: ="Warning! Blind drop recommended to be greater than "&IF(i_Units="Metric",ROUND(M8,2) &" mm", ROUND(CONVERT(M8,"mm","in"),1)&" in")&"." -> Warning! Blind drop recommended to be greater than 19.7 in.
B9: Weight lookup_imperial | C9: =ROUND(o_ReqdwbMass*0.672,2) ->  | D9: lb/ft
B10: Total Rec wb mass | C10: =(C8/1000)*o_Widthmm ->  | D10: kg | T10: =SUM($T$6:$T$8) -> 0 | V10: w_BlindDrop
B11: Total Rec wb mass | C11: =(C10)*c_kgPounds ->  | D11: lbs
K13: w_BlindWidth | L13: o_widthmm | N13: =IFERROR(INDEX(T_Limit[Limit],MATCH("Width_Max",T_Limit[Type],0),0),"") -> 3000 | Q13: =IFERROR(IF(ISBLANK(P13),"",IF(FIND(P13,INDIRECT($P$5))>0,0,1)),1) ->  | T13: =IFERROR(PRODUCT(IF(o_Widthmm>N13,"1","0")),"-") -> 0 | V13: =IFERROR(IF(o_Widthmm>N13,"on","off"),"-") -> off | W13: ="Warning! Blind Width is too wide, recommended limit is "&IF(i_Units="Metric",ROUND(N13/1000,2) &" m", ROUND(CONVERT(N13,"mm","in"),1)&" in")&". Refer Specifications Manual." -> Warning! Blind Width is too wide, recommended limit is 118.1 in. Refer Specifications Manual.
K14: w_ControlWidth | L14: o_widthmm | M14: =o_MinWidthReqd ->  | Q14: =IFERROR(IF(ISBLANK(P14),"",IF(FIND(P14,INDIRECT($P$5))>0,0,1)),1) ->  | T14: =IFERROR(PRODUCT(IF(o_Widthmm<M14,"1","0")),"-") -> - | V14: =IFERROR(IF(AND(i_ControlType<>"",o_Widthmm<M14),"on","off"),"-") -> - | W14: ="Warning! Blind width too small for selected Control Type. Minimum Width: "&IF(i_Units="Imperial",ROUND(CONVERT(o_MinWidthReqd,"mm","in"),1)&" in",o_MinWidthReqd&" mm") -> 
B15: Width Range | C15: 400mm - 2400mm | D15: 15.75in - 94.49in | T15: =SUM(T13:T14) -> 0
B16: Drop Range | C16: 500mm - 3400mm | D16: 19.69in - 133.86in
B18: Blind Width | C18: mm | D18: in
C19: =IF(i_Units="Metric",i_Width,CONVERT(i_Width,"in","mm")) -> 0 | D19: =IF(i_Units="Imperial",i_Width,CONVERT(i_Width,"mm","in")) -> 0
B21: Blind Drop | C21: mm | D21: in
C22: =IF(i_Units="Metric",i_Drop,CONVERT(i_Drop,"in","mm")) -> 0 | D22: =IF(i_Units="Imperial",i_Drop,CONVERT(i_Drop,"mm","in")) -> 0 | K22: Removed from inputs page, Control Type: | W22: =IFERROR(IF(o_SystemSpecChart="X", "Outside Spring specifications.", "Recommended Spring: "&o_SpringSize),"") -> 
B24: Blind Area | C24: m² | D24: yd²
C25: =ROUND((o_Widthmm*o_Dropmm)/(1000*1000),2) -> 0 | D25: =ROUND((D19*D22)*0.000772,2) -> 0
B28: Min Width Required | C28: =INDEX(H41:H64,MATCH(1,J41:J64,0)) ->  | D28: mm
B31: Control Selection | C31: =i_ControlType -> 0
B32: Tube Selection | C32: =i_Tube -> 0
B33: Width Input | C33: =ROUND((IF(i_Units="Metric",i_Width,CONVERT(i_Width,"in","mm"))),-2)/1000 -> 0 | D33: m | E33: *round up 100mm
B34: Drop Input | C34: =ROUND((IF(i_Units="Metric",i_Drop,CONVERT(i_Drop,"in","mm"))),-2)/1000 -> 0 | D34: m
R35: SLB Skyline Bkts 4.89mm/side
R36: LX Skyline Bkts 4.57mm/side
R37: OpenBkt style fixed to 10mm for roundiung + global consistency
B39: T_wbMassReq | C39: g/m | I39: Clearance
B40: Spring | C40: wbMass | H40: Min Width | K40: i_ControlType | N40: i_IdlerType | Q40: i_OpenBktStyle | T40: i_OpenBktCovers
B41: Easy Spring Air - MICRO - LH | C41: 500 | H41: =ROUNDUP(SUM(M41+P41+S41+V41+I41),0) -> 397 | I41: 5 | J41: =L41*O41 -> 0 | K41: MINI | L41: =IFERROR(IF(ISBLANK(K41),"",IF(FIND(K41,INDIRECT($K$40))>0,1,0)),0) -> 0 | M41: 340 | O41: =IF(i_IdlerType="Skyline Pin End 1.5""",1,0) -> 0 | P41: 41.15 | S41: 10 | T41: Yes | U41: =IFERROR(IF(ISBLANK(T41),"",IF(FIND(T41,INDIRECT($T$40))>0,1,0)),0) -> 0 | V41: =IF(AND(R41=1,U41=1),2,IF(AND(R41=0,U41=1),3,0)) -> 0
B42: Easy Spring Air - MINI - LH | C42: 500 | H42: =ROUNDUP(SUM(M42+P42+S42+V42+I42),0) -> 434 | I42: 5 | J42: =L42*O42 -> 0 | K42: MINI | L42: 0 | M42: 340 | N42: Heavy | O42: =IFERROR(IF(ISBLANK(N42),"",IF(FIND(N42,INDIRECT($N$40))>0,1,0)),0) -> 0 | P42: 78.34 | S42: 10 | T42: Yes | U42: =IFERROR(IF(ISBLANK(T42),"",IF(FIND(T42,INDIRECT($T$40))>0,1,0)),0) -> 0 | V42: =IF(AND(R42=1,U42=1),2,IF(AND(R42=0,U42=1),3,0)) -> 0
B43: Easy Spring Air - SMALL - LH | C43: 500 | H43: 498 | I43: 5 | J43: 0 | K43: MINI | L43: 0 | M43: 340 | N43: Stop | STD | O43: =IFERROR(IF(ISBLANK(N43),"",IF(FIND(N43,INDIRECT($N$40))>0,1,0)),0) -> 0 | P43: 142.69 | S43: 10 | T43: Yes | U43: 0 | V43: 0
B44: Easy Spring Air - LIGHT - LH | C44: 500 | H44: 480 | I44: 5 | J44: 0 | K44: MINI | L44: 0 | M44: 340 | N44: Stop | COM | O44: =IFERROR(IF(ISBLANK(N44),"",IF(FIND(N44,INDIRECT($N$40))>0,1,0)),0) -> 0 | P44: 124.95 | S44: 10 | T44: Yes | U44: 0 | V44: 0
B45: Easy Spring Air - MEDIUM - LH | C45: 500 | H45: 397 | I45: 5 | J45: =L45*O45 -> 0 | K45: MICRO | L45: 0 | M45: 340 | O45: =IF(i_IdlerType="Skyline Pin End 1.5""",1,0) -> 0 | P45: 41.15 | S45: 10 | T45: Yes | U45: =IFERROR(IF(ISBLANK(T45),"",IF(FIND(T45,INDIRECT($T$40))>0,1,0)),0) -> 0 | V45: =IF(AND(R45=1,U45=1),2,IF(AND(R45=0,U45=1),3,0)) -> 0
B46: Easy Spring Air - HEAVY - LH | C46: 500 | H46: 434 | I46: 5 | J46: 0 | K46: MICRO | L46: 0 | M46: 340 | N46: Heavy | O46: =IFERROR(IF(ISBLANK(N46),"",IF(FIND(N46,INDIRECT($N$40))>0,1,0)),0) -> 0 | P46: 78.34 | S46: 10 | T46: Yes | U46: =IFERROR(IF(ISBLANK(T46),"",IF(FIND(T46,INDIRECT($T$40))>0,1,0)),0) -> 0 | V46: =IF(AND(R46=1,U46=1),2,IF(AND(R46=0,U46=1),3,0)) -> 0
C47: =IFERROR(IF(AND(#REF!=1,FIND(T_wbMassReq[[#This Row],[Spring]],i_Booster)>0),1,""),"") ->  | H47: 498 | I47: 5 | J47: 0 | K47: MICRO | L47: 0 | M47: 340 | N47: Stop | STD | O47: =IFERROR(IF(ISBLANK(N47),"",IF(FIND(N47,INDIRECT($N$40))>0,1,0)),0) -> 0 | P47: 142.69 | S47: 10 | T47: Yes | U47: 0 | V47: 0
H48: 480 | I48: 5 | J48: 0 | K48: MICRO | L48: 0 | M48: 340 | N48: Stop | COM | O48: =IFERROR(IF(ISBLANK(N48),"",IF(FIND(N48,INDIRECT($N$40))>0,1,0)),0) -> 0 | P48: 124.95 | S48: 10 | T48: Yes | U48: 0 | V48: 0
H49: 599 | I49: 5 | J49: 0 | K49: SMALL | L49: 0 | M49: 542 | O49: =IF(i_IdlerType="Skyline Pin End 1.5""",1,0) -> 0 | P49: 41.15 | S49: 10 | T49: Yes | U49: =IFERROR(IF(ISBLANK(T49),"",IF(FIND(T49,INDIRECT($T$40))>0,1,0)),0) -> 0 | V49: =IF(AND(R49=1,U49=1),2,IF(AND(R49=0,U49=1),3,0)) -> 0
H50: 636 | I50: 5 | J50: 0 | K50: SMALL | L50: 0 | M50: 542 | N50: Heavy | O50: =IFERROR(IF(ISBLANK(N50),"",IF(FIND(N50,INDIRECT($N$40))>0,1,0)),0) -> 0 | P50: 78.34 | S50: 10 | T50: Yes | U50: =IFERROR(IF(ISBLANK(T50),"",IF(FIND(T50,INDIRECT($T$40))>0,1,0)),0) -> 0 | V50: =IF(AND(R50=1,U50=1),2,IF(AND(R50=0,U50=1),3,0)) -> 0
H51: 700 | I51: 5 | J51: 0 | K51: SMALL | L51: 0 | M51: 542 | N51: Stop | STD | O51: =IFERROR(IF(ISBLANK(N51),"",IF(FIND(N51,INDIRECT($N$40))>0,1,0)),0) -> 0 | P51: 142.69 | S51: 10 | T51: Yes | U51: 0 | V51: 0
H52: 682 | I52: 5 | J52: 0 | K52: SMALL | L52: 0 | M52: 542 | N52: Stop | COM | O52: =IFERROR(IF(ISBLANK(N52),"",IF(FIND(N52,INDIRECT($N$40))>0,1,0)),0) -> 0 | P52: 124.95 | S52: 10 | T52: Yes | U52: 0 | V52: 0
H53: 599 | I53: 5 | J53: 0 | K53: LIGHT | L53: 0 | M53: 542 | O53: =IF(i_IdlerType="Skyline Pin End 1.5""",1,0) -> 0 | P53: 41.15 | S53: 10 | T53: Yes | U53: 0 | V53: 0
H54: 636 | I54: 5 | J54: =L54*O54 -> 0 | K54: LIGHT | L54: 0 | M54: 542 | N54: Heavy | O54: =IFERROR(IF(ISBLANK(N54),"",IF(FIND(N54,INDIRECT($N$40))>0,1,0)),0) -> 0 | P54: 78.34 | S54: 10 | T54: Yes | U54: 0 | V54: 0
B55: T_ConvertTube | H55: 700 | I55: 5 | J55: 0 | K55: LIGHT | L55: 0 | M55: 542 | N55: Stop | STD | O55: =IFERROR(IF(ISBLANK(N55),"",IF(FIND(N55,INDIRECT($N$40))>0,1,0)),0) -> 0 | P55: 142.69 | S55: 10 | T55: Yes | U55: 0 | V55: 0
B56: Input | C56: Output | H56: 682 | I56: 5 | J56: 0 | K56: LIGHT | L56: 0 | M56: 542 | N56: Stop | COM | O56: =IFERROR(IF(ISBLANK(N56),"",IF(FIND(N56,INDIRECT($N$40))>0,1,0)),0) -> 0 | P56: 124.95 | S56: 10 | T56: Yes | U56: 0 | V56: 0
H57: 909 | I57: 5 | J57: 0 | K57: MEDIUM | L57: 0 | M57: 852 | O57: =IF(i_IdlerType="Skyline Pin End 1.5""",1,0) -> 0 | P57: 41.15 | S57: 10 | T57: Yes | U57: 0 | V57: 0
H58: 946 | I58: 5 | J58: 0 | K58: MEDIUM | L58: 0 | M58: 852 | N58: Heavy | O58: =IFERROR(IF(ISBLANK(N58),"",IF(FIND(N58,INDIRECT($N$40))>0,1,0)),0) -> 0 | P58: 78.34 | S58: 10 | T58: Yes | U58: 0 | V58: 0
H59: 1010 | I59: 5 | J59: 0 | K59: MEDIUM | L59: 0 | M59: 852 | N59: Stop | STD | O59: =IFERROR(IF(ISBLANK(N59),"",IF(FIND(N59,INDIRECT($N$40))>0,1,0)),0) -> 0 | P59: 142.69 | S59: 10 | T59: Yes | U59: 0 | V59: 0
H60: 992 | I60: 5 | J60: 0 | K60: MEDIUM | L60: 0 | M60: 852 | N60: Stop | COM | O60: =IFERROR(IF(ISBLANK(N60),"",IF(FIND(N60,INDIRECT($N$40))>0,1,0)),0) -> 0 | P60: 124.95 | S60: 10 | T60: Yes | U60: 0 | V60: 0
H61: 1009 | I61: 5 | J61: 0 | K61: HEAVY | L61: 0 | M61: 952 | O61: =IF(i_IdlerType="Skyline Pin End 1.5""",1,0) -> 0 | P61: 41.15 | S61: 10 | T61: Yes | U61: 0 | V61: 0
B62: T_ConvertBooster | H62: 1046 | I62: 5 | J62: 0 | K62: HEAVY | L62: 0 | M62: 952 | N62: Heavy | O62: =IFERROR(IF(ISBLANK(N62),"",IF(FIND(N62,INDIRECT($N$40))>0,1,0)),0) -> 0 | P62: 78.34 | S62: 10 | T62: Yes | U62: 0 | V62: 0
B63: ID | C63: D_Show | D63: D_Booster | H63: 1110 | I63: 5 | J63: 0 | K63: HEAVY | L63: 0 | M63: 952 | N63: Stop | STD | O63: =IFERROR(IF(ISBLANK(N63),"",IF(FIND(N63,INDIRECT($N$40))>0,1,0)),0) -> 0 | P63: 142.69 | S63: 10 | T63: Yes | U63: 0 | V63: 0
H64: 1092 | I64: 5 | J64: 0 | K64: HEAVY | L64: 0 | M64: 952 | N64: Stop | COM | O64: =IFERROR(IF(ISBLANK(N64),"",IF(FIND(N64,INDIRECT($N$40))>0,1,0)),0) -> 0 | P64: 124.95 | S64: 10 | T64: Yes | U64: 0 | V64: 0
B74: T_ConvertSystemType
B75: Input | C75: Output
B76: Zipscreen | C76: _Zipscreen_
B93: SLB660 | E93: IDLER | F93: SLB660
B94: 4.57 | C94: 952 | D94: 5 | E94: 41.58 | F94: 4.57 | G94: =SUM(B94:F94) -> 1007.72
B95: 4.57 | C95: =C94 -> 952 | D95: 5 | E95: 78.34 | F95: 4.57 | G95: =SUM(B95:F95) -> 1044.48
B96: 4.57 | C96: =C94 -> 952 | D96: 5 | E96: 142.69 | F96: 4.57 | G96: 1108.83
B97: 4.57 | C97: =C94 -> 952 | D97: 5 | E97: 124.95 | F97: 4.57 | G97: 1091.09
B99: LX Skyline
B100: 4.89 | C100: =(B100-B94)*2 -> 0.64
B102: HEAVY | C102: 952
B103: LIGHT | C103: 542
B104: MED | C104: 852
B105: MINI | C105: 340
B108: STD 1.5" | C108: 41.15
B109: HD 1.5" | C109: 78.34
B110: Universal Limiter | C110: 142.69
B111: Short Limiter | C111: 124.95

Sheet Calc_Torque (hidden)
B4: Fabric Density | C4: 0.39 | D4: kg/m² | F4: Total Fabric Length | G4: =IF(C17="Yes",C7+PI()*C8/1000,C7) -> 4.135873882 | H4: m | L4: mm | M4: Nm | O4: Nm
B5: Fabric Thickness | C5: 0.6 | D5: mm | F5: Fabric mass per metre of drop | G5: =C6*C4 -> 1.56 | H5: kg/m | L5: Diameter | M5: Holding Capacity | N5: Gear Ratio | O5: Friction
B6: Width | C6: 4 | D6: m | F6: Blind mass per metre of width | G6: =C10+C11 -> 0.29 | H6: kg/m | K6: RB09 | L6: 46 | M6: 1 | N6: 1 | O6: 0.2
B7: Drop | C7: 4 | D7: m | F7: TOTAL Fabric + Weight Bar mass | G7: =((C4*G4)+G6)*C6*g -> 74.67335954 | H7: N
B8: Tube OD | C8: 43.25 | D8: mm | G8: =G7/g -> 7.611963256 | H8: kg
B9: Tube Mass | C9: 0.41 | D9: kg/m | F9: Tube Rotations | G9: =(-C8+SQRT(C8^2+4*C5*C7*1000/PI()))/(2*C5) -> 22.44822685 | H9: Turns | L9: mm | M9: kg/m | N9: (mm⁴) | O9: (Nm²)
B10: Weight Bar Mass | C10: 0.29 | D10: kg/m | F10: TOTAL Fabric + wb + tube mass | G10: =((C4*G4)+G6+C9)*C6*g -> 90.76175954 | H10: N | L10: OD | M10: Mass/m | N10: I_min | O10: EI
B11: Ballast Mass | C11: 0 | D11: kg/m | G11: =G10/g -> 9.251963256 | H11: kg | K11: S45 LIGHT | L11: 43.25 | M11: 0.41 | N11: 33442 | O11: 2274
B12: Booster | C12: 0 | D12: Nm | G12: =CONVERT(G11,"kg","lbm") -> 20.39708749 | H12: lbs
B13: Control Capacity | C13: 1 | D13: Nm | F13: Drop (function of # turns) | G13: =G9*PI()*C8+PI()*C5*G9^2 -> 4000 | H13: mm
F14: Control Capacity | G14: =ROUND(((C13+C12)/((C8/2/1000)))/g,2) -> 4.71 | H14: kg | L14: (mm²) | M14: kg/m | N14: (mm⁴) | O14: (mm⁴) | P14: (Nm²)
F15: Friction | L15: CSA | M15: Mass/m | N15: I_y | O15: I_x | P15: EI
F16: Friction additive | H16: Nm | K16: D30 | L16: 107 | M16: 0.306 | N16: 9647 | O16: 2486 | P16: 656
B17: Pre-wrap | C17: Yes | F17: T_Max | H17: Nm
B19: Max Roll Diameter | C19: 105 | D19: mm | M19: kg/m
B20: Max Area | C20: 50 | D20: m² | M20: Mass/m
B21: Link System Capacity | C21: 3 | D21: Nm | K21: BALLAST | M21: 0.97
M24: T_Max
M25: Nm
K26: BOOSTER | M26: 0

Sheet Ctrl_Limitations (hidden)
D2: Does | F2: Apply to
Y3: Enter DEPENDENCIES | Z3: SELECTION OPTIONS | AA3: CONFIGURATIONS
Z4: =MAX(AA4:AP4) -> 1 | AA4: 1 | AB4: =SUM(COUNTIF(AB5:AB19,$Y$5:$Y$19)) -> 0 | AC4: =SUM(COUNTIF(AC5:AC19,$Y$5:$Y$19)) -> 0 | AD4: =SUM(COUNTIF(AD5:AD19,$Y$5:$Y$19)) -> 0 | AE4: =SUM(COUNTIF(AE5:AE19,$Y$5:$Y$19)) -> 0 | AF4: =SUM(COUNTIF(AF5:AF19,$Y$5:$Y$19)) -> 0 | AG4: =SUM(COUNTIF(AG5:AG19,$Y$5:$Y$19)) -> 0 | AH4: =SUM(COUNTIF(AH5:AH19,$Y$5:$Y$19)) -> 0 | AI4: =SUM(COUNTIF(AI5:AI19,$Y$5:$Y$19)) -> 0 | AJ4: =SUM(COUNTIF(AJ5:AJ19,$Y$5:$Y$19)) -> 0 | AK4: =SUM(COUNTIF(AK5:AK19,$Y$5:$Y$19)) -> 0 | AL4: =SUM(COUNTIF(AL5:AL19,$Y$5:$Y$19)) -> 0 | AM4: =SUM(COUNTIF(AM5:AM19,$Y$5:$Y$19)) -> 0 | AN4: =SUM(COUNTIF(AN5:AN19,$Y$5:$Y$19)) -> 0 | AO4: =SUM(COUNTIF(AO5:AO19,$Y$5:$Y$19)) -> 0 | AP4: =SUM(COUNTIF(AP5:AP19,$Y$5:$Y$19)) -> 0
Y5: =INDIRECT("i_"&SUBSTITUTE($Z5," ","")) -> 0 | Z5: System Type
Y10: =INDIRECT("i_"&SUBSTITUTE($Z10," ","")) -> 0 | Z10: Installation Type
Y24: Type | Z24: Limitation Value | AA24: =IF(AA4<>$Z$4,0,1) -> 1 | AB24: 0 | AC24: 0 | AD24: 0 | AE24: 0 | AF24: 0 | AG24: 0 | AH24: 0 | AI24: 0 | AJ24: 0 | AK24: 0 | AL24: 0 | AM24: 0 | AN24: 0 | AO24: 0 | AP24: 0
Y25: Width_Max | Z25: =INDEX(AA25:AP25,0,MATCH(1,$AA$24:$AP$24,0)) -> 3000 | AA25: =Ctrl_Recommendations!E4 -> 3000
Y26: Drop_Max | Z26: 3000 | AA26: =Ctrl_Recommendations!E5 -> 3000
Y27: Area_Max | Z27: 0
Y28: Drop_Max_hard | Z28: 3000 | AA28: =AA26 -> 3000
Z29: 0
Z30: 0
Z31: 0
Z32: 0
Z33: 0
D34: =COUNTA($D$44:$D$69) -> 16 | Z34: 0
Z35: 0
Z36: 0
W37: weight bar, | Z37: 0
W38: tubes?
R41: Lookup | Y41: Recommendations?
R42: Deduction
D43: =Y25 -> Width_Max | E43: =Y26 -> Drop_Max | F43: =Y27 -> Area_Max | G43: =Y28 -> Drop_Max_hard | H43: =Y29 -> 0 | I43: =Y30 -> 0 | J43: =Y31 -> 0 | K43: =Y32 -> 0 | L43: =Y33 -> 0 | M43: =Y34 -> 0 | N43: =Y35 -> 0 | O43: =Y36 -> 0 | P43: =Y37 -> 0 | R43: Modifiers | T43: QTY | U43: ON/OFF | W43: Comments | AA43: =IF(AA4<>$Z$4,0,1) -> 1 | AB43: 0 | AC43: 0 | AD43: 0 | AE43: 0 | AF43: 0 | AG43: 0 | AH43: 0 | AI43: 0 | AJ43: 0 | AK43: 0 | AL43: 0 | AM43: 0 | AN43: 0 | AO43: 0 | AP43: 0
D44: 0 | E44: 0 | F44: 1 | G44: 0 | H44: 0 | I44: 0 | J44: 0 | K44: 0 | L44: 0 | M44: 0 | N44: 0 | O44: 0 | P44: 0 | R44: =INDEX($AA$44:$AP$59,0,MATCH(1,$AA$43:$AP$43,0)) -> 0 | T44: 1 | U44: =IFERROR(IF(ISBLANK(Y44),"",IF(FIND(Z44,INDIRECT("i_"&$Y44))>0,1,0)),0) -> 0 | Y44: Tube | Z44: AL HD
D45: 0 | E45: 1 | F45: 0 | G45: 0 | H45: 0 | I45: 0 | J45: 0 | K45: 0 | L45: 0 | M45: 0 | N45: 0 | O45: 0 | P45: 0 | R45: 0 | T45: 1 | U45: 0 | W45: if box120 cover | Y45: InstallationType | Z45: Cover
D46: 0 | E46: 1 | F46: 0 | G46: 0 | H46: 0 | I46: 0 | J46: 0 | K46: 0 | L46: 0 | M46: 0 | N46: 0 | O46: 0 | P46: 0 | R46: 0 | T46: 1 | U46: 0 | Y46: InstallationType | Z46: Box 190
D47: 0 | E47: 1 | F47: 0 | G47: 0 | H47: 0 | I47: 0 | J47: 0 | K47: 0 | L47: 0 | M47: 0 | N47: 0 | O47: 0 | P47: 0 | R47: 0 | T47: 1 | U47: 0 | Y47: InstallationType | Z47: Box 190
D48: 0 | E48: 0 | F48: 0 | G48: 0 | H48: 0 | I48: 0 | J48: 0 | K48: 0 | L48: 0 | M48: 0 | N48: 0 | O48: 0 | P48: 0 | R48: 0 | T48: 1
D49: 0 | E49: 0 | F49: 0 | G49: 0 | H49: 0 | I49: 0 | J49: 0 | K49: 0 | L49: 0 | M49: 0 | N49: 0 | O49: 0 | P49: 0 | R49: 0 | T49: 1
D50: 0 | E50: 0 | F50: 0 | G50: 0 | H50: 0 | I50: 0 | J50: 0 | K50: 0 | L50: 0 | M50: 0 | N50: 0 | O50: 0 | P50: 0 | R50: 0 | T50: 1
D51: 0 | E51: 0 | F51: 0 | G51: 0 | H51: 0 | I51: 0 | J51: 0 | K51: 0 | L51: 0 | M51: 0 | N51: 0 | O51: 0 | P51: 0 | R51: 0 | T51: 1
D52: 0 | E52: 0 | F52: 0 | G52: 0 | H52: 0 | I52: 0 | J52: 0 | K52: 0 | L52: 0 | M52: 0 | N52: 0 | O52: 0 | P52: 0 | R52: 0 | T52: 1
D53: 0 | E53: 0 | F53: 0 | G53: 0 | H53: 0 | I53: 0 | J53: 0 | K53: 0 | L53: 0 | M53: 0 | N53: 0 | O53: 0 | P53: 0 | R53: 0 | T53: 1
D54: 0 | E54: 0 | F54: 0 | G54: 0 | H54: 0 | I54: 0 | J54: 0 | K54: 0 | L54: 0 | M54: 0 | N54: 0 | O54: 0 | P54: 0 | R54: 0 | T54: 1
D55: 0 | E55: 0 | F55: 0 | G55: 0 | H55: 0 | I55: 0 | J55: 0 | K55: 0 | L55: 0 | M55: 0 | N55: 0 | O55: 0 | P55: 0 | R55: 0 | T55: 1
D56: 0 | E56: 0 | F56: 0 | G56: 0 | H56: 0 | I56: 0 | J56: 0 | K56: 0 | L56: 0 | M56: 0 | N56: 0 | O56: 0 | P56: 0 | R56: 0 | T56: 1
D57: 0 | E57: 0 | F57: 0 | G57: 0 | H57: 0 | I57: 0 | J57: 0 | K57: 0 | L57: 0 | M57: 0 | N57: 0 | O57: 0 | P57: 0 | R57: 0 | T57: 1
D58: 0 | E58: 0 | F58: 0 | G58: 0 | H58: 0 | I58: 0 | J58: 0 | K58: 0 | L58: 0 | M58: 0 | N58: 0 | O58: 0 | P58: 0 | R58: 0 | T58: 1
D59: 0 | E59: 0 | F59: 0 | G59: 0 | H59: 0 | I59: 0 | J59: 0 | K59: 0 | L59: 0 | M59: 0 | N59: 0 | O59: 0 | P59: 0 | R59: 0 | T59: 1
Y63: Type | Z63: Limit | AA63: =IF(AA4<>$Z$4,0,1) -> 1 | AB63: 0 | AC63: 0 | AD63: 0 | AE63: 0 | AF63: 0 | AG63: 0 | AH63: 0 | AI63: 0 | AJ63: 0 | AK63: 0 | AL63: 0 | AM63: 0 | AN63: 0 | AO63: 0 | AP63: 0
Y64: =Y25 -> Width_Max | Z64: =INDEX(AA64:AP64,0,MATCH(1,$AA$24:$AP$24,0)) -> 3000 | AA64: =IFERROR(IF(AA$63=0,"",AA25+SUMPRODUCT($U$44:$U$59,$T$44:$T$59,$R$44:$R$59,OFFSET($D$43,1,MATCH($Y64,$D$43:$P$43,0)-1,$D$34,1))),"") -> 3000
Y65: Drop_Max | Z65: =INDEX(AA65:AP65,0,MATCH(1,$AA$24:$AP$24,0)) -> 3000 | AA65: =IFERROR(IF(AA$63=0,"",AA26+SUMPRODUCT($U$44:$U$59,$T$44:$T$59,$R$44:$R$59,OFFSET($D$43,1,MATCH($Y65,$D$43:$P$43,0)-1,$D$34,1))),"") -> 3000
Y66: Area_Max | Z66: =INDEX(AA66:AP66,0,MATCH(1,$AA$24:$AP$24,0)) -> 0 | AA66: =IFERROR(IF(AA$63=0,"",AA27+SUMPRODUCT($U$44:$U$59,$T$44:$T$59,$R$44:$R$59,OFFSET($D$43,1,MATCH($Y66,$D$43:$P$43,0)-1,$D$34,1))),"") -> 0
Y67: Drop_Max_hard | Z67: =INDEX(AA67:AP67,0,MATCH(1,$AA$24:$AP$24,0)) -> 3000 | AA67: =IFERROR(IF(AA$63=0,"",AA28+SUMPRODUCT($U$44:$U$59,$T$44:$T$59,$R$44:$R$59,OFFSET($D$43,1,MATCH($Y67,$D$43:$P$43,0)-1,$D$34,1))),"") -> 3000
Y68: 0 | Z68: =INDEX(AA68:AP68,0,MATCH(1,$AA$24:$AP$24,0)) -> 0 | AA68: =IFERROR(IF(AA$63=0,"",AA29+SUMPRODUCT($U$44:$U$59,$T$44:$T$59,$R$44:$R$59,OFFSET($D$43,1,MATCH($Y68,$D$43:$P$43,0)-1,$D$34,1))),"") -> 0
Y69: 0 | Z69: =INDEX(AA69:AP69,0,MATCH(1,$AA$24:$AP$24,0)) -> 0 | AA69: =IFERROR(IF(AA$63=0,"",AA30+SUMPRODUCT($U$44:$U$59,$T$44:$T$59,$R$44:$R$59,OFFSET($D$43,1,MATCH($Y69,$D$43:$P$43,0)-1,$D$34,1))),"") -> 0
Y70: 0 | Z70: =INDEX(AA70:AP70,0,MATCH(1,$AA$24:$AP$24,0)) -> 0 | AA70: =IFERROR(IF(AA$63=0,"",AA31+SUMPRODUCT($U$44:$U$59,$T$44:$T$59,$R$44:$R$59,OFFSET($D$43,1,MATCH($Y70,$D$43:$P$43,0)-1,$D$34,1))),"") -> 0
Y71: 0 | Z71: =INDEX(AA71:AP71,0,MATCH(1,$AA$24:$AP$24,0)) -> 0 | AA71: =IFERROR(IF(AA$63=0,"",AA32+SUMPRODUCT($U$44:$U$59,$T$44:$T$59,$R$44:$R$59,OFFSET($D$43,1,MATCH($Y71,$D$43:$P$43,0)-1,$D$34,1))),"") -> 0
Y72: 0 | Z72: =INDEX(AA72:AP72,0,MATCH(1,$AA$24:$AP$24,0)) -> 0 | AA72: =IFERROR(IF(AA$63=0,"",AA33+SUMPRODUCT($U$44:$U$59,$T$44:$T$59,$R$44:$R$59,OFFSET($D$43,1,MATCH($Y72,$D$43:$P$43,0)-1,$D$34,1))),"") -> 0
Y73: 0 | Z73: =INDEX(AA73:AP73,0,MATCH(1,$AA$24:$AP$24,0)) -> 0 | AA73: =IFERROR(IF(AA$63=0,"",AA34+SUMPRODUCT($U$44:$U$59,$T$44:$T$59,$R$44:$R$59,OFFSET($D$43,1,MATCH($Y73,$D$43:$P$43,0)-1,$D$34,1))),"") -> 0
Y74: =Y36 -> 0 | Z74: =INDEX(AA74:AP74,0,MATCH(1,$AA$24:$AP$24,0)) -> 0 | AA74: =IFERROR(IF(AA$63=0,"",AA36+SUMPRODUCT($U$44:$U$59,$T$44:$T$59,$R$44:$R$59,OFFSET($D$43,1,MATCH($Y74,$D$43:$P$43,0)-1,$D$34,1))),"") -> 0
Y75: =Y37 -> 0 | Z75: =INDEX(AA75:AP75,0,MATCH(1,$AA$24:$AP$24,0)) -> 0 | AA75: =IFERROR(IF(AA$63=0,"",AA37+SUMPRODUCT($U$44:$U$59,$T$44:$T$59,$R$44:$R$59,OFFSET($D$43,1,MATCH($Y75,$D$43:$P$43,0)-1,$D$34,1))),"") -> 0
Y76: =Y38 -> 0

Sheet PriceList_AU_hide (hidden)
B1: HIDE | D1: HIDE | E1: HIDE | F1: HIDE
B2: No. | C2: Description | D2: Colour Description | E2: Base Unit of Measure | F2: AU | J2: Last Update: | K2: 2023-11-13
B3: AW91-1401-338000 | C3: Idler Housing - 78mm tube | D3: Silver Grey | E3: PIECE | F3: 5.44
B4: AW91-1501-050000 | C4: Fabric Brush T Slot Fit - 7 x 4.8mm | 350m Roll | D4: Black, Satin | E4: METRE | F4: 1.59
B5: MG10-6001-010909 | C5: Idler Spring - O/D 7x43 - 0.71 GALV. wire (RB10) | D5: S/S 304, Natural | E5: PIECE | F5: 0.78
B6: MG10-6001-025908 | C6: Idler Shaft 8 x 8 x 45mm (RB10) | D6: Silver ZINC Plated | E6: PIECE | F6: 0.89
B7: MG10-6001-029908 | C7: Idler Shaft 8 x 8 x 45mm (RB10) - External Plating | D7: Silver CHROME Plated | E7: PIECE | F7: 0
B8: MG10-6001-050920 | C8: Idler Bracket Adaptor | Universal | D8: Black, Satin | E8: PIECE | F8: 1.66
B9: MG10-6001-069910 | C9: Idler Spindle (RB10) | D9: Pure White | E9: PIECE | F9: 0.85
B10: MG56-0127-343904 | C10: Idler Hex Liner for Bearing - 17OD Capped Bore | D10: Gun Grey | E10: PIECE | F10: 0.43
B11: MK02-RB12-069007 | C11: EASY SPRING ULTRA Sample Kit | D11: Pure White | E11: KIT | F11: 62.35
B12: MK02-RB12-069008 | C12: EASY SPRING ULTRA Sample Kit – S45 - White | D12: Pure White | E12: KIT | F12: 0
B13: MK02-RB12-069009 | C13: EASY SPRING ULTRA Sample Kit – 1.5” - White | D13: Pure White | E13: KIT | F13: 63.48
B14: MK02-RB12-069010 | C14: Easy Spring Air Accessories Kit (AU) | E14: KIT | F14: 12
B15: MK02-RB91-1239069 | C15: Fabric wrap/Bottom up hem bar sample 400x400mm | D15: Pure White | E15: KIT | F15: 0
B16: MW91-1301-025903 | C16: Idler Pin | D16: Silver ZINC Plated | E16: PIECE | F16: 0
B17: MZ56-0127-025000 | C17: Idler Bearing HOUSING for ACM Boxes with Uni-Sys I | D17: Silver ZINC Plated | E17: PIECE | F17: 4.02
B18: RB08-4141-050040 | C18: AX Bracket Cover Caps - 40mm | S40/45 | D18: Black, Satin | E18: PAIR | F18: 0.79
B19: RB08-4151-050040 | C19: LX/VX Bracket Cover Caps - 40mm | S40/S45 | D19: Black, Satin | E19: PAIR | F19: 0.85
B20: RB08-4151-050055 | C20: LX/VX Bracket Cover Caps - 55mm | S40/S45 | D20: Black, Satin | E20: PAIR | F20: 1
B21: RB08-4151-069040 | C21: LX/VX Bracket Cover Caps - 40mm | S40/S45 | D21: Pure White | E21: PAIR | F21: 0.85
B22: RB08-4151-069055 | C22: LX/VX Bracket Cover Caps - 55mm | S40/S45 | D22: Pure White | E22: PAIR | F22: 1
B23: RB08-4151-269040 | C23: LX/VX Bracket Cover Caps - 40mm | S40/S45 | D23: Sandstone | E23: PAIR | F23: 0.85
B24: RB08-4151-269055 | C24: LX/VX Bracket Cover Caps - 55mm | S40/S45 | D24: Sandstone | E24: PAIR | F24: 1
B25: RB08-4151-283040 | C25: LX/VX Bracket Cover Caps - 40mm | S40/S45 | D25: Barley | E25: PAIR | F25: 0.85
B26: RB08-4151-283055 | C26: LX/VX Bracket Cover Caps - 55mm | S40/S45 | D26: Barley | E26: PAIR | F26: 1
B27: RB08-4151-338040 | C27: LX/VX Bracket Cover Caps - 40mm | S40/S45 | D27: Silver Grey | E27: PAIR | F27: 0.85
B28: RB08-4151-338055 | C28: LX/VX Bracket Cover Caps - 55mm | S40/S45 | D28: Silver Grey | E28: PAIR | F28: 1
B29: RB12-3301-069138 | C29: Easy Spring Wand Control | LH (Blue Collar) | D29: Pure White | E29: PIECE | F29: 22.25
B30: RB12-3301-069238 | C30: Easy Spring Wand Control | RH (Red Collar) | D30: Pure White | E30: PIECE | F30: 22.25
B31: RB12-3511-069090 | C31: Easy Spring Wand Control+Wand | LH (Blue) Wht | D31: Pure White | E31: PIECE | F31: 0
B32: RB12-3521-069090 | C32: Easy Spring Wand Control+Wand | RH (Red) Wht | D32: Pure White | E32: PIECE | F32: 0
B33: RB12-3835-503038 | C33: Easy Spring Air - Tension Lock | D33: Orange | E33: PIECE | F33: 0.99
B34: RB12-3836-025000 | C34: Easy Spring Air – PreTension Tool (5mm Hex) | D34: Silver ZINC Plated | E34: PIECE | F34: 1.29
B35: RB12-3837-025000 | C35: Easy Spring Air – Spanner Tool | D35: Silver ZINC Plated | E35: PIECE | F35: 1.99
B36: RB12-4528-069045 | C36: Easy Spring Air - MICRO w Adjust - S45 LH | D36: Pure White | E36: PIECE | F36: 28.2
B37: RB12-4529-069045 | C37: Easy Spring Air - SMALL w Adjust - S45 LH | D37: Pure White | E37: PIECE | F37: 33.1
B38: RB12-4531-069045 | C38: Easy Spring Air - MINI w Adjust - S45 LH | D38: Pure White | E38: PIECE | F38: 28.2
B39: RB12-4532-069045 | C39: Easy Spring Air - LIGHT w Adjust - S45 LH | D39: Pure White | E39: PIECE | F39: 33.1
B40: RB12-4533-069045 | C40: Easy Spring Air - MED w Adjust - S45 LH | D40: Pure White | E40: PIECE | F40: 39.4
B41: RB12-4534-069045 | C41: Easy Spring Air - HEAVY w Adjust - S45 LH | D41: Pure White | E41: PIECE | F41: 42.1
B42: RB12-6101-050038 | C42: Limiter – Single Stop | Universal 1.5" (38mm) V2 | D42: Black, Satin | E42: PIECE | F42: 8.33
B43: RB12-6101-050045 | C43: Limiter – Single Stop | Universal S45 V2 | D43: Black, Satin | E43: PIECE | F43: 8.33
B44: RB12-6101-069038 | C44: Limiter – Single Stop | Universal 1.5" (38mm) V2 | D44: Pure White | E44: PIECE | F44: 8.33
B45: RB12-6101-069045 | C45: Limiter – Single Stop | Universal S45 V2 | D45: Pure White | E45: PIECE | F45: 8.33
B46: RB12-6101-338038 | C46: Limiter – Single Stop | Universal 1.5" (38mm) V2 | D46: Silver Grey | E46: PIECE | F46: 8.33
B47: RB12-6101-338045 | C47: Limiter – Single Stop | Universal S45 V2 | D47: Silver Grey | E47: PIECE | F47: 8.33
B48: RB12-6102-050038 | C48: Limiter – Single Stop | Universal COMPACT 38mm V2 | D48: Black, Satin | E48: PIECE | F48: 0
B49: RB12-6102-050045 | C49: Limiter – Single Stop | Universal COMPACT S45 V2 | D49: Black, Satin | E49: PIECE | F49: 8.22
B50: RB12-6102-069038 | C50: Limiter – Single Stop | Universal COMPACT 38mm V2 | D50: Pure White | E50: PIECE | F50: 0
B51: RB12-6102-069045 | C51: Limiter – Single Stop | Universal COMPACT S45 V2 | D51: Pure White | E51: PIECE | F51: 8.22
B52: RB12-6102-338038 | C52: Limiter – Single Stop | Universal COMPACT 38mm V2 | D52: Silver Grey | E52: PIECE | F52: 0
B53: RB12-6102-338045 | C53: Limiter – Single Stop | Universal COMPACT S45 V2 | D53: Silver Grey | E53: PIECE | F53: 8.22
B54: RB12-9001-050090 | C54: Easy Spring Wand | Universal - 36" (90cm) | D54: Black, Satin | E54: PIECE | F54: 2.38
B55: RB12-9001-069090 | C55: Easy Spring Wand | Universal - 36" (90cm) | D55: Pure White | E55: PIECE | F55: 2.38
B56: RB91-1232-000580 | C56: D30 SILENT Alum. Bottom Rail | 14 x 31mm x 5.8m | D56: Mill Finish | E56: LENGTH | F56: 37.41
B57: RB91-1232-020580 | C57: D30 SILENT Alum. Bottom Rail | 14 x 31mm x 5.8m | D57: Anodised 15 | E57: LENGTH | F57: 38.91
B58: RB91-1232-050580 | C58: D30 SILENT Alum. Bottom Rail | 14 x 31mm x 5.8m | D58: Black, Satin | E58: LENGTH | F58: 38.91
B59: RB91-1232-069580 | C59: D30 SILENT Alum. Bottom Rail | 14 x 31mm x 5.8m | D59: Pure White | E59: LENGTH | F59: 38.91
B60: RB91-1232-082580 | C60: D30 SILENT Alum. Bottom Rail | 14 x 31mm x 5.8m | D60: Metro. Bronze Pearl | E60: LENGTH | F60: 38.91
B61: RB91-1232-150580 | C61: D30 SILENT Alum. Bottom Rail | 14 x 31mm x 5.8m | D61: Textured Black | E61: LENGTH | F61: 38.91
B62: RB91-1232-169580 | C62: D30 SILENT Alum. Bottom Rail | 14 x 31mm x 5.8m | D62: Textured Pure White | E62: LENGTH | F62: 38.91
B63: RB91-1232-269580 | C63: D30 SILENT Alum. Bottom Rail | 14 x 31mm x 5.8m | D63: Sandstone | E63: LENGTH | F63: 38.91
B64: RB91-1232-280580 | C64: D30 SILENT Alum. Bottom Rail | 14 x 31mm x 5.8m | D64: Bone | E64: LENGTH | F64: 38.91
B65: RB91-1232-283580 | C65: D30 SILENT Alum. Bottom Rail | 14 x 31mm x 5.8m | D65: Barley | E65: LENGTH | F65: 38.91
B66: RB91-1232-297580 | C66: D30 SILENT Alum. Bottom Rail | 14 x 31mm x 5.8m | D66: Canvas Cloth Matt | E66: LENGTH | F66: 0
B67: RB91-1232-428580 | C67: D30 SILENT Alum. Bottom Rail | 14 x 31mm x 5.8m | D67: Dune | E67: LENGTH | F67: 38.91
B68: RB91-2131-050002 | C68: D30 Medium Bottom Rail End Caps | LH & RH | D68: Black, Satin | E68: PAIR | F68: 0.58
B69: RB91-2131-069002 | C69: D30 Medium Bottom Rail End Caps | LH & RH | D69: Pure White | E69: PAIR | F69: 0.58
B70: RB91-2131-082002 | C70: D30 Medium Bottom Rail End Caps | LH & RH | D70: Metro. Bronze Pearl | E70: PAIR | F70: 0.58
B71: RB91-2131-269002 | C71: D30 Medium Bottom Rail End Caps | LH & RH | D71: Sandstone | E71: PAIR | F71: 0.58
B72: RB91-2131-280002 | C72: D30 Medium Bottom Rail End Caps | LH & RH | D72: Bone | E72: PAIR | F72: 0.58
B73: RB91-2131-283002 | C73: D30 Medium Bottom Rail End Caps | LH & RH | D73: Barley | E73: PAIR | F73: 0.58
B74: RB91-2131-338002 | C74: D30 Medium Bottom Rail End Caps | LH & RH | D74: Silver Grey | E74: PAIR | F74: 0.58
B75: RB91-2131-428002 | C75: D30 Medium Bottom Rail End Caps | LH & RH | D75: Dune | E75: PAIR | F75: 0.58
B76: RB91-2136-050001 | C76: Fabric Wrap Bottom Rail End Cap | Universal | D76: Black, Satin | E76: PIECE | F76: 0
B77: RB91-2136-069001 | C77: Fabric Wrap Bottom Rail End Cap | Universal | D77: Pure White | E77: PIECE | F77: 0
B78: RB91-2136-338001 | C78: Fabric Wrap Bottom Rail End Cap | Universal | D78: Silver Grey | E78: PIECE | F78: 0
B79: RB91-2336-069000 | C79: Bottom Rail Handle Pull Hook | D79: Pure White | E79: PIECE | F79: 0
B80: RB91-2536-069000 | C80: Bottom Rail Handle Pull Hook 60cm | D80: Pure White | E80: PIECE | F80: 8.8
B81: RB92-0901-001100 | C81: 9mm ACM Flat Spline | 100m Roll | D81: Clear | E81: ROLL | F81: 117.84
B82: RB92-1501-001100 | C82: 15mm ACM Flat Spline | 100 Lm Roll | D82: Clear | E82: ROLL | F82: 167.82
B83: RB92-1502-001075 | C83: 15mm ACM Flat Spline - D/S MP-HR TAPE ∙ 75 Lm Roll | D83: Clear | E83: ROLL | F83: 159.49
B84: RB92-1503-001075 | C84: 15mm ACM Flat Spline D/S MP-HR TAPE B/S 75 Lm Roll | D84: Clear | E84: ROLL | F84: 234.49
B85: RB93-0443-000302 | C85: S45 / LIGHT T-SPLINE Alum. Tube | 43mm x 3.0m | D85: Mill Finish | E85: LENGTH | F85: 0
B86: RB93-0443-000580 | C86: S45 / LIGHT T-SPLINE Alum. Tube | 43mm x 5.8m | D86: Mill Finish | E86: LENGTH | F86: 48.63
B87: RB93-0443-000582 | C87: S45 / LIGHT T-SPLINE Alum. Tube | 43mm x 5.8m | D87: Mill Finish | E87: LENGTH | F87: 48.63
B88: RB93-0443-00058C | C88: S45 / LIGHT T-SPLINE Alum. Tube | 43mm x 5.8m | D88: Mill Finish | E88: LENGTH | F88: 0
B89: RB93-0444-000580 | C89: S45 / STD T-SPLINE Alum. Tube | 44mm x 5.8m | D89: Mill Finish | E89: LENGTH | F89: 64.84
B90: RB93-0444-000582 | C90: S45 / STD T-SPLINE Alum. Tube | 44mm x 5.8m | D90: Mill Finish | E90: LENGTH | F90: 64.84
B91: RB93-0444-00058C | C91: S45 / STD T-SPLINE Alum. Tube | 44mm x 5.8m | D91: Mill Finish | E91: LENGTH | F91: 0
B92: RB93-0444-066580 | C92: S45 / STD T-SPLINE Alum. Tube | 44mm x 5.8m | D92: Off White | E92: LENGTH | F92: 91.03
B93: RB93-0449-000580 | C93: S45 / HD T-SPLINE Alum. Tube | 49mm x 5.8m | D93: Mill Finish | E93: LENGTH | F93: 112.23
B94: RB93-0449-000582 | C94: S45 / HD T-SPLINE Alum. Tube | 49mm x 5.8m | D94: Mill Finish | E94: LENGTH | F94: 112.23
B95: RB93-0449-00058C | C95: S45 / HD T-SPLINE Alum. Tube | 49mm x 5.8m | D95: Mill Finish | E95: LENGTH | F95: 0
B96: RB93-6443-000580 | C96: S45 / LGT T-SPLINE Alum. Tube | 43mm x 5.8m | TAPED | D96: Mill Finish | E96: LENGTH | F96: 57.61
B97: RB93-6443-000582 | C97: S45 / LGT T-SPLINE Alum. Tube | 43mm x 5.8m | TAPED | D97: Mill Finish | E97: LENGTH | F97: 57.61
B98: RB93-6443-00058C | C98: S45 / LGT T-SPLINE Alum. Tube | 43mm x 5.8m | TAPED | D98: Mill Finish | E98: LENGTH | F98: 57.61
B99: RB93-6444-000580 | C99: S45 / STD T-SPLINE Alum. Tube | 44mm x 5.8m |TAPED | D99: Mill Finish | E99: LENGTH | F99: 74.82
B100: RB93-6444-000582 | C100: S45 / STD T-SPLINE Alum. Tube | 44mm x 5.8m | TAPED | D100: Mill Finish | E100: LENGTH | F100: 74.82
B101: RB93-6444-00058C | C101: S45 / STD T-SPLINE Alum. Tube | 44mm x 5.8m | TAPED | D101: Mill Finish | E101: LENGTH | F101: 74.82
B102: RB93-6449-000580 | C102: S45 / HD T-SPLINE Alum. Tube | 49mm x 5.8m | TAPED | D102: Mill Finish | E102: LENGTH | F102: 123.45
B103: RB93-6449-000582 | C103: S45 / HD T-SPLINE Alum. Tube | 49mm x 5.8m | TAPED | D103: Mill Finish | E103: LENGTH | F103: 123.45
B104: RB93-6449-00058C | C104: S45 / HD T-SPLINE Alum. Tube | 49mm x 5.8m | TAPED | D104: Mill Finish | E104: LENGTH | F104: 123.45
B105: RC02-0203-001090 | C105: Easy Spring Wand Guide CF90 | RH & LH | D105: Clear | E105: PIECE | F105: 7.74
B106: RE01-0204-050000 | C106: Idler/Spring Adaptor + Screws | D106: Black, Satin | E106: SET | F106: 3.57
B107: RE01-0212-050063 | C107: Idler Housing & Pin Kit | 63mm | D107: Black, Satin | E107: PIECE | F107: 11.91
B108: RE01-0214-050004 | C108: Idler/Spring Adapter MKII | Retainer Clip + Screw | D108: Black, Satin | E108: SET | F108: 1.41
B109: RTEA2T16 | C109: Tube Aluminum 1-1/8 " x 16' Taped | D109: Mill Finish | E109: CASE | F109: 0
B110: RTEA3T16 | C110: Tube Aluminum 1-1/4" x 16' Taped | D110: Mill Finish | E110: CASE | F110: 0
B111: RTEA4T16 | C111: Tube Aluminum 1-1/2" x 16' Taped | D111: Mill Finish | E111: LENGTH | F111: 48.8
B112: RTEA4U12 | C112: Tube Aluminum 1-1/2" x 12' NO TAPE | D112: Mill Finish | E112: LENGTH | F112: 0
B113: RTEA4U16 | C113: Tube Aluminum 1-1/2" x 16' NO TAPE | D113: Mill Finish | E113: LENGTH | F113: 0
B114: RTEA5T16 | C114: Tube Aluminum 2" x 16' Taped | D114: Mill Finish | E114: LENGTH | F114: 70.23
B115: RTEA5U12 | C115: Tube Aluminum 2" x 12' NO TAPE | D115: Mill Finish | E115: LENGTH | F115: 0
B116: RTEASW5U14 | C116: Tube Aluminum 2" x 14' Smooth Wall NO TAPE | D116: Mill Finish | E116: LENGTH | F116: 0
B117: SB91-0011-050500 | C117: Fabric Brush T Slot Fit 5mm x 4.8mm | 500 Lm Roll | D117: Black, Satin | E117: METRE | F117: 0.93
B118: SB91-0011-311500 | C118: Fabric Brush T Slot Fit 5mm x 4.8mm | 500 Lm Roll | D118: Light Grey | E118: METRE | F118: 0.93
B119: SB91-0012-050300 | C119: Fabric Brush T Slot Fit 10mm x 4.8mm | 300 Lm roll | D119: Black, Satin | E119: METRE | F119: 2.51
B120: SB91-0018-050040 | C120: 16mm Bubble Seal | F72 | 40 Lm Rolls | D120: Black, Satin | E120: METRE | F120: 5.67
B121: SB91-0019-050580 | C121: 16mm Bubble Seal | F56 | 5.8 metre Lengths | D121: Black, Satin | E121: LENGTH | F121: 36.28
B122: SB91-0022-050300 | C122: Fabric Brush Round Slot 20mm x 3.3mm | 300m Roll | D122: Black, Satin | E122: METRE | F122: 274.7
B123: SC6750H500 | C123: Brackets screw Hex/Slot 6G x 3/4" (19mm) | D123: Silver ZINC Plated | E123: PIECE | F123: 0
B124: SL01-0306-050040 | C124: LX Skyline Bracket | 40mm projection | D124: Black, Satin | E124: PIECE | F124: 1.92
B125: SL01-0306-069040 | C125: LX Skyline Bracket | 40mm projection | D125: Pure White | E125: PIECE | F125: 1.92
B126: SL01-0306-338040 | C126: LX Skyline Bracket | 40mm projection | D126: Silver Grey | E126: PIECE | F126: 1.92
B127: VB05-0301-025300 | C127: VB05 OVAL Steel Tiltrod 5.00 x 7.5mm x 3mt Length | D127: Silver ZINC Plated | E127: LENGTH | F127: 7.92
B128: VB05-0301-025200 | C128: VB05 OVAL Steel Tiltrod 5.00 x 7.5mm x 2mt Length | D128: Silver ZINC Plated | E128: LENGTH | F128: 5.28
B129: RB91-2332-001000 | C129: D30 Weight Bar Handle | D129: Clear | E129: PIECE | F129: 2.6
B130: RB91-2536-069000 | C130: Internal Pull Stick | D130: Pure White | E130: PIECE | F130: 8.8

Sheet ToDo (hidden)
C3: ToDo
B4: NOW
B12: LATER

Sheet ChangeLog (hidden)
B4: xxx
B5: 0.04 | C5: Added 2" components | F5: =_xlfn.TEXTJOIN("*|",TRUE,_xlfn.UNIQUE(LEFT(L_AllCodes,9))) -> 
C6: Formatting & Headings
C7: Changed Spring names from "Balanced" to "Easy Spring Air - …"
F8: SLB660xx*|SLBCxx*|SL01-0306*|RB08-4151*|EASY SPRI*|RB12-3828*|RB12-3829*|RB12-3831*|RB12-3832*|RB12-3833*|RB12-3834*|RS01-0107*|RB12-4528*|RB12-4529*|RB12-4531*|RB12-4532*|RB12-4533*|RB12-4534*|IDLER*|SLPEV653x*|SLPEHD53x*|RB12-6101*|RB12-6102*|RA2xx*|HEM BAR*|RB91-1232*|RB91-2131*|RB92-1501*|RB92-1502*|RB92-1503*|RB91-1236*|RB91-2136*|RB91-2336*|RB91-2536*|SS91-5350*|RB92-0901*|SB91-0018*|SB91-0019*|SB07-2201*|VB05-0301*|TUBE*|RTEA4T16*|RTEA5T16*|RB93-0443*|RB93-6443*|RB93-0444*|RB93-6444*|RB93-0449*|RB93-6449*|RB12-3835*|RB12-3836*|RB12-3837*
B10: 1.01 | C10: Added AU region,
C11: Added S45 tube options (AU & US configs)
C12: Ballast is always required. (500g/m for all spring sizes)
C13: AU offering STD limiter only (no reference to COM)
B14: 1.02
B15: 1.03 | C15: RB09 & Skyline Opulence Brackets added
C16: Control Cap added to accessories
B17: 1.04 | C17: RB09 Opulence Removed
C18: Pull Stick and Handle added

Sheet Ctrl_SpringData_excl (hidden)
B2: TABLE NOT USED.
E3: =IF(AND(o_Widthmm>D4,o_Widthmm<=E4),1,0) -> 0 | F3: 0 | G3: 0 | H3: 0 | I3: 0 | J3: 0 | K3: 0 | L3: 0 | M3: 0 | N3: 0 | O3: 0 | P3: 0 | Q3: 0 | R3: 0 | S3: 0 | T3: 0 | U3: 0 | V3: 0 | W3: 0 | X3: 0 | Y3: 0
C4: Up to | D4: 400 | E4: 500 | F4: 600 | G4: 700 | H4: 800 | I4: 900 | J4: 1000 | K4: 1100 | L4: 1200 | M4: 1300 | N4: 1400 | O4: 1500 | P4: 1600 | Q4: 1700 | R4: 1800 | S4: 1900 | T4: 2000 | U4: 2100 | V4: 2200 | W4: 2300 | X4: 2400 | Y4: 4000
C5: 800 | D5: 8/3/Mini | E5: 8/3/Mini | F5: 14/8/L | G5: 14/8/L | H5: 14/7/L | I5: 16/7/L | J5: 15/6/L | K5: 10/6/M | L5: 10/6/M | M5: 10/6/M | N5: 11/6/M | O5: 12/6/M | P5: 12/6/M | Q5: 12/6/M | R5: 13/6/M | S5: 13/6/M | T5: 14/7/M | U5: 14/7/M | V5: 14/7/M | W5: 16/9/M | X5: 16/9/M
B6: =IF(AND(o_Dropmm>C5,o_Dropmm<=C6),1,0) -> 0 | C6: 1000 | D6: 8/4/Mini | E6: 8/3/Mini | F6: 14/8/L | G6: 14/8/L | H6: 15/7/L | I6: 17/7/L | J6: 17/7/L | K6: 10/8/M | L6: 11/8/M | M6: 11/8/M | N6: 11/8/M | O6: 12/8/M | P6: 12/8/M | Q6: 12/8/M | R6: 13/8/M | S6: 13/8/M | T6: 14/8/M | U6: 14/8/M | V6: 14/8/M | W6: 16/9/M | X6: 16/9/M
B7: 0 | C7: 1200 | D7: 9/5/Mini | E7: 9/4/Mini | F7: 15/9/L | G7: 15/9/L | H7: 16/8/L | I7: 17/8/L | J7: 17/7/L | K7: 10/12/M | L7: 11/10/M | M7: 11/10/M | N7: 11/10/M | O7: 12/10/M | P7: 12/10/M | Q7: 12/10/M | R7: 14/10/M | S7: 14/10/M | T7: 14/9/M | U7: 14/9/M | V7: 15/9/M | W7: 16/10/M | X7: 16/10/M
B8: 0 | C8: 1400 | D8: X | E8: 9/4/Mini | F8: 15/9/L | G8: 15/9/L | H8: 17/8/L | I8: 18/8/L | J8: 18/8/L | K8: 10/14/M | L8: 11/12/M | M8: 11/12/M | N8: 11/12/M | O8: 12/12/M | P8: 14/12/M | Q8: 14/12/M | R8: 16/12/M | S8: 16/12/M | T8: 14/10/M | U8: 14/10/M | V8: 16/10/M | W8: 16/10/M | X8: 16/10/M
B9: 0 | C9: 1600 | D9: X | E9: 9/5/Mini | F9: 16/10/L | G9: 16/10/L | H9: 17/9/L | I9: 18/9/L | J9: 18/8/L | K9: 11/16/M | L9: 11/14/M | M9: 11/14/M | N9: 11/14/M | O9: 12/14/M | P9: 15/14/M | Q9: 15/14/M | R9: 16/14/M | S9: 16/14/M | T9: 14/11/M | U9: 14/11/M | V9: 16/11/M | W9: 17/11/M | X9: 17/11/M
B10: 0 | C10: 1800 | D10: X | E10: 9/5/Mini | F10: 16/10/L | G10: 16/10/L | H10: 17/9/L | I10: 18/9/L | J10: 19/9/L | K10: 11/18/M | L10: 11/16/M | M10: 11/16/M | N10: 11/16/M | O10: 12/16/M | P10: 16/16/M | Q10: 16/16/M | R10: 17/16/M | S10: 17/16/M | T10: 16/12/M | U10: 16/12/M | V10: 17/12/M | W10: 17/11/M | X10: 17/11/M
B11: 0 | C11: 2000 | D11: X | E11: X | F11: 17/11/L | G11: 17/11/L | H11: 17/10/L | I11: 19/10/L | J11: 19/9/L | K11: 11/20/M | L11: 12/18/M | M11: 12/18/M | N11: 14/18/M | O11: 14/18/M | P11: 17/18/M | Q11: 17/18/M | R11: 17/18/M | S11: 17/18/M | T11: 17/13/M | U11: 17/13/M | V11: 17/13/M | W11: 18/12/M | X11: 18/12/M
B12: 0 | C12: 2200 | D12: X | E12: X | F12: 18/11/L | G12: 18/11/L | H12: 17/10/L | I12: 20/10/L | J12: 20/10/L | K12: 12/22/M | L12: 12/20/M | M12: 12/20/M | N12: 15/20/M | O12: 15/20/M | P12: 17/20/M | Q12: 17/20/M | R12: 19/20/M | S12: 19/20/M | T12: 18/14/M | U12: 18/14/M | V12: 17/14/M | W12: 18/12/M | X12: 18/12/M
B13: 0 | C13: 2400 | D13: X | E13: X | F13: 18/12/L | G13: 18/12/L | H13: 18/11/L | I13: 20/11/L | J13: 20/10/L | K13: 12/23/M | L13: 13/22/M | M13: 13/22/M | N13: 15/22/M | O13: 15/22/M | P13: 19/22/M | Q13: 19/22/M | R13: 19/22/M | S13: 19/22/M | T13: 18/15/M | U13: 18/15/M | V13: 18/15/M | W13: 18/13/M | X13: 18/13/M
B14: 0 | C14: 2600 | D14: X | E14: X | F14: 18/12/L | G14: 18/12/L | H14: 18/11/L | I14: 22/11/L | J14: 22/11/L | K14: 12/24/M | L14: 13/24/M | M14: 13/24/M | N14: 15/22/M | O14: 15/22/M | P14: 19/22/M | Q14: 19/22/M | R14: 19/22/M | S14: 19/22/M | T14: 19/16/M | U14: 19/16/M | V14: 18/16/M | W14: 18/13/M | X14: 18/13/M
B15: 0 | C15: 2800 | D15: X | E15: X | F15: 18/13/L | G15: 18/13/L | H15: 19/12/L | I15: 22/12/L | J15: 22/11/L | K15: 12/25/M | L15: 13/24/M | M15: 13/24/M | N15: 15/24/M | O15: 15/24/M | P15: 20/24/M | Q15: 20/24/M | R15: 19/24/M | S15: 21/24/M | T15: 19/17/M | U15: 19/17/M | V15: 18/17/M | W15: 18/14/M | X15: 18/14/M
B16: 0 | C16: 3000 | D16: X | E16: X | F16: X | G16: 18/13/L | H16: 19/12/L | I16: 22/12/L | J16: 22/12/L | K16: X | L16: 14/25/M | M16: 14/25/M | N16: 15/24/M | O16: 15/24/M | P16: 21/24/M | Q16: 20/24/M | R16: 20/24/M | S16: 21/24/M | T16: 19/18/M | U16: 19/18/M | V16: 20/18/M | W16: 18/14/M | X16: 18/14/M
B17: 0 | C17: 3200 | D17: X | E17: X | F17: X | G17: X | H17: 19/13/L | I17: 22/13/L | J17: 22/13/L | K17: X | L17: X | M17: X | N17: X | O17: 15/25/M | P17: 21/25/M | Q17: 21/25/M | R17: 20/25/M | S17: 21/25/M | T17: 19/19/M | U17: 19/19/M | V17: 20/19/M | W17: 18/14/M | X17: 18/14/M
B18: 0 | C18: 3400 | D18: X | E18: X | F18: X | G18: X | H18: 19/13/L | I18: X | J18: X | K18: X | L18: X | M18: X | N18: X | O18: 15/25/M | P18: 21/25/M | Q18: 21/25/M | R18: 21/25/M | S18: 21/25/M | T18: 20/20/M | U18: 20/20/M | V18: 21/20/M | W18: X | X18: X
C20: Weight Bar requirement (g/m) | D20: 500 | E20: 500 | F20: 350 | G20: 350 | H20: 350 | I20: 350 | J20: 350 | K20: 350 | L20: 350 | M20: 350 | N20: 350 | O20: 350 | P20: 350 | Q20: 350 | R20: 350 | S20: 350 | T20: 350 | U20: 350 | V20: 350 | W20: 350 | X20: 350 | Y20: 350
C22: Cell Out | D22: =IFERROR(IF(AND(i_Width<>"",i_Drop<>"",SUM(BlindSize)>0),INDEX(D5:X18,MATCH(1,B5:B18,0),MATCH(1,D3:X3,0))),"X") -> FALSE
C24: Position | D24: =_xlfn.TEXTSPLIT(o_SystemSpecChart,,"/") -> FALSE | F24: Warning: | G24: =IF(o_SystemSpecChart="X","Outside Spring Capacity, refer system specifications.","") ->  | L24: Mini | M24: MINI
C25: Preturns | L25: L | M25: LIGHT
C26: Spring | G26: =INDEX($M$24:$M$26,MATCH($D$26,$L$24:$L$26,0)) ->  | L26: M | M26: MEDIUM
H28: grams:pounds
H29: 2.204
H33: =IF(o_SystemSpecChart="X", "Outside spring specifications.", "Recommended Spring: "&o_SpringSize) -> 
B40: NOTES FOR BOM | C40: =IF(o_SystemSpecChart="X", "Spring outside specifications.", "Recommended Spring Position: "&o_SpringPosn&"; Recommended Spring Pre-turns: "&o_SpringPreturns) -> Recommended Spring Position: FALSE; Recommended Spring Pre-turns:

Sheet Calc_Reference_excl (hidden)
B2: Input Constants
B3: Maximum User Effort | D3: kg | AZ3: Selected Fabric | BA3: =i_FabricSelection -> 0
B4: Tube Deflection Limit (internal) | D4: mm/m | AZ4: lookup thickness | BA4: =INDEX(#REF!,MATCH(i_FabricSelection,#REF!,0)) ->  | BB4: mm | BK4: #6 zip | BL4: 1.45 | BM4: mm
B5: Tube Deflection Limit (external) | D5: mm/m | AZ5: lookup density | BA5: =INDEX(#REF!,MATCH(i_FabricSelection,#REF!,0)) ->  | BB5: gsm
B6: Zip Thickness | D6: mm
N7: Live Data | Q7: Bottom Tube | U7: Top Tube | Z7: Boosters | AD7: No Boosters | AI7: Bottom Booster Only (motor) | AO7: Including Both Boosters (as nominated in inputs) | AT7: * Safety Factor | AZ7: Deflection Limit internal | BA7: =o_BlindWidthm*Deflection_Limit_Int -> 0 | BB7: mm
N8: Bottom Tube # Rotations | O8: Lift Height (m) | Q8: Load (N) | R8: Active Diameter (mm) | S8: Radius (mm) | U8: Top Tube # Rotations | V8: Load (N) | W8: Active Spool Diameter (mm) | X8: Spool Radius (mm) | Z8: Spring Booster Top Torque (Nm) | AA8: Spring Booster Bottom Torque (Nm) | AB8: Booster Equivalent Force (N) | AD8: Top Tube/Spool Torque Required (Nm) | AE8: Control Torque Required @ Ratio + FRICTION (Nm) | AF8: User Effort LIFTING (kg) | AG8: User Effort LOWERING (kg) | AI8: Top Tube Load (N) | AJ8: Top Tube Torque (Nm) | AK8: Control Torque Required (Nm) | AL8: User Effort LIFTING (kg) | AM8: User Effort LOWERING (kg) | AO8: Top Tube/Spool Torque Required (Nm) | AP8: Control Torque Required @ Ratio (Nm) | AQ8: User Effort LIFTING (kg) | AR8: User Effort LOWERING (kg) | AT8: User Effort LIFTING (kg) | AU8: User Effort LOWERING (kg) | AZ8: Deflection Limit external | BA8: =o_BlindWidthm*Deflection_Limit_Ext -> 0 | BB8: mm
B9: Material Data | E9: kg/m³ | F9: GPa | N9: 0 | O9: 0 | Q9: =9.81*((BT_UnitMass*o_BlindWidthm)+Fabric_TotalMass-Fabric_UnitMassLift*N9) ->  | R9: =S9*2 ->  | S9: =(Fabric_Roll_Diameter*0.5)-Fabric_Thickness*N9 ->  | U9: =N9*(Spool_OD/R9) ->  | V9: =9.81*((wb_UnitMass*o_BlindWidthm)+Fabric_UnitMassLift*N9) ->  | W9: =IF(D12>2.14,Spool_OD+8.4,IF(D12>1.38,Spool_OD+5.6,IF(D12>0.67,Spool_OD+2.8,Spool_OD))) ->  | X9: =W9/2 ->  | Z9: =(BoosterTop_Preturns+Rotations_Max-U9)*Booster_k ->  | AA9: =(Booster_PreTurns+N9)*BoosterBottom_k ->  | AB9: =(Z9/(X9/1000)-(AA9/(S9/1000))) ->  | AD9: =V9*X9/1000 ->  | AE9: =(AD9/Control_Ratio)+Control_Friction ->  | AF9: =(AE9/((Control_D/1000)/2))/9.81 ->  | AG9: =(Control_Friction/(Control_D/2/1000))/9.81 ->  | AI9: =(V9+((Booster_PreTurns+N9)*BoosterBottom_k/(S9/1000))) ->  | AJ9: =(AI9*X9/1000) ->  | AK9: =IF(AJ9<0,Control_Friction,(AJ9/Control_Ratio)+Control_Friction) ->  | AL9: =(AJ9/((Control_D/1000)/2))/9.81 ->  | AM9: =(Control_Friction/(Control_D/2/1000))/9.81 ->  | AO9: =(V9-AB9)*X9/1000 ->  | AP9: =IF(AO9<0,Control_Friction,(AO9/Control_Ratio)+Control_Friction) ->  | AQ9: =(AP9/((Control_D/1000)/2))/9.81 ->  | AR9: =IF((((Control_Friction-(AO9/Control_Ratio))/(Control_D/2/1000)))/9.81<(Control_Friction/(Control_D/2/1000))/9.81,(Control_Friction/(Control_D/2/1000))/9.81,(((Control_Friction-(AO9/Control_Ratio))/(Control_D/2/1000)))/9.81) ->  | AZ9: Fabric Thickness | BA9: =IF(i_Units="Metric",i_FabricThickness,CONVERT(i_FabricThickness,"in","mm")) ->  | BB9: mm
B10: Material | E10: Density | F10: Young's Modulus | N10: =Rotations_Bottom_Max ->  | O10: =(PI()/1000)*($N$10*BT_OD+Fabric_Thickness*$N$10^2) ->  | Q10: =9.81*((BT_UnitMass*o_BlindWidthm)+Fabric_TotalMass-Fabric_UnitMassLift*O10) ->  | R10: =S10*2 ->  | S10: =(Fabric_Roll_Diameter*0.5)-Fabric_Thickness*N10 ->  | U10: =N10*(Spool_OD/R10) ->  | V10: =9.81*((wb_UnitMass*o_BlindWidthm)+Fabric_UnitMassLift*O10) ->  | W10: =IF(O10>2.14,Spool_OD+8.4,IF(O10>1.38,Spool_OD+5.6,IF(O10>0.67,Spool_OD+2.8,Spool_OD))) ->  | X10: =W10/2 ->  | Z10: =(BoosterTop_Preturns+Rotations_Max-U10)*Booster_k ->  | AA10: =(Booster_PreTurns+N10)*BoosterBottom_k ->  | AB10: =(Z10/(X10/1000)-(AA10/(S10/1000))) ->  | AD10: =V10*X10/1000 ->  | AE10: =(AD10/Control_Ratio)+Control_Friction ->  | AF10: =(AE10/((Control_D/1000)/2))/9.81 ->  | AG10: =(Control_Friction/(Control_D/2/1000))/9.81 ->  | AI10: =(V10+((Booster_PreTurns+N10)*BoosterBottom_k/(S10/1000))) ->  | AJ10: =(AI10*X10/1000) ->  | AK10: =IF(AJ10<0,Control_Friction,(AJ10/Control_Ratio)+Control_Friction) ->  | AL10: =(AJ10/((Control_D/1000)/2))/9.81 ->  | AM10: =(Control_Friction/(Control_D/2/1000))/9.81 ->  | AO10: =(V10-AB10)*X10/1000 ->  | AP10: =IF(AB12<0,Control_Friction,(AO10/Control_Ratio)+Control_Friction) ->  | AQ10: =(AP10/((Control_D/1000)/2))/9.81 ->  | AR10: =IF((((Control_Friction-(AO10/Control_Ratio))/(Control_D/2/1000)))/9.81<(Control_Friction/(Control_D/2/1000))/9.81,(Control_Friction/(Control_D/2/1000))/9.81,(((Control_Friction-(AO10/Control_Ratio))/(Control_D/2/1000)))/9.81) ->  | AZ10: Fabric Density | BA10: =i_FabricDensity/1000 ->  | BB10: kg/m²
B11: Aluminium | E11: 2710 | F11: =68*10^9 -> 68000000000 | BG11: Tube
B12: Steel | E12: 7860 | F12: =2*10^11 -> 200000000000 | BG12: Unit Mass | BH12: =INDEX(T_refTubes[Mass/m],MATCH(i_Tube,T_refTubes[OptionCode],0)) ->  | BI12: kg/m
AZ13: Blind width (m) | BA13: =o_Widthmm/1000 -> 0 | BB13: m | BG13: OD | BH13: =INDEX(T_refTubes[Tube OD],MATCH(i_Tube,T_refTubes[OptionCode],0)) ->  | BI13: mm
B14: Tubes | E14: mm | F14: kg/m | G14: (mm⁴) | H14: (Nm²) | AZ14: Blind Drop (m) | BA14: =o_Dropmm/1000 -> 0 | BB14: m | BG14: IE | BH14: =INDEX(T_refTubes[EI],MATCH(i_Tube,T_refTubes[OptionCode],0)) ->  | BI14: Nm²
B15: OptionCode | C15: Codes | D15: Description | E15: Tube OD | F15: Mass/m | G15: I_min | H15: EI
B16: 63 AL | C16: RE01-0363 | D16: 63 STD Aluminium Tube
B17: 63 STEEL
B18: 78 AL STD | C18: RE01-0378 | D18: 78 STD Aluminium Tube - 80mm | AZ18: Tube Max Rotations | BA18: =(-Tube_OD+SQRT(Tube_OD^2+4*Fabric_Thickness*o_BlindDropm*1000/PI()))/(2*Fabric_Thickness) -> 
B19: 78 AL HD | C19: RE01-0379 | D19: 78 HD Aluminium Tube - 81.6mm | AZ19: Max Roll Diameter | BA19: =(Rotations_Max)*Fabric_Thickness*2+Tube_OD ->  | BB19: mm | BC19: no prewrap
B20: 78 STEEL | C20: AW92-0901 | D20: 78 STEEL Tube - 78mm | AZ20: Max Zip Diameter | BA20: =((-Tube_OD+SQRT(Tube_OD^2+4*ZipThickness*o_BlindDropm*1000/PI()))/(2*ZipThickness))*ZipThickness*2+Tube_OD ->  | BB20: mm
B21: S100 110 STD | C21: RB93-0110 | D21: S100 Aluminium Tube - 110 STD
B22: S100 130 HD | C22: RB93-0130 | D22: S100 Aluminium Tube - 130 HD | BG22: Weight Bar & Ballast
AZ23: Booster Max Preturns | BA23: =ROUNDDOWN(BH28-Rotations_Max,0) ->  | BB23: Turns | BG23: Unit Mass | BH23: =IFERROR(INDEX(T_refWeightBar[Mass/m],MATCH(1,T_refWeightBar[Codes],0)),0.00001) -> 1e-05 | BI23: kg/m
BG26: Booster
BG27: k | BH27: =IFERROR(INDEX(T_refBoosters[Spring Rate],MATCH(i_Booster,T_refBoosters[Input],0)),0.00001) -> 1e-05 | BI27: Nm/Turn
AZ28: Fabric Lift Unit Mass | BA28: =o_BlindWidthm*Fabric_Density ->  | BB28: kg/m | BG28: Max Turns | BH28: =IFERROR(INDEX(T_refBoosters[Max Turns],MATCH(i_Booster,T_refBoosters[Input],0)),0.00001) -> 1e-05 | BI28: Turns
AZ29: Fabric Total Mass | BA29: =Fabric_UnitMassLift*o_BlindDropm ->  | BB29: kg
B31: Boosters | E31: (Nm/Turn) | G31: (Nm)
B32: Input | C32: Codes | D32: Description | E32: Spring Rate | F32: Max Turns | G32: T_Max | H32: MinWidth | I32: BoosterCount | AZ32: Fabric Area Mass | BA32: =Fabric_Density*(o_Dropmm/1000)*(o_Widthmm/1000) ->  | BB32: kg/m²
B33: Short | D33: Short RE01 Spring
D34: X-Light RE01 Spring
B35: Light | D35: Light RE01 Spring
D36: Medium Light RE01 Spring | AZ36: Torque @ Midpoint | BA36: =(((((g*(wb_UnitMass*o_BlindWidthm+Fabric_Density*o_BlindWidthm*((o_BlindDropm-((PI()/1000)*((Rotations_Max/2)*Tube_OD+Fabric_Thickness*(Rotations_Max/2)^2)))))*((((Fabric_Roll_Diameter*0.5)-Fabric_Thickness*(Rotations_Max/2)))/1000)))))) ->  | BB36: Nm
B37: Standard | C37: RB10-6040-xxx031/2 | D37: Standard RE01 Spring
B38: Heavy | C38: RB10-6040-xxx041/2 | D38: Heavy Duty RE01 Spring | AZ38: # preturns recommended | BA38: =ROUNDUP((BA36-(Booster_k*(Rotations_Max/2)))/Booster_k,0) ->  | BB38: Turns
B39: Extra Heavy | D39: X-Heavy RE01 Spring
B40: Dual Heavy | D40: Dual Heavy RE01 Springs
D41: Dual X-Heavy RE01 Springs
B46: Weight Bar | E46: (mm²) | F46: kg/m | G46: (mm⁴) | H46: (mm⁴) | I46: (Nm²)
B47: Column1 | C47: Codes | D47: Description | E47: CSA | F47: Mass/m | G47: I_y | H47: I_x | I47: EI
D48: Fabric Wrap | F48: 0.235
D49: D30 Medium Bottom Rail | F49: 0.306
D50: VB05 Ballast | F50: 0.23
B53: Controls | E53: (mm) | F53: (Nm) | H53: (Nm)
B54: Selection | C54: Codes | D54: Description | E54: Diameter | F54: Holding Capacity | G54: Gear Ratio | H54: Friction
